Workbook

Sheet GUIDE_SOLUTIONS
B1: GUIDE TO REAL OPTION VALUE SOLUTIONS
A3: #1 Session | B3: CHAPTER 2 | C3: INTRODUCTION TO BASICS
B4: EXERCISE 2.1 | C4: Put Binomial, No Income
B5: EXERCISE 2.2 | C5: Call Binomial, No Income
B6: EXERCISE 2.3 | C6: =C5 -> Call Binomial, No Income
B7: PROBLEM 2.4 | C7: Black-Scholes Deferral Option
B8: PROBLEM 2.5 | C8: =C7 -> Black-Scholes Deferral Option
B9: PROBLEM 2.6 | C9: Margrabe Exchange
A10: #2 Session | B10: CHAPTER 3 | C10: STRATEGIES
B11: EXERCISE 3.1 | C11: Write Call Strategy: "Texas Marketing Hedge"
B12: EXERCISE 3.2 | C12: Buy Protective Put Strategy
B13: EXERCISE 3.3 | C13: Write Extreme Call Strategy: "Wildcat Texas Hedge"
B14: PROBLEM 3.4 | C14: Buy Protective Call Option for Asset User
B15: PROBLEM 3.5 | C15: Buy Put funded by Write Call for Leveraged Assets
B16: PROBLEM 3.6 | C16: Maria's Unusual Salary Insurance Arrangement
A17: #3 Session | B17: CHAPTER 4 | C17: AMERICAL PERPETUAL
B18: EXERCISE 4.1 | C18: Real American Perpetual Call Option
B19: EXERCISE 4.2 | C19: =C18 -> Real American Perpetual Call Option
B20: EXERCISE 4.3 | C20: =C19 -> Real American Perpetual Call Option
B21: PROBLEM 4.4 | C21: Perpetual American Option PDE
B22: PROBLEM 4.5 | C22: Hedging Writing a Real Option
B23: PROBLEM 4.6 | C23: Hedging a Long Position in a Real Option
A24: # Session | B24: CHAPTER 5 | C24: AMERICAN EXCHANGE
B25: EXERCISE 5.1 | C25: Perpetual American Exchange Real Option
B26: EXERCISE 5.2 | C26: Volatile Perpetual American Exchange Real Option
B27: EXERCISE 5.3 | C27: Perpetual American QUANTO Exchange Real Option
B28: PROBLEM 5.4 | C28: =C25 -> Perpetual American Exchange Real Option
B29: PROBLEM 5.5 | C29: =C28 -> Perpetual American Exchange Real Option
B30: PROBLEM 5.6 | C30: =C26 -> Volatile Perpetual American Exchange Real Option
A31: # Session | B31: CHAPTER 6 | C31: AMERICAN FINITE
B32: EXERCISE 6.1 | C32: European Real Option
B33: EXERCISE 6.2 | C33: European and Finite American Real Option
B34: EXERCISE 6.3 | C34: American Finite Call Approximation (BAW)
B35: PROBLEM 6.4 | C35: CEA American Put Option Approximation
B36: PROBLEM 6.5 | C36: =C35 -> CEA American Put Option Approximation
B37: PROBLEM 6.6 | C37: CEAM American Put Option Approximation
A38: #6 Session | B38: CHAPTER 7 | C38: SEQUENTIAL
B39: EXERCISE 7.1 | C39: Geske European Compound Call Option
B40: EXERCISE 7.2 | C40: European Compound Exchange Option
B41: EXERCISE 7.3 | C41: =C39 -> Geske European Compound Call Option
B42: PROBLEM 7.4 | C42: American Finite Sequential Exchange Option
B43: PROBLEM 7.5 | C43: Three Stage Sequential Perpetual American Call Option
B44: PROBLEM 7.6 | C44: Three Stage Sequential Perpetual American Exchange Option
A45: #4 Session | B45: CHAPTER 8 | C45: SCALE
B46: EXERCISE 8.1 | C46: Marshallian & Simple Option Enter Triggers
B47: EXERCISE 8.2 | C47: Marshallian & Simple Option Enter Options
B48: EXERCISE 8.3 | C48: =C46 -> Marshallian & Simple Option Enter Triggers
B49: PROBLEM 8.4 | C49: Entry-Exit Stochastic Model
B50: PROBLEM 8.5 | C50: =C49 -> Entry-Exit Stochastic Model
B51: PROBLEM 8.6 | C51: Invest, Revert, Contract & Abandonment Model
A52: #9 Session | B52: CHAPTER 9 | C52: COMPETITION
B53: EXERCISE 9.1 | C53: Duopoly Competition with First Mover Advantage: Simple
B54: PROBLEM 9.2 | C54: Rivalry Under P & Q Uncertainty: Simple
B55: PROBLEM 9.3 | C55: Rivalry Under R & K Uncertainty: Simple
B56: PROBLEM 9.4 | C56: Duopoly Competition with First Mover Advantage
B57: PROBLEM 9.5 | C57: Rivalry Under P & Q Uncertainty
B58: PROBLEM 9.6 | C58: Rivalry Under R & K Uncertainty
A59: #8 Session | B59: CHAPTER 10 | C59: REAL DEBT STRATEGY
B60: EXERCISE 10.1 | C60: Equity, Debt Values with Endogenous Bankruptcy
B61: EXERCISE 10.2 | C61: =C60 -> Equity, Debt Values with Endogenous Bankruptcy
B62: EXERCISE 10.3 | C62: =C60 -> Equity, Debt Values with Endogenous Bankruptcy
B63: PROBLEM 10.4 | C63: Mortgage Value with Taxes
B64: PROBLEM 10.5 | C64: Lender Value
B65: PROBLEM 10.6 | C65: Fair Arrangements
A66: # Session | B66: CHAPTER 11 | C66: RENEWAL OPTIONS
B67: EXERCISE 11.1 | C67: NPV Single Renewal
B68: EXERCISE 11.2 | C68: Renewal Stochastic Price
B69: EXERCISE 11.3 | C69: Renewal Stochastic Price
B70: PROBLEM 11.4 | C70: Renewal Stochastic Price & Cost
B71: PROBLEM 11.5 | C71: Renewal Stochastic Price
B72: PROBLEM 11.6 | C72: Renewal Stochastic Price & Cost
A73: #5 Session | B73: CHAPTER 12 | C73: SWITCHING OPTIONS
B74: EXERCISE 12.1 | C74: Single Output Switch
B75: EXERCISE 12.1A | C75: Single Output Switch
B76: EXERCISE 12.2 | C76: Single In/Out Switch
B77: EXERCISE 12.3 | C77: Single Input Switch
B78: PROBLEM 12.4 | C78: Multiple Output Switching
B79: PROBLEM 12.4A | C79: Multiple Output Switching
B80: PROBLEM 12.5 | C80: Multiple In/Out Switching
B81: PROBLEM 12.6 | C81: Multiple Input Switching
A82: # Session | B82: CHAPTER 13 | C82: REVENUE OPTIONS
B83: EXERCISE 13.1 | C83: Single Output Switching
B84: EXERCISE 13.2 | C84: Optimal Discount Fare Booking
B85: EXERCISE 13.3 | C85: Overbooking
B86: PROBLEM 13.4 | C86: Multiple Output Switching
B87: PROBLEM 13.5 | C87: Optimal Discount Fare Booking
B88: PROBLEM 13.6 | C88: Overbooking
A89: #7 Session | B89: CHAPTER 14 | C89: INCENTIVE OPTIONS
B90: EXERCISE 14.1 | C90: Proportional Subsidy
B91: PROBLEM 14.4 | C91: Proportional Subsidy
A92: REAL OPTION VALUE EXCEL 3 16 SOLUTIONS

Sheet Exercise 2.1
A1: PUT BINOMIAL MODEL
A2: EXERCISE 2.1
A3: s | B3: 0.3
A4: INTEREST RATE | B4: 0.05
A5: TIME | B5: 1
A6: EXERCISE=K | B6: 42
A7: u | B7: =EXP(B3*SQRT(B5)) -> 1.349858808 | D7: B7= | E7: EXP(B3*SQRT(B5))
A8: d | B8: =1/B7 -> 0.7408182207 | D8: B8= | E8: 1/B7
A9: a | B9: =EXP(B4*B5) -> 1.051271096 | D9: B9= | E9: EXP(B4*B5)
A10: p | B10: =(B9-B8)/(B7-B8) -> 0.5097408652 | D10: B10= | E10: (B9-B8)/(B7-B8)
A11: SQUARE FEET | B11: 100000
A13: PERIOD 0 | B13: PERIOD 1
A16: RENT/SQ FT
B17: =$B$7*$A$18 -> 56.69406992 | D17: B17= | E17: $B$7*$A$18
A18: 42
B19: =$B$8*$A$18 -> 31.11436527 | D19: B19= | E19: $B$8*$A$18
A21: PUT OPTION VALUE/SQ FT
B22: =IF((B17<$B$6),(B17-$B$6),0) -> 0 | D22: B22= | E22: IF((B17<$B$6),(B17-$B$6),0)
A23: =EXP(-B4*B5)*(B22*$B$10+(1-$B$10)*B24) -> 5.076503942 | D23: A23= | E23: EXP(-B4*B5)*(B22*$B$10+(1-$B$10)*B24)
B24: =IF((B19<$B$6),-(B19-$B$6),0) -> 10.88563473 | D24: B24= | E24: IF((B19<$B$6),-(B19-$B$6),0)
A26: TOTAL PUT OPTION VALUE
A27: =B11*A23 -> 507650.3942 | D27: A27= | E27: B11*A23

Sheet Exercise 2.2
A1: One-Step Binomial Call
A2: Exercise 2.2
A3: VOLATILITY | B3: 0.3
A4: RATE | B4: 0.05
A5: TIME | B5: 1
A6: up | B6: =EXP(B3*SQRT(B5)) -> 1.349858808
A7: down | B7: =1/B6 -> 0.7408182207
A8: probability | B8: =(EXP(B4*B5)-B7)/(B6-B7) -> 0.5097408652
A10: =A6 -> up | B10: EXP(B3*SQRT(B5))
A11: =A7 -> down | B11: 1/B6
A12: =A8 -> probability | B12: (EXP(B4*B5)-B7)/(B6-B7)
A15: Time | B15: 0 | C15: 1
A17: Expected | C17: =B18*B6 -> 94490.11653 | D17: u
A18: Earnings | B18: 70000
C19: =B18*B7 -> 51857.27545 | D19: d
C21: =B22 -> 75000 | D21: u
A22: Cost | B22: 75000
C23: =B22 -> 75000 | D23: d
C25: =MAX((C17-C21),0) -> 19490.11653 | D25: u
A26: Call Value | B26: =EXP(-B4*B5)*(C25*B8+(1-B8)*C27) -> 9450.37764
C27: =MAX((C19-C23),0) -> 0 | D27: d
A28: C25= | C28: MAX((C17-C21),0)
A29: C27= | C29: MAX((C19-C23),0)
A30: B26= | B30: EXP(-B4*B5)*(C25*B8+(1-B8)*C27)

Sheet Exercise 2.3
A1: One-Step Binomial Call
A2: Exercise 2.3
A3: VOLATILITY | B3: 0.4
A4: RATE | B4: 0.1
A5: TIME | B5: 1
A6: up | B6: =EXP(B3*SQRT(B5)) -> 1.491824698
A7: down | B7: =1/B6 -> 0.670320046
A8: probability | B8: =(EXP(B4*B5)-B7)/(B6-B7) -> 0.5293346437
A10: =A6 -> up | B10: EXP(B3*SQRT(B5))
A11: =A7 -> down | B11: 1/B6
A12: =A8 -> probability | B12: (EXP(B4*B5)-B7)/(B6-B7)
A15: Time | B15: 0 | C15: 1
C17: =B18*B6 -> 62.6566373 | D17: u
A18: Rent | B18: 42
C19: =B18*B7 -> 28.15344193 | D19: d
C21: =B22 -> 45 | D21: u
A22: Exercise Price | B22: 45
C23: =B22 -> 45 | D23: d
C25: =MAX((C17-C21),0) -> 17.6566373 | D25: u
A26: Call Value | B26: =EXP(-B4*B5)*(C25*B8+(1-B8)*C27) -> 8.456854647
C27: =MAX((C19-C23),0) -> 0 | D27: d
A28: C25= | C28: MAX((C17-C21),0)
A29: C27= | C29: MAX((C19-C23),0)
A30: B26= | B30: EXP(-B4*B5)*(C25*B8+(1-B8)*C27)
A31: SF | B31: 100000
A32: Total Call Option Value | B32: =B26*B31 -> 845685.4647

Sheet Problem 2.4
A1: DEFERRAL OPTION
A2: Problem 2.4
A5: ASSET VALUE | B5: 500
A6: INVESTMENT COST | B6: 450
A7: RISKLESS RATE | B7: 0.04
A8: DIVIDEND | B8: 0.04
A9: TIME / YEARS | B9: 5
A10: VOLATILITY | B10: 0.2
A11: CALL PRICE | B11: =B5*B15*EXP(-B8*B9)-B6*B16*EXP(-B7*B9) -> 91.14566472 | C11: B5*B15*EXP(-B8*B9)-B6*B16*EXP(-B7*B9)
A13: d1 | B13: =(LN(B5/B6)+(B7-B8+B10^2/2)*B9)/(B10*SQRT(B9)) -> 0.4592000729 | C13: (LN(B5/B6)+(B7-B8+B10^2/2)*B9)/(B10*SQRT(B9))
A14: d2 | B14: =B13-B10*SQRT(B9) -> 0.01198647741 | C14: B13-B10*SQRT(B9)
A15: N(d1) | B15: =NORMSDIST(B13) -> 0.6769547509 | C15: NORMSDIST(B13)
A16: N(d2) | B16: =NORMSDIST(B14) -> 0.5047817981 | C16: NORMSDIST(B14)
A18: SF | B18: 100000
A19: TOTAL REAL CALL OPTION VALUE | B19: =B11*B18 -> 9114566.472
A20: INTRINSIC REAL CALL VALUE | B20: =(B5-B6)*B18 -> 5000000

Sheet Problem 2.5
A1: DEFERRAL OPTION
A3: Problem 2.5
A5: ASSET VALUE | B5: 1200
A6: INVESTMENT COST | B6: 1338
A7: RISKLESS RATE | B7: 0.05
A8: DIVIDEND | B8: 0
A9: TIME / YEARS | B9: 2
A10: VOLATILITY | B10: 0.5
A11: CALL PRICE | B11: =B5*B15*EXP(-B8*B9)-B6*B16*EXP(-B7*B9) -> 327.7550195 | C11: B5*B15*EXP(-B8*B9)-B6*B16*EXP(-B7*B9)
A13: d1 | B13: =(LN(B5/B6)+(B7-B8+B10^2/2)*B9)/(B10*SQRT(B9)) -> 0.3410313711 | C13: (LN(B5/B6)+(B7-B8+B10^2/2)*B9)/(B10*SQRT(B9))
A14: d2 | B14: =B13-B10*SQRT(B9) -> -0.3660754101 | C14: B13-B10*SQRT(B9)
A15: N(d1) | B15: =NORMSDIST(B13) -> 0.6334600174 | C15: NORMSDIST(B13)
A16: N(d2) | B16: =NORMSDIST(B14) -> 0.3571544029 | C16: NORMSDIST(B14)
A18: Assumption
A19: This investment opportunity is a European, not an American, call option.

Sheet Problem 2.6
A1: MARGRABE EXCHANGE
A2: Problem 2.6
A3: RESIDENTIAL TENANTS | B3: 1600000
A4: RETAIL TENANTS | B4: 1750000
A5: TENANT SWITCHING TIME | B5: 1
A7: BENEFIT YIELD | B7: 0.04
A8: COST YIELD | B8: 0.04
A9: BENEFIT VOLATILITY | B9: 0.2
A10: COST VOLATILITY | B10: 0.2
A11: EXCHANGE VOLATILITY | B11: =SQRT(B9^2 + B10^2 -2*B13*B10*B9) -> 0.2 | C11: SQRT(B9^2 + B10^2 -2*B13*B10*B9)
A13: CORRELATION | B13: 0.5
A14: EXCHANGE CALL OPTION VALUE | B14: =B3*B18*EXP(-B7*B5)-B4*B19*EXP(-B8*B5) -> 68736.5406 | C14: B3*B18*EXP(-B7*B5)-B4*B19*EXP(-B8*B5)
A16: d1 | B16: =(LN(B3/B4)+(B8-B7+(B11^2)/2)*B5)/(B11*SQRT(B5)) -> -0.3480607934 | C16: (LN(B3/B4)+(B8-B7+(B11^2)/2)*B5)/(B11*SQRT(B5))
A17: d2 | B17: =B16-B11*SQRT(B5) -> -0.5480607934 | C17: B16-B11*SQRT(B5)
A18: N(d1) | B18: =NORMSDIST(B16) -> 0.3638972639 | C18: NORMSDIST(B16)
A19: N(d2) | B19: =NORMSDIST(B17) -> 0.2918250801 | C19: NORMSDIST(B17)
A21: Margrabe Exchange Real Option is worth | C21: =B14 -> 68736.5406
A22: ASSUMES: volatilities and correlation are constant, this a European option,
A23: Several assumptions required.
A25: Investment in facility for retail tenants worth | C25: =B4-C28 -> 50000
A26: Option to switch tenants in one year worth | C26: =B14 -> 68736.5406
A27: So value of modular facility worth | C27: =C25+C26 -> 118736.5406
A28: Investment cost | C28: 1700000

Sheet Exercise 3.1
A1: REAL OPTION PAYOFFS
A2: Exercise 3.1
A3: OWN ASSET-DEBT | B3: =B12-$B$6 -> -150 | C3: =C12-$B$6 -> -125 | D3: -100 | E3: -75 | F3: -50 | G3: -25 | H3: 0 | I3: 25 | J3: 50 | K3: 75 | L3: 100 | M3: 125 | N3: 150
A4: WRITE REAL CALL INTRINSIC | B4: =IF(B3>0,-B3+$B$7,$B$7) -> 50 | C4: =IF(C3>0,-C3+$B$7,$B$7) -> 50 | D4: 50 | E4: 50 | F4: 50 | G4: 50 | H4: 50 | I4: 25 | J4: 0 | K4: -25 | L4: -50 | M4: -75 | N4: -100
A5: STRATEGY RESULT | B5: =B3+B4 -> -100 | C5: =C3+C4 -> -75 | D5: -50 | E5: -25 | F5: 0 | G5: 25 | H5: 50 | I5: 50 | J5: 50 | K5: 50 | L5: 50 | M5: 50 | N5: 50
A6: Debt, K | B6: 150 | E6: =D6 -> 
A7: Option cost, y | B7: =$B$33 -> 50 | C7: Assumed
A8: Own asset subject to debt K, give investor an option to buy net asset at nil cost, for immediate payment of option premium of y.
A9: STRATEGY RESULT equals write real put on net asset value.
A10: WRITE REAL CALL INTRINSIC | B10: IF(B3>0,-B3+$B$7,$B$7)
A11: STRATEGY RESULT | B11: B3+B4 | C11: MIN(B12-$B$6+$B$7,$B$7)
A12: ASSET VALUE | B12: 0 | C12: =B12+25 -> 25 | D12: =C12+25 -> 50 | E12: 75 | F12: 100 | G12: 125 | H12: 150 | I12: 175 | J12: 200 | K12: 225 | L12: 250 | M12: 275 | N12: 300
A13: =A5 -> STRATEGY RESULT | B13: =MIN(B12-$B$6+$B$7,$B$7) -> -100 | C13: =MIN(C12-$B$6+$B$7,$B$7) -> -75 | D13: -50 | E13: -25 | F13: 0 | G13: 25 | H13: 50 | I13: 50 | J13: 50 | K13: 50 | L13: 50 | M13: 50 | N13: 50
A33: Option cost, y | B33: 50

Sheet Exercise 3.2
A1: REAL OPTION PAYOFFS
A2: Exercise 3.2 | B2: 0 | C2: =B2+25 -> 25 | D2: =C2+25 -> 50 | E2: 75 | F2: 100 | G2: 125 | H2: 150 | I2: 175 | J2: 200 | K2: 225 | L2: 250 | M2: 275 | N2: 300
A3: OWN ASSET-DEBT | B3: =0-$B$6 -> -150 | C3: =B3+25 -> -125 | D3: -100 | E3: -75 | F3: -50 | G3: -25 | H3: 0 | I3: 25 | J3: 50 | K3: 75 | L3: 100 | M3: 125 | N3: 150
A4: BUY REAL PUT INTRINSIC | B4: =IF(B3<0,-B3-$B$7,-$B$7) -> 75 | C4: =IF(C3<0,-C3-$B$7,-$B$7) -> 50 | D4: 25 | E4: 0 | F4: -25 | G4: -50 | H4: -75 | I4: -75 | J4: -75 | K4: -75 | L4: -75 | M4: -75 | N4: -75
A5: STRATEGY RESULT | B5: =B4+B3 -> -75 | C5: =C4+C3 -> -75 | D5: -75 | E5: -75 | F5: -75 | G5: -75 | H5: -75 | I5: -50 | J5: -25 | K5: 0 | L5: 25 | M5: 50 | N5: 75
A6: Debt, K | B6: 150 | E6: =D6 -> 
A7: Option cost, y | B7: =B33 -> 75
A8: Own asset subject to debt K, buy right to sell asset at debt amount K, for immediate payment of option premium of y.
A9: STRATEGY RESULT equals buy real call on net asset value at nil exercise cost.
A10: =A4 -> BUY REAL PUT INTRINSIC | B10: IF(B3<0,-B3-$B$7,-$B$7)
A11: =A5 -> STRATEGY RESULT | B11: B3+B4
A33: Option cost, y | B33: 75

Sheet Exercise 3.3
A1: SALFORD TRIATHLON ARRANGEMENT
A2: Exercise 3.3
A3: POUNDS
A4: REVENUE | B4: 100
A5: FIXED COSTS | B5: 50000
A6: VARIABLE COSTS | B6: 50
A7: TRIATHLETES | B7: 0 | C7: =B7+200 -> 200 | D7: =C7+200 -> 400 | E7: 600 | F7: 800 | G7: 1000 | H7: 1200 | I7: 1400 | J7: 1600 | K7: 1800 | L7: 2000 | M7: 2200 | N7: 2400 | O7: 2600
A9: NO ARRANGEMENT
A10: REVENUE | B10: =$B$4*B7 -> 0 | C10: 20000 | D10: 40000 | E10: 60000 | F10: 80000 | G10: 100000 | H10: 120000 | I10: 140000 | J10: 160000 | K10: 180000 | L10: 200000 | M10: 220000 | N10: 240000 | O10: 260000 | P10: $B$4*P7
A11: FIXED COSTS | B11: =$B$5 -> 50000 | C11: 50000 | D11: 50000 | E11: 50000 | F11: 50000 | G11: 50000 | H11: 50000 | I11: 50000 | J11: 50000 | K11: 50000 | L11: 50000 | M11: 50000 | N11: 50000 | O11: 50000 | P11: $B$5
A12: VARIABLE COSTS | B12: =$B$6*B7 -> 0 | C12: 10000 | D12: 20000 | E12: 30000 | F12: 40000 | G12: 50000 | H12: 60000 | I12: 70000 | J12: 80000 | K12: 90000 | L12: 100000 | M12: 110000 | N12: 120000 | O12: 130000 | P12: $B$6*P7
A13: PROFIT | B13: =B10-B11-B12 -> -50000 | C13: =C10-C11-C12 -> -40000 | D13: =D10-D11-D12 -> -30000 | E13: -20000 | F13: -10000 | G13: 0 | H13: 10000 | I13: 20000 | J13: 30000 | K13: 40000 | L13: 50000 | M13: 60000 | N13: 70000 | O13: 80000 | P13: P10-P11-P12
A15: WITH SALFORD COUNCIL ARRANGEMENT
A16: REVENUE | B16: =B4 -> 100
A17: FIXED COSTS | B17: =B5-B19 -> 10000
A18: VARIABLE COSTS | B18: 50
A19: FEE | B19: =B55 -> 40000
A20: SALFORD SHARE | B20: =B56 -> 0.75
A21: SHARE START | B21: =B57 -> 100000
A23: REVENUE | B23: =$B$16*B26 -> 0 | C23: 20000 | D23: 40000 | E23: 60000 | F23: 80000 | G23: 100000 | H23: 120000 | I23: 140000 | J23: 160000 | K23: 180000 | L23: 200000 | M23: 220000 | N23: 240000 | O23: 260000 | P23: $B$16*P26
A24: FIXED COSTS | B24: =$B$17 -> 10000 | C24: 10000 | D24: 10000 | E24: 10000 | F24: 10000 | G24: 10000 | H24: 10000 | I24: 10000 | J24: 10000 | K24: 10000 | L24: 10000 | M24: 10000 | N24: 10000 | O24: 10000 | P24: $B$17
A25: VARIABLE COSTS | B25: =$B$6*B26 -> 0 | C25: 10000 | D25: 20000 | E25: 30000 | F25: 40000 | G25: 50000 | H25: 60000 | I25: 70000 | J25: 80000 | K25: 90000 | L25: 100000 | M25: 110000 | N25: 120000 | O25: 130000 | P25: $B$6*P26
A26: TRIATHLETES | B26: =B7 -> 0 | C26: =C7 -> 200 | D26: 400 | E26: 600 | F26: 800 | G26: 1000 | H26: 1200 | I26: 1400 | J26: 1600 | K26: 1800 | L26: 2000 | M26: 2200 | N26: 2400 | O26: 2600
A27: SALFORD SHARE | B27: =IF(B23>$B$21,$B$20*B23,0) -> 0 | C27: 0 | D27: 0 | E27: 0 | F27: 0 | G27: 0 | H27: 90000 | I27: 105000 | J27: 120000 | K27: 135000 | L27: 150000 | M27: 165000 | N27: 180000 | O27: 195000 | P27: IF(P23>$B$21,$B$20*P23,0)
A28: PROFIT SHARING | B28: =B23-B24-B25-B27 -> -10000 | C28: =C23-C24-C25-C27 -> 0 | D28: 10000 | E28: 20000 | F28: 30000 | G28: 40000 | H28: -40000 | I28: -45000 | J28: -50000 | K28: -55000 | L28: -60000 | M28: -65000 | N28: -70000 | O28: -75000 | P28: P23-P24-P25-P27
A29: PROFIT, NO SHARE | B29: =B13 -> -50000 | C29: -40000 | D29: -30000 | E29: -20000 | F29: -10000 | G29: 0 | H29: 10000 | I29: 20000 | J29: 30000 | K29: 40000 | L29: 50000 | M29: 60000 | N29: 70000 | O29: 80000
A55: FEE | B55: 40000
A56: SALFORD SHARE | B56: 0.75
A57: SHARE START | B57: 100000

Sheet Problem 3.4
A1: REAL OPTION PAYOFFS
A2: Problem 3.4 | B2: 0 | C2: =B2+25 -> 25 | D2: =C2+25 -> 50 | E2: 75 | F2: 100 | G2: 125 | H2: 150 | I2: 175 | J2: 200 | K2: 225 | L2: 250 | M2: 275 | N2: 300 | O2: 325 | P2: 350 | Q2: 375 | R2: 400 | S2: 425 | T2: 450 | U2: 475 | V2: 500
A3: NET ASSET VALUE | B3: =B2-$B$7 -> -300 | C3: =C2-$B$7 -> -275 | D3: -250 | E3: -225 | F3: -200 | G3: -175 | H3: -150 | I3: -125 | J3: -100 | K3: -75 | L3: -50 | M3: -25 | N3: 0 | O3: 25 | P3: 50 | Q3: 75 | R3: 100 | S3: 125 | T3: 150 | U3: 175 | V3: 200
A4: REQUIRE USE OF NET ASSET | B4: =-B3 -> 300 | C4: =-C3 -> 275 | D4: 250 | E4: 225 | F4: 200 | G4: 175 | H4: 150 | I4: 125 | J4: 100 | K4: 75 | L4: 50 | M4: 25 | N4: 0 | O4: -25 | P4: -50 | Q4: -75 | R4: -100 | S4: -125 | T4: -150 | U4: -175 | V4: -200
A5: BUY REAL CALL INTRINSIC | B5: =IF(B3>0,B3-$B$8,-$B$8) -> -75 | C5: =IF(C3>0,C3-$B$8,-$B$8) -> -75 | D5: -75 | E5: -75 | F5: -75 | G5: -75 | H5: -75 | I5: -75 | J5: -75 | K5: -75 | L5: -75 | M5: -75 | N5: -75 | O5: -50 | P5: -25 | Q5: 0 | R5: 25 | S5: 50 | T5: 75 | U5: 100 | V5: 125
A6: STRATEGY RESULT | B6: =B4+B5 -> 225 | C6: =C4+C5 -> 200 | D6: 175 | E6: 150 | F6: 125 | G6: 100 | H6: 75 | I6: 50 | J6: 25 | K6: 0 | L6: -25 | M6: -50 | N6: -75 | O6: -75 | P6: -75 | Q6: -75 | R6: -75 | S6: -75 | T6: -75 | U6: -75 | V6: -75
A7: Debt, K | B7: 300 | E7: =D7 -> 
A8: Option cost, y | B8: =B33 -> 75
A9: Require use of asset subject to debt K, buy option to buy net asset at nil cost, for immediate payment of option premium of y.
A10: STRATEGY RESULT equals buy real put on net asset value.
A11: =A5 -> BUY REAL CALL INTRINSIC | B11: IF(B3>0,B3-$B$8,-$B$8)
A12: STRATEGY RESULT | B12: B4+B5
A33: Option cost, y | B33: 75

Sheet Problem 3.5
A1: Problem 3.5 | B1: REAL OPTION PAYOFFS
A2: OWN ASSET-DEBT | B2: =B16-$B$8 -> -500 | C2: -400 | D2: -300 | E2: -200 | F2: -100 | G2: 0 | H2: 100 | I2: 200 | J2: 300 | K2: 400 | L2: 500
A3: WRITE REAL CALL AT K2 INTRINSIC | B3: =IF(B2>$B$6,$B$6-B2+$B$9,$B$9) -> 25 | C3: =IF(C2>$B$6,$B$6-C2+$B$9,$B$9) -> 25 | D3: 25 | E3: 25 | F3: 25 | G3: 25 | H3: 25 | I3: -75 | J3: -175 | K3: -275 | L3: -375
A4: BUY REAL PUT AT K1 INTRINSIC | B4: =IF(B2<$B$7,-B2-$B$7-$B$10,-$B$10) -> 475 | C4: =IF(C2<$B$7,-C2-$B$7-$B$10,-$B$10) -> 375 | D4: 275 | E4: 175 | F4: 75 | G4: -25 | H4: -25 | I4: -25 | J4: -25 | K4: -25 | L4: -25
A5: STRATEGY RESULT | B5: =B2+B3+B4 -> 0 | C5: =C2+C3+C4 -> 0 | D5: 0 | E5: 0 | F5: 0 | G5: 0 | H5: 100 | I5: 100 | J5: 100 | K5: 100 | L5: 100
A6: K2 | B6: 100
A7: K1 | B7: 0
A8: Debt, K | B8: 500 | E8: =D8 -> 
A9: Option cost, y2 | B9: 25
A10: Option cost, y1 | B10: 25
A11: Own asset subject to debt K, buy a "costless protective put" (=protective collar).
A12: STRATEGY RESULT equals real collar.
A13: =A3 -> WRITE REAL CALL AT K2 INTRINSIC | B13: IF(B2>$B$6,$B$6-B2+$B$9,$B$9)
A14: =A4 -> BUY REAL PUT AT K1 INTRINSIC | B14: IF(B2<$B$7,-B2-$B$7-$B$10,-$B$10)
A15: STRATEGY RESULT | B15: B2+B3+B4
A16: ASSET VALUE | B16: 0 | C16: =B16+100 -> 100 | D16: =C16+100 -> 200 | E16: 300 | F16: 400 | G16: 500 | H16: 600 | I16: 700 | J16: 800 | K16: 900 | L16: 1000

Sheet Problem 3.6
A1: MARIA KNOX: INSURING HER EARLY CAREER EARNINGS IN A CONTINGENT CLAIM ARRANGEMENT
A2: Problem 3.6
A3: MARIA STARTING SALARY | B3: 30000 | C3: =B3+10000 -> 40000 | D3: =C3+10000 -> 50000 | E3: 60000 | F3: 70000 | G3: 80000 | H3: 90000 | I3: 100000 | J3: 110000 | K3: 120000 | L3: 130000 | M3: 140000 | N3: 150000 | O3: 160000
A5: FUD BONUS INSURANCE PREMIUM | B5: =B41 -> 20000
A6: BONUS | B6: =B42 -> 30000
A7: LOW PAY BARRIER | B7: =B43 -> 50000
A8: HIGH PAY BARRIER | B8: =B44 -> 150000
A10: LOW PAY BONUS | B10: =IF(B3<$B$7,$B$6,0) -> 30000 | C10: =IF(C3<$B$7,$B$6,0) -> 30000 | D10: 0 | E10: 0 | F10: 0 | G10: 0 | H10: 0 | I10: 0 | J10: 0 | K10: 0 | L10: 0 | M10: 0 | N10: 0 | O10: 0
A11: HIGH PAY BONUS | B11: =IF(B3>$B$8,$B$6,0) -> 0 | C11: =IF(C3>$B$8,$B$6,0) -> 0 | D11: 0 | E11: 0 | F11: 0 | G11: 0 | H11: 0 | I11: 0 | J11: 0 | K11: 0 | L11: 0 | M11: 0 | N11: 0 | O11: 30000
A12: TOTAL PAY + BONUS-FUD | B12: =B3+B10+B11-$B$5 -> 40000 | C12: 50000 | D12: 30000 | E12: 40000 | F12: 50000 | G12: 60000 | H12: 70000 | I12: 80000 | J12: 90000 | K12: 100000 | L12: 110000 | M12: 120000 | N12: 130000 | O12: 170000
A13: =A3 -> MARIA STARTING SALARY | B13: =B3 -> 30000 | C13: 40000 | D13: 50000 | E13: 60000 | F13: 70000 | G13: 80000 | H13: 90000 | I13: 100000 | J13: 110000 | K13: 120000 | L13: 130000 | M13: 140000 | N13: 150000 | O13: 160000
A41: =A5 -> FUD BONUS INSURANCE PREMIUM | B41: 20000
A42: =A6 -> BONUS | B42: 30000
A43: =A7 -> LOW PAY BARRIER | B43: 50000
A44: =A8 -> HIGH PAY BARRIER | B44: 150000

Sheet Exercise 4.1
A1: Perpetual American Option
A2: Exercise 4.1
A3: V | B3: 500
A4: K | B4: 450
A5: s | B5: 0.2
A6: r | B6: 0.04
A7: d | B7: 0.04
A8: ROV | B8: =IF(B3<B12,(B12-B4)*(B3/B12)^B14,B10) -> 138.8888889 | C8: IF(B3<B12,(B12-B4)*(B3/B12)^B14,B10)
A9: ROV | B9: =IF(B3<B12,B13*(B3^B14),B10) -> 138.8888889 | C9: IF(B3<B12,B13*(B3^B14),B10)
A10: V-K | B10: =B3-B4 -> 50 | C10: B3-B4
A11: F'(V) | B11: =IF(B3<B12,B13*B14*(B3^(B14-1)),1) -> 0.5555555556 | C11: IF(B3<B12,B13*B14*(B3^(B14-1)),1)
A12: V* | B12: =(B14/(B14-1))*B4 -> 900 | C12: (B14/(B14-1))*B4
A13: A | B13: =(B12-B4)/(B12^B14) -> 0.0005555555556 | C13: (B12-B4)/(B12^B14)
A14: b1 | B14: =0.5-(B6-B7)/(B5^2)+SQRT(((B6-B7)/(B5^2)-0.5)^2 + 2*B6/(B5^2)) -> 2
A15: SF | B15: 100000
A17: ROV | B17: =B9*B15 -> 13888888.89
A18: V* TOTAL | B18: =B12*B15 -> 90000000

Sheet Exercise 4.2
A1: Perpetual American Option
A2: Exercise 4.2
A3: V | B3: 750
A4: K | B4: 850
A5: s | B5: 0.5
A6: r | B6: 0.04
A7: d | B7: 0.04
A8: ROV | B8: =IF(B3<B12,(B12-B4)*(B3/B12)^B14,B10) -> 385.5514036 | C8: IF(B3<B12,(B12-B4)*(B3/B12)^B14,B10)
A9: ROV | B9: =IF(B3<B12,B13*(B3^B14),B10) -> 385.5514036 | C9: IF(B3<B12,B13*(B3^B14),B10)
A10: V-K | B10: =B3-B4 -> -100 | C10: B3-B4
A11: F'(V) | B11: =IF(B3<B12,B13*B14*(B3^(B14-1)),1) -> 0.6451475043 | C11: IF(B3<B12,B13*B14*(B3^(B14-1)),1)
A12: V* | B12: =(B14/(B14-1))*B4 -> 4183.549772 | C12: (B14/(B14-1))*B4
A13: A | B13: =(B12-B4)/(B12^B14) -> 0.09504472181 | C13: (B12-B4)/(B12^B14)
A14: b1 | B14: =0.5-(B6-B7)/(B5^2)+SQRT(((B6-B7)/(B5^2)-0.5)^2 + 2*B6/(B5^2)) -> 1.254983444 | C14: 0.5-(B6-B7)/(B5^2)+SQRT(((B6-B7)/(B5^2)-0.5)^2 + 2*B6/(B5^2))
A16: ODE | B16: =0.5*(B5^2)*(B3^2)*B17+(B6-B7)*B3*B11-B6*B9 -> 0
A17: F''(V) | B17: =IF(B3<B12,B13*B14*(B14-1)*(B3^(B14-2)),0) -> 0.0002193359096
A18: F'(V*) | B18: =B13*B14*(B12^(B14-1)) -> 1
A19: F(V*) | B19: =IF(B3<B12,B13*(B12^B14),B10) -> 3333.549772
A20: V*-K | B20: =B12-B4 -> 3333.549772
A21: SF | B21: 2000
A22: TOTAL ROV | B22: =B9*B21 -> 771102.8073
A23: COST | B23: 200000
A25: SECURITY ANALYSIS OF CITY LTD.
A26: ASSETS | B26: LIAB
A27: =750000-B23 -> 550000 | B27: 500000
A28: =$B$22 -> 771102.8073 | B28: =A29-B27 -> 821102.8073 | C28: NET WORTH
A29: =A27+A28 -> 1321102.807
A31: SHARES | B31: 1000000
B32: =B28/B31 -> 0.8211028073 | C32: NET REAL OPTION VALUE/SHARE

Sheet Exercise 4.3
A1: Perpetual American Option
A2: Exercise 4.3
A3: UMIT | B3: 1.1
A4: COST | B4: 1.7
A5: s | B5: 0.2
A6: r | B6: 0.04
A7: d | B7: 0.04
A8: ROV | B8: =IF(B3<B12,(B12-B4)*(B3/B12)^B14,B10) -> 0.1779411765 | C8: IF(B3<B12,(B12-B4)*(B3/B12)^B14,B10)
A9: F(V) | B9: =IF(B3<B12,B13*(B3^B14),B10) -> 0.1779411765 | C9: IF(B3<B12,B13*(B3^B14),B10)
A10: V-K | B10: =B3-B4 -> -0.6 | C10: B3-B4
A11: F'(V) | B11: =IF(B3<B12,B13*B14*(B3^(B14-1)),1) -> 0.3235294118 | C11: IF(B3<B12,B13*B14*(B3^(B14-1)),1)
A12: V* | B12: =(B14/(B14-1))*B4 -> 3.4 | C12: (B14/(B14-1))*B4
A13: A | B13: =(B12-B4)/(B12^B14) -> 0.1470588235 | C13: (B12-B4)/(B12^B14)
A14: b1 | B14: =0.5-(B6-B7)/(B5^2)+SQRT(((B6-B7)/(B5^2)-0.5)^2 + 2*B6/(B5^2)) -> 2
A15: b1= | B15: 0.5-(B6-B7)/(B5^2)+SQRT(((B6-B7)/(B5^2)-0.5)^2 + 2*B6/(B5^2))
A16: ODE | B16: =0.5*(B5^2)*(B3^2)*B17+(B6-B7)*B3*B11-B6*B9 -> 0
A17: F''(V) | B17: =IF(B3<B12,B13*B14*(B14-1)*(B3^(B14-2)),0) -> 0.2941176471
A18: F'(V*) | B18: =B13*B14*(B12^(B14-1)) -> 1
A19: F(V*) | B19: =IF(B3<B12,B13*(B12^B14),B10) -> 1.7
A20: V*-K | B20: =B12-B4 -> 1.7
A22: IT IS HARD TO IMAGINE THAT THERE IS ANOTHER
A23: TRADED ASSET CORRELATED WITH UMIT, THAT
A24: THE VOLATILITY OF UMIT CAN BE ESTIMATED
A25: ACCURATELY, OR THAT THIS ACQUISITION COULD
A26: BE PERPETUAL.
A28: BUT SOLVING THE PROBLEM INDICATES A THOUGHT
A29: PROCESS, WHEREBY UMAN MIGHT CONSIDER DEFERRAL
A30: UNTIL UMIT IS WORTH OVER 3 TIMES CURRENT VALUE,
A31: OR A GOVERNMENT REDUCES THE EFFECTIVE COST,
A32: UNLESS UMAN HAS OTHER OBJECTIVE FUNCTIONS.

Sheet Problem 4.4
A1: Perpetual American Option
A2: Problem 4.4
A3: V | B3: 500
A4: K | B4: 450
A5: s | B5: 0.2
A6: r | B6: 0.04
A7: d | B7: 0.04
A9: F(V) | B9: =IF(B3<B12,B13*(B3^B14),B10) -> 138.8888889 | C9: IF(B3<B12,B13*(B3^B14),B10)
A10: V-K | B10: =B3-B4 -> 50 | C10: B3-B4
A11: F'(V) | B11: =IF(B3<B12,B13*B14*(B3^(B14-1)),1) -> 0.5555555556 | C11: IF(B3<B12,B13*B14*(B3^(B14-1)),1)
A12: V* | B12: =(B14/(B14-1))*B4 -> 900 | C12: (B14/(B14-1))*B4
A13: A | B13: =(B12-B4)/(B12^B14) -> 0.0005555555556 | C13: (B12-B4)/(B12^B14)
A14: b1 | B14: =0.5-(B6-B7)/(B5^2)+SQRT(((B6-B7)/(B5^2)-0.5)^2 + 2*B6/(B5^2)) -> 2
A15: b1= | B15: 0.5-(B6-B7)/(B5^2)+SQRT(((B6-B7)/(B5^2)-0.5)^2 + 2*B6/(B5^2))
A16: ODE | B16: =0.5*(B5^2)*(B3^2)*B17+(B6-B7)*B3*B11-B6*B9 -> 0 | C16: 0.5*(B5^2)*(B3^2)*B17+(B6-B7)*B3*B11-B6*B9
A17: F''(V) | B17: =IF(B3<B12,B13*B14*(B14-1)*(B3^(B14-2)),0) -> 0.001111111111 | C17: IF(B3<B12,B13*B14*(B14-1)*(B3^(B14-2)),0)
A18: F'(V*) | B18: =B13*B14*(B12^(B14-1)) -> 1 | C18: B13*B14*(B12^(B14-1))
A19: F(V*) | B19: =IF(B3<B12,B13*(B12^B14),B10) -> 450 | C19: IF(B3<B12,B13*(B12^B14),B10)
A20: V*-K | B20: =B12-B4 -> 450 | C20: B12-B4
A22: INSERTING DELTA, GAMMA AND THE F(V) FUNCTION
A23: INTO ODE RESULTS IN THE ODE EQUAL TO ZERO.
A24: VALUE MATCHING AND SMOOTH PASTING CONDITIONS
A25: ARE MET.

Sheet Problem 4.5
B1: Hedging a Perpetual American Option
A2: Problem 4.5 | B2: PER SF | C2: TOTAL
A3: V | B3: 750 | C3: =B3*C15 -> 1500000
A4: K | B4: 850 | C4: =B4*C15 -> 1700000
A5: s | B5: 0.5 | C5: =B5 -> 0.5
A6: r | B6: 0.04 | C6: =B6 -> 0.04
A7: d | B7: 0.04 | C7: =B7 -> 0.04
A9: F(V) | B9: =IF(B3<B12,B13*(B3^B14),B10) -> 385.5514036 | C9: =B9*C15 -> 771102.8073
A10: V-K | B10: =B3-B4 -> -100 | C10: =C3-C4 -> -200000
A11: F'(V) | B11: =IF(B3<B12,B13*B14*(B3^(B14-1)),1) -> 0.6451475043 | C11: =IF(C3<C12,C13*C14*(C3^(C14-1)),1) -> 0.6451475043
A12: V* | B12: =(B14/(B14-1))*B4 -> 4183.549772 | C12: =(C14/(C14-1))*C4 -> 8367099.544
A13: A | B13: =(B12-B4)/(B12^B14) -> 0.09504472181 | C13: =(C12-C4)/(C12^C14) -> 0.01368421876
A14: b1 | B14: =0.5-(B6-B7)/(B5^2)+SQRT(((B6-B7)/(B5^2)-0.5)^2 + 2*B6/(B5^2)) -> 1.254983444 | C14: =0.5-(C6-C7)/(C5^2)+SQRT(((C6-C7)/(C5^2)-0.5)^2 + 2*C6/(C5^2)) -> 1.254983444
A15: SF | C15: 2000
A16: CITY OTHER NET ASSETS | C16: 250000
A17: COST CITY'S ROV | C17: 200000
A19: CITY LTD VALUE | C19: =C9+C16-C17 -> 821102.8073
A20: CITY LTD ISSSED FOR | C20: 900000
A21: DELTA HEDGE POSITION: V | C21: =C11*C3 -> 967721.2564 | D21: C11*C3
A24: INITIAL PROFITS | C24: =C20-C19 -> 78897.19272 | D24: C20-C19
A25: EVENTUAL PROFITS DEPEND ON HEDGING INACCURACY & TRANSACTION COSTS.
B27: ROV NUMERICAL DELTA | E27: 10% DECREASE | F27: 10% INCREASE
A28: =A3 -> V | B28: 675 | C28: =B3 -> 750 | D28: 825 | E28: =-1+B28/C28 -> -0.1 | F28: =D28/C28-1 -> 0.1
A29: =A4 -> K | B29: 850 | C29: =B4 -> 850 | D29: 850
A30: s | B30: 0.5 | C30: =B5 -> 0.5 | D30: 0.5
A31: r | B31: 0.04 | C31: =B6 -> 0.04 | D31: 0.04
A32: d | B32: 0.04 | C32: =B7 -> 0.04 | D32: 0.04
E33: AS % V
A34: =A9 -> F(V) | B34: =IF(B28<B37,B38*(B28^B39),B35) -> 337.7982501 | C34: =B9 -> 385.5514036 | D34: =IF(D28<D37,D38*(D28^D39),D35) -> 434.5396629 | E34: =(B34-C34)/(B28-C28) -> 0.6367087136 | F34: =(D34-C34)/(D28-C28) -> 0.6531767901
A35: =A10 -> V-K | B35: =B28-B29 -> -175 | C35: -100 | D35: =D28-D29 -> -25
A36: =A11 -> F'(V) | B36: =IF(B28<B37,B38*B39*(B28^(B39-1)),1) -> 0.6280462388 | C36: 0.6451475043 | D36: =IF(D28<D37,D38*D39*(D28^(D39-1)),1) -> 0.6610182818
A37: =A12 -> V* | B37: =(B39/(B39-1))*B29 -> 4183.549772 | C37: 4183.549772 | D37: =(D39/(D39-1))*D29 -> 4183.549772
A38: =A13 -> A | B38: =(B37-B29)/(B37^B39) -> 0.09504472181 | C38: 0.09504472181 | D38: =(D37-D29)/(D37^D39) -> 0.09504472181
A39: b1 | B39: =0.5-(B31-B32)/(B30^2)+SQRT(((B31-B32)/(B30^2)-0.5)^2 + 2*B31/(B30^2)) -> 1.254983444 | C39: 1.254983444 | D39: =0.5-(D31-D32)/(D30^2)+SQRT(((D31-D32)/(D30^2)-0.5)^2 + 2*D31/(D30^2)) -> 1.254983444
A41: Hedging a Perpetual American WRITTEN CALL Option (per SF)
A42: MONTH | B42: 0 | C42: =B42+1 -> 1 | D42: =C42+1 -> 2 | E42: =D42+1 -> 3 | F42: =E42+1 -> 4
A43: V | B43: 750 | C43: 800 | D43: 750 | E43: 700 | F43: 750
A44: K | B44: 850 | C44: =B44 -> 850 | D44: 850 | E44: 850 | F44: 850
A45: s | B45: 0.5 | C45: 0.5 | D45: 0.5 | E45: 0.5 | F45: 0.5
A46: r | B46: 0.04 | C46: 0.04 | D46: 0.04 | E46: 0.04 | F46: 0.04
A47: d | B47: 0.04 | C47: 0.04 | D47: 0.04 | E47: 0.04 | F47: 0.04
A48: OUTPUT
A49: WRITE ROV CALL | B49: =IF(B43<B57,-B58*(B43^B59),-B61) -> -385.5514036 | C49: =IF(C43<C57,-C58*(C43^C59),-C61) -> -418.078537 | D49: =IF(D43<D57,-D58*(D43^D59),-D61) -> -385.5514036 | E49: =IF(E43<E57,-E58*(E43^E59),-E61) -> -353.5728745 | F49: =IF(F43<F57,-F58*(F43^F59),-F61) -> -385.5514036
A50: HEDGE LONG VD | B50: =B56*B43 -> 483.8606282 | C50: =B50+C51 -> 492.4242668 | D50: =C50+D51 -> 484.3958556 | E50: =D50+E51 -> 476.5207062 | F50: =E50+F51 -> 484.9583663
A51: ALTER HEDGE | C51: =(C56-B56)*C43 -> 8.563638593 | D51: =(D56-C56)*D43 -> -8.028411181 | E51: =(E56-D56)*E43 -> -7.875149398 | F51: =(F56-E56)*F43 -> 8.437660069
A52: GAIN ROV | C52: =-B49+C49 -> -32.52713334 | D52: =-C49+D49 -> 32.52713334 | E52: =-D49+E49 -> 31.97852913 | F52: =-E49+F49 -> -31.97852913
A53: GAIN V | C53: =(B50/B43)*(C43-B43) -> 32.25737521 | D53: =(C50/C43)*(D43-C43) -> -30.77651667 | E53: =(D50/D43)*(E43-D43) -> -32.29305704 | F53: =(E50/E43)*(F43-E43) -> 34.0371933
A54: NET GAIN | C54: =C52+C53 -> -0.2697581264 | D54: =D52+D53 -> 1.750616665 | E54: =E52+E53 -> -0.314527907 | F54: =F52+F53 -> 2.058664167
A55: CUM GAIN | C55: =SUM($C$54:C54) -> -0.2697581264 | D55: =SUM($C$54:D54) -> 1.480858539 | E55: =SUM($C$54:E54) -> 1.166330632 | F55: =SUM($C$54:F54) -> 3.224994799
A56: F'(V) | B56: =IF(B43<B57,B58*B59*(B43^(B59-1)),1) -> 0.6451475043 | C56: =IF(C43<C57,C58*C59*(C43^(C59-1)),1) -> 0.6558520525 | D56: =IF(D43<D57,D58*D59*(D43^(D59-1)),1) -> 0.6451475043 | E56: =IF(E43<E57,E58*E59*(E43^(E59-1)),1) -> 0.6338972908 | F56: =IF(F43<F57,F58*F59*(F43^(F59-1)),1) -> 0.6451475043
A57: V* | B57: =(B59/(B59-1))*B44 -> 4183.549772 | C57: =(C59/(C59-1))*C44 -> 4183.549772 | D57: =(D59/(D59-1))*D44 -> 4183.549772 | E57: =(E59/(E59-1))*E44 -> 4183.549772 | F57: =(F59/(F59-1))*F44 -> 4183.549772
A58: A | B58: =(B57-B44)/(B57^B59) -> 0.09504472181 | C58: =(C57-C44)/(C57^C59) -> 0.09504472181 | D58: =(D57-D44)/(D57^D59) -> 0.09504472181 | E58: =(E57-E44)/(E57^E59) -> 0.09504472181 | F58: =(F57-F44)/(F57^F59) -> 0.09504472181
A59: b1 | B59: =0.5-(B46-B47)/(B45^2)+SQRT(((B46-B47)/(B45^2)-0.5)^2 + 2*B46/(B45^2)) -> 1.254983444 | C59: =0.5-(C46-C47)/(C45^2)+SQRT(((C46-C47)/(C45^2)-0.5)^2 + 2*C46/(C45^2)) -> 1.254983444 | D59: =0.5-(D46-D47)/(D45^2)+SQRT(((D46-D47)/(D45^2)-0.5)^2 + 2*D46/(D45^2)) -> 1.254983444 | E59: =0.5-(E46-E47)/(E45^2)+SQRT(((E46-E47)/(E45^2)-0.5)^2 + 2*E46/(E45^2)) -> 1.254983444 | F59: =0.5-(F46-F47)/(F45^2)+SQRT(((F46-F47)/(F45^2)-0.5)^2 + 2*F46/(F45^2)) -> 1.254983444
A60: F''(V) | B60: =IF(B43<B57,B58*B59*(B59-1)*(B43^(B59-2)),0) -> 0.0002193359096 | C60: =IF(C43<C57,C58*C59*(C59-1)*(C43^(C59-2)),0) -> 0.0002090392685 | D60: =IF(D43<D57,D58*D59*(D59-1)*(D43^(D59-2)),0) -> 0.0002193359096 | E60: =IF(E43<E57,E58*E59*(E59-1)*(E43^(E59-2)),0) -> 0.0002309047344 | F60: =IF(F43<F57,F58*F59*(F59-1)*(F43^(F59-2)),0) -> 0.0002193359096
A61: V-K | B61: =B43-B44 -> -100 | C61: =C43-C44 -> -50 | D61: =D43-D44 -> -100 | E61: =E43-E44 -> -150 | F61: =F43-F44 -> -100
A63: =A50 -> HEDGE LONG VD | B63: B56*B43 | C63: B50+C51
A64: ALTER HEDGE | C64: (C56-B56)*C43
A65: GAIN ROV | C65: -B49+C49
A66: GAIN V | C66: (B50/B43)*(C43-B43)
A67: NET GAIN | C67: C52+C53
A68: CUM GAIN | C68: SUM($C$54:C54)
A70: ISSUE A PERPETUAL AMERICAN REAL CALL OPTION
A71: HEDGE BY BUYING DELTA OF V BEGINNING OF EACH MONTH.

Sheet Problem 4.6
A1: Perpetual American Option
A2: Problem 4.6 | B2: MONTH | C2: 1 | D2: 2 | E2: 3 | F2: 4
A3: V | B3: 750 | C3: 800 | D3: 750 | E3: 700 | F3: 750
A4: K | B4: 850 | C4: 850 | D4: 850 | E4: 850 | F4: 850
A5: s | B5: 0.5 | C5: 0.5 | D5: 0.5 | E5: 0.5 | F5: 0.5
A6: r | B6: 0.04 | C6: 0.04 | D6: 0.02 | E6: 0.05 | F6: 0.04
A7: d | B7: 0.04 | C7: 0.04 | D7: 0.04 | E7: 0.04 | F7: 0.04
A9: F(V) | B9: =IF(B3<B12,B13*(B3^B14),B10) -> 385.5514036 | C9: =IF(C3<C12,C13*(C3^C14),C10) -> 418.078537 | D9: =IF(D3<D12,D13*(D3^D14),D10) -> 366.9220618 | E9: =IF(E3<E12,E13*(E3^E14),E10) -> 361.9412413 | F9: =IF(F3<F12,F13*(F3^F14),F10) -> 385.5514036
A10: V-K | B10: =B3-B4 -> -100 | C10: =C3-C4 -> -50 | D10: =D3-D4 -> -100 | E10: =E3-E4 -> -150 | F10: =F3-F4 -> -100
A11: F'(V) | B11: =IF(B3<B12,B13*B14*(B3^(B14-1)),1) -> 0.6451475043 | C11: =IF(C3<C12,C13*C14*(C3^(C14-1)),1) -> 0.6558520525 | D11: =IF(D3<D12,D13*D14*(D3^(D14-1)),1) -> 0.628442874 | E11: =IF(E3<E12,E13*E14*(E3^(E14-1)),1) -> 0.6422122987 | F11: =IF(F3<F12,F13*F14*(F3^(F14-1)),1) -> 0.6451475043
A12: V* | B12: =(B14/(B14-1))*B4 -> 4183.549772 | C12: =(C14/(C14-1))*C4 -> 4183.549772 | D12: =(D14/(D14-1))*D4 -> 3837.103464 | E12: =(E14/(E14-1))*E4 -> 4361.691572 | F12: =(F14/(F14-1))*F4 -> 4183.549772
A13: A | B13: =(B12-B4)/(B12^B14) -> 0.09504472181 | C13: =(C12-C4)/(C12^C14) -> 0.09504472181 | D13: =(D12-D4)/(D12^D14) -> 0.07436950816 | E13: =(E12-E4)/(E12^E14) -> 0.105898073 | F13: =(F12-F4)/(F12^F14) -> 0.09504472181
A14: b1 | B14: =0.5-(B6-B7)/(B5^2)+SQRT(((B6-B7)/(B5^2)-0.5)^2 + 2*B6/(B5^2)) -> 1.254983444 | C14: =0.5-(C6-C7)/(C5^2)+SQRT(((C6-C7)/(C5^2)-0.5)^2 + 2*C6/(C5^2)) -> 1.254983444 | D14: =0.5-(D6-D7)/(D5^2)+SQRT(((D6-D7)/(D5^2)-0.5)^2 + 2*D6/(D5^2)) -> 1.284556598 | E14: =0.5-(E6-E7)/(E5^2)+SQRT(((E6-E7)/(E5^2)-0.5)^2 + 2*E6/(E5^2)) -> 1.242048592 | F14: =0.5-(F6-F7)/(F5^2)+SQRT(((F6-F7)/(F5^2)-0.5)^2 + 2*F6/(F5^2)) -> 1.254983444
A16: SF | B16: 2000 | C16: 2000 | D16: 2000 | E16: 2000 | F16: 2000
A17: TOTAL ROV | B17: =B9*B16 -> 771102.8073 | C17: =C9*C16 -> 836157.074 | D17: =D9*D16 -> 733844.1237 | E17: =E9*E16 -> 723882.4826 | F17: =F9*F16 -> 771102.8073
A18: COST | B18: 200000 | C18: 200000 | D18: 200000 | E18: 200000 | F18: 200000
A19: RO WORTH | B19: =B17-B18 -> 571102.8073 | C19: =C17-C18 -> 636157.074 | D19: =D17-D18 -> 533844.1237 | E19: =E17-E18 -> 523882.4826 | F19: =F17-F18 -> 571102.8073
A20: SECURITY ANALYSIS OF CITY LTD.
A21: FUNDAMENTALS
A22: OTHER NET ASSETS | B22: 250000 | C22: =B22 -> 250000 | D22: =C22 -> 250000 | E22: =D22 -> 250000 | F22: =E22 -> 250000
A23: ROV | B23: =B19 -> 571102.8073 | C23: =C19 -> 636157.074 | D23: =D19 -> 533844.1237 | E23: =E19 -> 523882.4826 | F23: =F19 -> 571102.8073
A24: TOTAL EQUITY VALUE | B24: =B22+B23 -> 821102.8073 | C24: =C22+C23 -> 886157.074 | D24: =D22+D23 -> 783844.1237 | E24: =E22+E23 -> 773882.4826 | F24: =F22+F23 -> 821102.8073
A25: SHARES | B25: 1000000 | C25: 1000000 | D25: 1000000 | E25: 1000000 | F25: 1000000
A26: NET REAL OPTION VALUE/SHARE | B26: =B24/B25 -> 0.8211028073 | C26: =C24/C25 -> 0.886157074 | D26: =D24/D25 -> 0.7838441237 | E26: =E24/E25 -> 0.7738824826 | F26: =F24/F25 -> 0.8211028073
A27: MP/SHARE | B27: =B26 -> 0.8211028073 | C27: 1 | D27: 0.82 | E27: 0.8 | F27: 0.8
A28: PHF SHARES | B28: =0.1*B25 -> 100000
A29: PHF MARKET POSITION | B29: $B$28*B27
A30: PHF MARKET POSITION | B30: =$B$28*B27 -> 82110.28073 | C30: =$B$28*C27 -> 100000 | D30: =$B$28*D27 -> 82000 | E30: =$B$28*E27 -> 80000 | F30: =$B$28*F27 -> 80000
A31: PHF HEDGE: SHORT VD | B31: =B16*B51*0.1 -> -96772.12564 | C31: =C16*C51*0.1 -> -95059.39792 | D31: =D16*D51*0.1 -> -99170.77469 | E31: =E16*E51*0.1 -> -97243.05524 | F31: =F16*F51*0.1 -> -96802.7744
A32: PHF HEDGE | B32: B16*B51*0.1
A33: GAINS/LOSSES
A34: PHF POSITION | C34: =C30-B30 -> 17889.71927 | D34: =D30-C30 -> -18000 | E34: =E30-D30 -> -2000 | F34: =F30-E30 -> 0
A35: PHF HEDGE | C35: =2000*0.1*C54 -> -6451.475043 | D35: =2000*0.1*D54 -> 5941.21237 | E35: =2000*0.1*E54 -> 6611.384979 | F35: =2000*0.1*F54 -> -6945.932517
A37: CUM £ GAIN/LOSS
A38: =A34 -> PHF POSITION | C38: =SUM($C$34:C34) -> 17889.71927 | D38: =SUM($C$34:D34) -> -110.2807284 | E38: =SUM($C$34:E34) -> -2110.280728 | F38: =SUM($C$34:F34) -> -2110.280728
A39: =A35 -> PHF HEDGE | C39: =SUM($C$35:C35) -> -6451.475043 | D39: =SUM($C$35:D35) -> -510.2626726 | E39: =SUM($C$35:E35) -> 6101.122307 | F39: =SUM($C$35:F35) -> -844.8102101
A40: NET CUM GAIN | C40: =C38+C39 -> 11438.24423 | D40: =D38+D39 -> -620.543401 | E40: =E38+E39 -> 3990.841578 | F40: =F38+F39 -> -2955.090938
B42: Hedging a Perpetual American Option
A43: MONTH | B43: 0 | C43: =B43+1 -> 1 | D43: =C43+1 -> 2 | E43: =D43+1 -> 3 | F43: =E43+1 -> 4
A44: V | B44: =B3 -> 750 | C44: =C3 -> 800 | D44: =D3 -> 750 | E44: =E3 -> 700 | F44: =F3 -> 750
A45: K | B45: =B4 -> 850 | C45: =B45 -> 850 | D45: 850 | E45: 850 | F45: 850
A46: s | B46: =B5 -> 0.5 | C46: 0.5 | D46: 0.5 | E46: 0.5 | F46: 0.5
A47: r | B47: =B6 -> 0.04 | C47: =C6 -> 0.04 | D47: =D6 -> 0.02 | E47: =E6 -> 0.05 | F47: =F6 -> 0.04
A48: d | B48: =B7 -> 0.04 | C48: =B48 -> 0.04 | D48: =C48 -> 0.04 | E48: =D48 -> 0.04 | F48: =E48 -> 0.04
A49: OUTPUT
A50: ROV | B50: =IF(B44<B58,B59*(B44^B60),B62) -> 385.5514036 | C50: =IF(C44<C58,C59*(C44^C60),C62) -> 418.078537 | D50: =IF(D44<D58,D59*(D44^D60),D62) -> 366.9220618 | E50: =IF(E44<E58,E59*(E44^E60),E62) -> 361.9412413 | F50: =IF(F44<F58,F59*(F44^F60),F62) -> 385.5514036
A51: HEDGE | B51: =-B57*B44 -> -483.8606282 | C51: =B51+C52 -> -475.2969896 | D51: =C51+D52 -> -495.8538735 | E51: =D51+E52 -> -486.2152762 | F51: =E51+F52 -> -484.013872
A52: ALTER HEDGE | C52: =(C57-B57)*C44 -> 8.563638593 | D52: =(D57-C57)*D44 -> -20.55688384 | E52: =(E57-D57)*E44 -> 9.638597274 | F52: =(F57-E57)*F44 -> 2.201404156
A53: GAIN ROV | C53: =-B50+C50 -> 32.52713334 | D53: =-C50+D50 -> -51.15647515 | E53: =-D50+E50 -> -4.980820516 | F53: =-E50+F50 -> 23.61016232
A54: GAIN V | C54: =-(B51/B44)*(-C44+B44) -> -32.25737521 | D54: =-(C51/C44)*(-D44+C44) -> 29.70606185 | E54: =-(D51/D44)*(-E44+D44) -> 33.0569249 | F54: =-(E51/E44)*(-F44+E44) -> -34.72966258
A55: NET GAIN | C55: =C53+C54 -> 0.2697581264 | D55: =D53+D54 -> -21.4504133 | E55: =E53+E54 -> 28.07610438 | F55: =F53+F54 -> -11.11950026
A56: CUM GAIN | C56: =SUM($C$55:C55) -> 0.2697581264 | D56: =SUM($C$55:D55) -> -21.18065517 | E56: =SUM($C$55:E55) -> 6.895449209 | F56: =SUM($C$55:F55) -> -4.22405105
A57: F'(V) | B57: =IF(B44<B58,B59*B60*(B44^(B60-1)),1) -> 0.6451475043 | C57: =IF(C44<C58,C59*C60*(C44^(C60-1)),1) -> 0.6558520525 | D57: =IF(D44<D58,D59*D60*(D44^(D60-1)),1) -> 0.628442874 | E57: =IF(E44<E58,E59*E60*(E44^(E60-1)),1) -> 0.6422122987 | F57: =IF(F44<F58,F59*F60*(F44^(F60-1)),1) -> 0.6451475043
A58: V* | B58: =(B60/(B60-1))*B45 -> 4183.549772 | C58: =(C60/(C60-1))*C45 -> 4183.549772 | D58: =(D60/(D60-1))*D45 -> 3837.103464 | E58: =(E60/(E60-1))*E45 -> 4361.691572 | F58: =(F60/(F60-1))*F45 -> 4183.549772
A59: A | B59: =(B58-B45)/(B58^B60) -> 0.09504472181 | C59: =(C58-C45)/(C58^C60) -> 0.09504472181 | D59: =(D58-D45)/(D58^D60) -> 0.07436950816 | E59: =(E58-E45)/(E58^E60) -> 0.105898073 | F59: =(F58-F45)/(F58^F60) -> 0.09504472181
A60: b1 | B60: =0.5-(B47-B48)/(B46^2)+SQRT(((B47-B48)/(B46^2)-0.5)^2 + 2*B47/(B46^2)) -> 1.254983444 | C60: =0.5-(C47-C48)/(C46^2)+SQRT(((C47-C48)/(C46^2)-0.5)^2 + 2*C47/(C46^2)) -> 1.254983444 | D60: =0.5-(D47-D48)/(D46^2)+SQRT(((D47-D48)/(D46^2)-0.5)^2 + 2*D47/(D46^2)) -> 1.284556598 | E60: =0.5-(E47-E48)/(E46^2)+SQRT(((E47-E48)/(E46^2)-0.5)^2 + 2*E47/(E46^2)) -> 1.242048592 | F60: =0.5-(F47-F48)/(F46^2)+SQRT(((F47-F48)/(F46^2)-0.5)^2 + 2*F47/(F46^2)) -> 1.254983444
A61: F''(V) | B61: =IF(B44<B58,B59*B60*(B60-1)*(B44^(B60-2)),0) -> 0.0002193359096 | C61: =IF(C44<C58,C59*C60*(C60-1)*(C44^(C60-2)),0) -> 0.0002090392685 | D61: =IF(D44<D58,D59*D60*(D60-1)*(D44^(D60-2)),0) -> 0.0002384367552 | E61: =IF(E44<E58,E59*E60*(E60-1)*(E44^(E60-2)),0) -> 0.0002220665465 | F61: =IF(F44<F58,F59*F60*(F60-1)*(F44^(F60-2)),0) -> 0.0002193359096
A62: V-K | B62: =B44-B45 -> -100 | C62: =C44-C45 -> -50 | D62: =D44-D45 -> -100 | E62: =E44-E45 -> -150 | F62: =F44-F45 -> -100
A64: =A51 -> HEDGE | B64: -B57*B44 | C64: B51+C52
A65: ALTER HEDGE | C65: (C57-B57)*C44
A66: GAIN ROV | C66: -B50+C50
A67: GAIN V | C67: -(B51/B44)*(-C44+B44)
A68: NET GAIN | C68: C53+C54
A69: CUM GAIN | C69: SUM($C$55:C55)
A71: BUY A FIRM OWNING A PERPETUAL AMERICAN REAL CALL OPTION
A72: HEDGE BY SHORTING DELTA OF V BEGINNING OF EACH MONTH. | G72: RISK
A73: RISK BUYING CITY SHS | C73: =C34/$B$30 -> 0.2178742919 | D73: -0.2192173725 | E73: -0.02435748584 | F73: 0 | G73: =STDEV(C73:F73) -> 0.1788422217
A74: RISK CITY SHS HEDGED | C74: -0.07857085599 | D74: 0.07235649808 | E74: 0.080518358 | F74: -0.08459272646 | G74: =STDEV(C74:F74) -> 0.09132636184

Sheet Exercise 5.1
B1: American Perpetual Exchange Option
A2: INPUT
A3: V | B3: 300
A4: K | B4: 273
A5: sV | B5: 0.2
A6: sk | B6: 0.2
A7: r | B7: 0.04
A8: dV | B8: 0.04
A9: dk | B9: 0.04
A10: r | B10: 0.5
A11: OUTPUT
A12: W(V,K) | B12: =IF(B18<B17,B4*B14*(B18^B15),B13) -> 82.41758242 | C12: IF(B18<B17,B4*B14*(B18^B15),B13)
A13: V-K | B13: =B3-B4 -> 27 | C13: B3-B4
A14: A | B14: =(B17-1)/(B17^B15) -> 0.25 | C14: (B17-1)/(B17^B15)
A15: b1 | B15: =0.5-(B9-B8)/(B16^2)+SQRT(((B9-B8)/(B16^2)-0.5)^2 + (2*B9)/(B16^2)) -> 2 | C15: 0.5-(B9-B8)/(B16^2)+SQRT(((B9-B8)/(B16^2)-0.5)^2 + (2*B9)/(B16^2))
A16: h | B16: =SQRT(B5^2+B6^2-2*B10*B5*B6) -> 0.2 | C16: SQRT(B5^2+B6^2-2*B10*B5*B6)
A17: z* | B17: =(B15/(B15-1)) -> 2 | C17: (B15/(B15-1))
A18: z | B18: =B3/B4 -> 1.098901099 | C18: B3/B4
A19: =A12 -> W(V,K) | B19: =B20*(B4*(B17-1)*(B18/B17)^B15) -> 247252.7473 | C19: B20*(B4*(B17-1)*(B18/B17)^B15)
A20: Sq Feet | B20: 3000
A21: ROV | B21: =B20*B12 -> 247252.7473 | C21: B20*B12
A22: Z* | B22: =B20*B17*B4 -> 1638000

Sheet Exercise 5.2
B1: American Perpetual Exchange Option
A2: Exercise 5.2
A3: V | B3: 300000000
A4: K | B4: 300000000
A5: sV | B5: 1.12
A6: sK | B6: 0.95
A7: dV | B7: 0.02
A8: dK | B8: 0.02
A9: r | B9: 0
A10: OUTPUT
A11: W(V,K) | B11: =IF(B17<B16,B4*(B16-1)*(B17/B16)^B14,B13) -> 273813887 | C11: IF(B17<B16,B4*(B16-1)*(B17/B16)^B14,B13)
A12: V-K | B12: =B3-B4 -> 0 | C12: B3-B4
A13: A | B13: =(B16-1)/(B16^B14) -> 0.9127129568 | C13: (B16-1)/(B16^B14)
A14: b1 | B14: =0.5-(B8-B7)/(B15^2)+SQRT(((B8-B7)/(B15^2)-0.5)^2 + (2*B8)/(B15^2)) -> 1.018213406 | C14: 0.5-(B8-B7)/(B15^2)+SQRT(((B8-B7)/(B15^2)-0.5)^2 + (2*B8)/(B15^2))
A15: h | B15: =SQRT(B5^2+B6^2-2*B9*B5*B6) -> 1.468638826 | C15: SQRT(B5^2+B6^2-2*B9*B5*B6)
A16: z* | B16: =(B14/(B14-1)) -> 55.90461239 | C16: (B14/(B14-1))
A17: z | B17: =B3/B4 -> 1 | C17: B3/B4
A19: THE OPTION TO ACQUIRE IS WORTH $273 MILLION, DUE TO THE HIGH
A20: VOLALILITY OF BOTH COMPANIES. DON'T MAKE THE ACQUISITION
A21: UNTIL BLOCKBUSTER IS WORTH $16770 MILLION (WHILE BIOSURGERY
A22: IS WORTH THE CURRENT VALUE OF $300 MILLION).

Sheet Exercise 5.3
A1: American Multi-factor Perpetual Real Option
A2: Exercise 5.3 | B2: Stochastic P & Q
A3: DSP | B3: 1
A4: DS | B4: 2
A5: X | B5: =B3*B4 -> 2 | C5: B3*B4
A6: K | B6: =100*B4 -> 200 | C6: 100*B4
A7: s | B7: 0.2
A8: a | B8: 0.2
A9: r | B9: -0.5
A10: r | B10: 0.04
A11: m | B11: 0.01
A12: w | B12: 0.01
A13: OUTPUT
A14: n | B14: =B10-B11-B12 -> 0.02 | C14: B10-B11-B12
A15: V | B15: =B5/B14 -> 100 | C15: B5/B14
A16: P(P,Q) | B16: =IF(B5<B20,(B6/(B18-1))*((B5/B20)^B18),B17) -> 12.5 | C16: IF(B5<B20,(B6/(B18-1))*((B5/B20)^B18),B17)
A17: V-K | B17: =B15-B6 -> -100 | C17: B15-B6
A18: b1 | B18: =(1/B19^2)*(-(B9*B7*B8+B11+B12-0.5*(B19^2))+SQRT((B9*B7*B8+B11+B12-0.5*(B19^2))^2+(2*B10)*(B19^2))) -> 2
A19: z | B19: =SQRT(B7^2+B8^2+2*B9*B7*B8) -> 0.2 | C19: SQRT(B7^2+B8^2+2*B9*B7*B8)
A20: X* | B20: =B6*B14*(B18/(B18-1)) -> 8 | C20: B6*B14*(B18/(B18-1))
A21: b1 | B21: (1/B19^2)*(-(B9*B7*B8+B11+B12-0.5*(B19^2))+SQRT((B9*B7*B8+B11+B12-0.5*(B19^2))^2+(2*B10)*(B19^2)))
A22: V*-K | B22: =B20/B14-B6 -> 200 | C22: B20/B14-B6
A24: THE VALUE OF THIS OPPORTUNITY IS 12.50, EVEN THOUGH
A25: THE NET PRESENT VALUE IS VERY NEGATIVE.
A26: ROGroupie SHOULD NOT START THIS VENTURE UNTIL
A27: DS*DSP ARE OVER FOUR TIMES CURRENT EXPECTATIONS.

Sheet Problem 5.4
B1: American Perpetual Exchange Option
A2: Problem 5.4
A3: V | B3: 300
A4: K | B4: 273
A5: sV | B5: 0.3
A6: sK | B6: 0.2
A7: dV | B7: 0.03
A8: dK | B8: 0.02
A9: r | B9: 0
A10: SQ FT | B10: 3000
A11: W(V,K) | B11: =IF(B17<B16,B4*(B16-1)*(B17/B16)^B14,B13)*B10 -> 415450.3472 | C11: IF(B17<B16,B4*(B16-1)*(B17/B16)^B14,B13)
A12: V-K | B12: =(B3-B4)*B10 -> 81000 | C12: B3-B4
A13: A | B13: =(B16-1)/(B16^B14) -> 0.4454764422 | C13: (B16-1)/(B16^B14)
A14: b1 | B14: =0.5-(B8-B7)/(B15^2)+SQRT(((B8-B7)/(B15^2)-0.5)^2 + (2*B8)/(B15^2)) -> 1.377255848 | C14: 0.5-(B8-B7)/(B15^2)+SQRT(((B8-B7)/(B15^2)-0.5)^2 + (2*B8)/(B15^2))
A15: h | B15: =SQRT(B5^2+B6^2-2*B9*B5*B6) -> 0.3605551275 | C15: SQRT(B5^2+B6^2-2*B9*B5*B6)
A16: z* | B16: =(B14/(B14-1)) -> 3.650721004 | C16: (B14/(B14-1))
A17: z | B17: =B3/B4 -> 1.098901099 | C17: B3/B4
A19: THE OPTION TO BUILD IS WORTH £415,000, DUE TO THE LOW CORRELATION
A20: OF VALUE AND CONSTRUCTION COSTS. DON'T START CONSTRUCTION
A21: UNTIL HOUSE VALUE IS WORTH £2,989,350 (EVEN THOUGH THE
A22: CURRENT NET PRESENT VALUE IS POSITIVE). NOTE THAT THE
A23: OPTION TO BUILD IS WORTH ALMOST HALF THE CURRENT GROSS VALUE
A24: OF THE HOUSE WERE IT TO BE BUILT TODAY.

Sheet Problem 5.5
B1: American Perpetual Exchange Option
A2: Problem 5.5
A3: V | B3: 200000
A4: K | B4: 250000
A5: sV | B5: 0.3
A6: sK | B6: 0.3
A7: dV | B7: 0.02
A8: dK | B8: 0.02
A9: r | B9: 0.6
A11: W(V,K) | B11: =IF(B17<B16,B4*(B16-1)*(B17/B16)^B14,B13) -> 79450.74113 | C11: IF(B17<B16,B4*(B16-1)*(B17/B16)^B14,B13)
A12: V-K | B12: =(B3-B4) -> -50000 | C12: B3-B4
A13: A | B13: =(B16-1)/(B16^B14) -> 0.4341025622 | C13: (B16-1)/(B16^B14)
A14: b1 | B14: =0.5-(B8-B7)/(B15^2)+SQRT(((B8-B7)/(B15^2)-0.5)^2 + (2*B8)/(B15^2)) -> 1.397527468 | C14: 0.5-(B8-B7)/(B15^2)+SQRT(((B8-B7)/(B15^2)-0.5)^2 + (2*B8)/(B15^2))
A15: h | B15: =SQRT(B5^2+B6^2-2*B9*B5*B6) -> 0.2683281573 | C15: SQRT(B5^2+B6^2-2*B9*B5*B6)
A16: z* | B16: =(B14/(B14-1)) -> 3.515549442 | C16: (B14/(B14-1))
A17: z | B17: =B3/B4 -> 0.8 | C17: B3/B4
A19: THE INVESTMENT OPTION IS WORTH $79,451 DUE TO THE HIGH VOLATILITY
A20: OF VALUE AND COSTS, EVEN THOUGH THE NPV IS NEGATIVE. YM MA
A21: SHOULD TAKE UP THE OPTION ESPECIALLY IF THERE IS NO PREMIUM
A22: BUT NOT CONSTRUCT THE GENERATING PLANT
A23: UNTIL HER CONSUMPTION RISES TO $880,000 (PERHAPS DUE TO HIGHER
A24: ELECTRICITY PRICES) OR THE COST OF THE PLANT FALLS.
A25: THERE IS AN IMPLICIT ASSUMPTION THAT YM MA WILL LIVE FOREVER.

Sheet Problem 5.6
B1: American Perpetual Exchange Option
A2: Problem 5.6
A3: V | B3: 200000
A4: K | B4: 250000
A5: sV | B5: 0.3
A6: sK | B6: 1
A7: dV | B7: 0.02
A8: dK | B8: 0
A9: r | B9: 0
A11: W(V,K) | B11: =IF(B17<B16,B4*(B16-1)*(B17/B16)^B14,B13) -> 169267.4049 | C11: IF(B17<B16,B4*(B16-1)*(B17/B16)^B14,B13)
A12: V-K | B12: =(B3-B4) -> -50000 | C12: B3-B4
A13: A | B13: =(B16-1)/(B16^B14) -> 0.8532959236 | C13: (B16-1)/(B16^B14)
A14: b1 | B14: =0.5-(B8-B7)/(B15^2)+SQRT(((B8-B7)/(B15^2)-0.5)^2 + (2*B8)/(B15^2)) -> 1.036697248 | C14: 0.5-(B8-B7)/(B15^2)+SQRT(((B8-B7)/(B15^2)-0.5)^2 + (2*B8)/(B15^2))
A15: h | B15: =SQRT(B5^2+B6^2-2*B9*B5*B6) -> 1.044030651 | C15: SQRT(B5^2+B6^2-2*B9*B5*B6)
A16: z* | B16: =(B14/(B14-1)) -> 28.25 | C16: (B14/(B14-1))
A17: z | B17: =B3/B4 -> 0.8 | C17: B3/B4
A19: THE INVESTMENT OPTION IS WORTH $169,267 DUE TO THE HIGH VOLATILITY
A20: OF THE INVESTMENT COSTS, EVEN THOUGH THE NPV IS NEGATIVE. YM MA
A21: SHOULD TAKE UP THE OPTION ESPECIALLY IF THERE IS NO PREMIUM
A22: BUT NOT CONSTRUCT THE GENERATING PLANT
A23: UNTIL HER CONSUMPTION RISES TO $5,650,000 (VERY HIGH
A24: ELECTRICITY PRICES OR USAGE) OR THE COST OF THE PLANT FALLS.
A25: THERE IS AN IMPLICIT ASSUMPTION THAT YM MA WILL LIVE FOREVER.

Sheet Exercise 6.1
A1: EXERCISE 6.1
A2: SPOT GAS PRICE -OP COST | B2: =3.25*0.7 -> 2.275 | C2: 3.25*0.7
A3: I TRADITIONAL PRESENT VALUE | B3: =B7*(B2-B5) -> 209000 | C3: B7*(B1-B5)
A4: II EUROPEAN OPTION VALUE | B4: =B17*B7 -> 245705.7409 | C4: B17*B7
A5: I V(BE) | B5: =B8/B7 -> 2.066 | C5: B8/B7
A6: INPUT
A7: RESERVES (DISCOUNTED BBLS) | B7: 1000000
A8: PV DEVELOPMENT & OPS COST | B8: 2066000
A9: CONVENIENCE YIELD | B9: 0.08
A10: DISCOUNT RATE | B10: 0.05
A11: COST ESCALATION | B11: 0
A12: TIME TO DEVELOPMENT | B12: 4
A13: VOLATILITY | B13: 0.2
A14: NET DISCOUNT RATE | B14: =B15-B9 -> -0.03
A15: NET RATE | B15: =B10-B11 -> 0.05
A16: OUTPUT
A17: REAL EUROPEAN OPTION PRICE | B17: =EXP(-B9*B12)*B2*B20-B5*B21*EXP(-B15*B12) -> 0.2457057409 | C17: EXP(-B9*B12)*B1*B20-B5*B21*EXP(-B15*B12)
A18: d1 | B18: =(LN(B2/B5)+(B15-B9+0.5*(B13^2))*B12)/(B13*SQRT(B12)) -> 0.1409142043 | C18: (LN(B1/B5)+(B15-B9+0.5*(B13^2))*B12)/(B13*SQRT(B12))
A19: d2 | B19: =B18-B13*SQRT(B12) -> -0.2590857957 | C19: B18-B13*SQRT(B12)
A20: N(d1) | B20: =NORMSDIST(B18) -> 0.5560311396 | C20: NORMSDIST(B18)
A21: N(d2) | B21: =NORMSDIST(B19) -> 0.397784522 | C21: NORMSDIST(B19)
A23: IF THE PURCHASE PRICE (REAL OPTION PREMIUM) IS $250,000
A24: W W SHOULD ATTEMPT TO RENEGOTIATE (DOWNWARDS)
A25: THIS OFFER, OTHERWISE POLITELY DECLINE. ADARKO
A26: PROBABLY KNOWS HOW TO VALUE REAL OPTIONS IN THIS EXERCISE,
A27: AND BELIEVES WW IS A MOTLEY FOOL.

Sheet Exercise 6.2
A1: EXERCISE 6.2
A2: SPOT GAS PRICE -OP COST | B2: =3.25*0.7 -> 2.275
A3: I TRADITIONAL PRESENT VALUE | B3: =B11*(B2-B7) -> 209000
A4: II EUROPEAN OPTION VALUE | B4: =B21*B11 -> 245705.7409
A5: III FINITE AMERICAN OPTION | B5: =B29*B11 -> 406485.2805
A7: I V(BE) | B7: =B12/B11 -> 2.066 | C7: B12/B11
A8: III V(AF) | B8: =B40 -> 2.49070782 | C8: B40
A9: IV V(AP) | B9: =(B27/(B27-1))*B7 -> 2.977914032 | C9: (B27/(B27-1))*B6
A10: INPUT
A11: RESERVES (DISCOUNTED BBLS) | B11: 1000000
A12: PV DEVELOPMENT & OPS COST | B12: 2066000
A13: CONVENIENCE YIELD | B13: 0.08
A14: DISCOUNT RATE | B14: 0.05
A15: COST ESCALATION | B15: 0
A16: TIME TO DEVELOPMENT | B16: 4
A17: VOLATILITY | B17: 0.2
A18: NET DISCOUNT RATE | B18: =B19-B13 -> -0.03
A19: NET RATE | B19: =B14-B15 -> 0.05
A20: OUTPUT
A21: REAL EUROPEAN OPTION PRICE | B21: =EXP(-B13*B16)*B2*B24-B7*B25*EXP(-B19*B16) -> 0.2457057409 | C21: EXP(-B13*B16)*B1*B24-B6*B25*EXP(-B19*B16)
A22: d1 | B22: =(LN(B2/B7)+(B19-B13+0.5*(B17^2))*B16)/(B17*SQRT(B16)) -> 0.1409142043 | C22: (LN(B1/B6)+(B19-B13+0.5*(B17^2))*B16)/(B17*SQRT(B16))
A23: d2 | B23: =B22-B17*SQRT(B16) -> -0.2590857957 | C23: B22-B17*SQRT(B16)
A24: N(d1) | B24: =NORMSDIST(B22) -> 0.5560311396 | C24: NORMSDIST(B22)
A25: N(d2) | B25: =NORMSDIST(B23) -> 0.397784522 | C25: NORMSDIST(B23)
A26: AMERICAN PERPETUITY | B26: =IF(B2<B9,B28*(B2^B27),B2-B7) -> 0.3785375638 | C26: IF(B1<B9,B28*(B1^B27),B1-B6)
A27: b1 | B27: =0.5-(B19-B13)/(B17^2)+SQRT(((B19-B13)/(B17^2)-0.5)^2 + 2*B14/(B17^2)) -> 3.265564437 | C27: 0.5-(B19-B13)/(B17^2)+SQRT(((B19-B13)/(B17^2)-0.5)^2 + 2*B14/(B17^2))
A28: A | B28: =(B9-B7)/(B9^B27) -> 0.02584420725 | C28: (B9-B6)/(B9^B27)
A29: AMERICAN FINITE CALL OPTION | B29: =IF(B2>=B40,B2-B7,(B21+B32*(B2/B40)^B31)) -> 0.4064852805 | C29: IF(B1>=B40,B1-B6,(B21+B32*(B1/B40)^B31))
A30: c(V*) | B30: =EXP(-B13*B16)*B40*B37-B7*B39*EXP(-B19*B16) -> 0.3398062959 | C30: EXP(-B13*B16)*B40*B37-B6*B39*EXP(-B19*B16)
A31: g2 | B31: =((-(B35-1)+SQRT((B35-1)^2+(4*B34)/B33)))/2 -> 5.168435774 | C31: ((-(B35-1)+SQRT((B35-1)^2+(4*B34)/B33)))/2
A32: A2 | B32: =(B40/B31)*(1-EXP(-B13*B16)*NORMSDIST(B36)) -> 0.2567817731 | C32: (B40/B31)*(1-EXP(-B13*B16)*NORMSDIST(B36))
A33: h | B33: =1-EXP(-B19*B16) -> 0.1812692469 | C33: 1-EXP(-B19*B16)
A34: a | B34: =(2*B19)/(B17^2) -> 2.5 | C34: (2*B19)/(B17^2)
A35: b | B35: =(2*(B19-B13))/(B17^2) -> -1.5 | C35: (2*(B19-B13))/(B17^2)
A36: d1(V*) | B36: =(LN(B40/B7)+(B19-B13+(B17^2)/2)*B16)/(B17*SQRT(B16)) -> 0.3673814111 | C36: (LN(B40/B6)+(B19-B13+(B17^2)/2)*B16)/(B17*SQRT(B16))
A37: N(d1(V*) | B37: =NORMSDIST(B36) -> 0.6433327323 | C37: NORMSDIST(B36)
A38: d2(V*) | B38: =B36-B17*SQRT(B16) -> -0.0326185889 | C38: B36-B17*SQRT(B16)
A39: N(d2(V*) | B39: =NORMSDIST(B38) -> 0.486989373 | C39: NORMSDIST(B38)
A40: V* | B40: 2.49070782
A41: V* solver=0 | B41: =B30+((1-EXP(-B13*B16))*B37)*(B40/B31)+B7-B40 -> -3.724151565e-07 | C41: B30+((1-EXP(-B13*B16))*B37)*(B40/B31)+B6-B40
A42: Use Tools/Solver, set B41=0, changing B40.

Sheet Exercise 6.3
B1: AMERICAN FINITE CALL APPROXIMATION (BAW)
A2: EXERCISE 6.3
A3: I TRADITIONAL PRESENT VALUE | B3: =B9-B10 -> 100
A4: II EUROPEAN OPTION VALUE | B4: =B17 -> 111.8903106
A5: III FINITE AMERICAN OPTION | B5: =B22 -> 165.1810549
A6: V*(AF) | B6: =B33 -> 1159.064785
A8: INPUT
A9: ASSET VALUE | B9: 1100
A10: INVESTMENT COST | B10: 1000
A11: CONVENIENCE YIELD | B11: 0.08
A12: INTEREST RATE | B12: 0.04
A13: TIME TO DEVELOPMENT | B13: 2
A14: VOLATILITY | B14: 0.2
A16: OUTPUT
A17: REAL EUROPEAN OPTION PRICE | B17: =EXP(-B11*B13)*B9*B20-B10*B21*EXP(-B12*B13) -> 111.8903106 | C17: EXP(-B11*B13)*B9*B20-B10*B21*EXP(-B12*B13)
A18: d1 | B18: =(LN(B9/B10)+(B12-B11+0.5*(B14^2))*B13)/(B14*SQRT(B13)) -> 0.195551016 | C18: (LN(B9/B10)+(B12-B11+0.5*(B14^2))*B13)/(B14*SQRT(B13))
A19: d2 | B19: =B18-B14*SQRT(B13) -> -0.08729169643 | C19: B18-B14*SQRT(B13)
A20: N(d1) | B20: =NORMSDIST(B18) -> 0.5775191983 | C20: NORMSDIST(B18)
A21: N(d2) | B21: =NORMSDIST(B19) -> 0.4652198271 | C21: NORMSDIST(B19)
A22: AMERICAN FINITE CALL OPTION | B22: =IF(B9>=B33,B9-B10,(B17+B25*(B9/B33)^B24)) -> 165.1810549 | C22: IF(B9>=B33,B9-B10,(B17+B25*(B9/B33)^B24))
A23: c(V*) | B23: =EXP(-B11*B13)*B33*B30-B10*B32*EXP(-B12*B13) -> 142.7679065 | C23: EXP(-B11*B13)*B33*B30-B10*B32*EXP(-B12*B13)
A24: g2 | B24: =((-(B28-1)+SQRT((B28-1)^2+(4*B27)/B26)))/2 -> 6.816326919 | C24: ((-(B28-1)+SQRT((B28-1)^2+(4*B27)/B26)))/2
A25: A2 | B25: =(B33/B24)*(1-EXP(-B11*B13)*NORMSDIST(B29)) -> 76.11755526 | C25: (B33/B24)*(1-EXP(-B11*B13)*NORMSDIST(B29))
A26: h | B26: =1-EXP(-B12*B13) -> 0.07688365361 | C26: 1-EXP(-B12*B13)
A27: a | B27: =(2*B12)/(B14^2) -> 2 | C27: (2*B12)/(B14^2)
A28: b | B28: =(2*(B12-B11))/(B14^2) -> -2 | C28: (2*(B12-B11))/(B14^2)
A29: d1(V*) | B29: =(LN(B33/B10)+(B12-B11+(B14^2)/2)*B13)/(B14*SQRT(B13)) -> 0.3804710385 | C29: (LN(B33/B10)+(B12-B11+(B14^2)/2)*B13)/(B14*SQRT(B13))
A30: N(d1(V*) | B30: =NORMSDIST(B29) -> 0.6482021045 | C30: NORMSDIST(B29)
A31: d2(V*) | B31: =B29-B14*SQRT(B13) -> 0.09762832604 | C31: B29-B14*SQRT(B13)
A32: N(d2(V*) | B32: =NORMSDIST(B31) -> 0.5388862845 | C32: NORMSDIST(B31)
A33: V* | B33: 1159.064785
A34: V* solver=0 | B34: =B23+((1-EXP(-B11*B13))*B30)*(B33/B24)+B10-B33 -> 0.0001076513288 | C34: B23+((1-EXP(-B11*B13))*B30)*(B33/B24)+B10-B33
A35: Use Tools/Solver, set B34=0, changing B33.
A37: Alfred should wait until the asset value increases to about $1160 before investing in this new model,
A38: assuming that the opportunity to acquire the model is proprietary, and only the benefit is stochastic.

Sheet Problem 6.4
B1: LEE-PAXSON REAL AMERICAN PUT OPTION APPROXIMATION, CEA
A2: PROBLEM 6.4
A3: ASSET VALUE, V | B3: 1100
A4: GUARANTEE , K | B4: 800
A5: T/2 | B5: =B6/2 -> 1
A6: T | B6: 2
A7: INTEREST RATE | B7: 0.04
A8: DIVIDEND | B8: 0.08
A9: VALUE VOLATILITY | B9: 0.2
A10: AMERICAN PUT APPROX(CEA) | B10: =MAX(B29-((B29-B12)^2)/(B29-B11), B4-B3) -> 26.04689323 | C10: MAX(B29-((B29-B12)^2)/(B29-B11), B4-B3)
A11: P1 EQ 6.13 | B11: =B4*EXP(-B7*B6)*NORMSDIST(-B16)-B3*EXP(-B8*B6)*NORMSDIST(-B15) -> 26.04688958 | C11: B4*EXP(-B7*B6)*NORMSDIST(-B16)-B3*EXP(-B8*B6)*NORMSDIST(-B15)
A12: P2 EQ 6.14 | B12: =B4*EXP(-B7*B6)*B28-B3*EXP(-B8*B6)*B27+B4*EXP(-B7*B5)*B26-B3*EXP(-B8*B5)*B25 -> 26.0468914 | C12: B4*EXP(-B7*B6)*B28-B3*EXP(-B8*B6)*B27+B4*EXP(-B7*B5)*B26-B3*EXP(-B8*B5)*B25
A13: t2-t1 | B13: =B6-B5 -> 1 | C13: B6-B5
A14: V* | B14: 407.9368595
A15: d1 | B15: =(LN(B3/B4)+((B7-B8+0.5*B9^2)*B6))/(B9*SQRT(B6)) -> 0.9844826076 | C15: (LN(B3/B4)+((B7-B8+0.5*B9^2)*B6))/(B9*SQRT(B6))
A16: d2 | B16: =B15-B9*SQRT(B6) -> 0.7016398951 | C16: B15-B9*SQRT(B6)
A17: N1 | B17: =NORMSDIST(B15) -> 0.8375608606 | C17: NORMSDIST(B15)
A18: N2 | B18: =NORMSDIST(B16) -> 0.7585481175 | C18: NORMSDIST(B16)
A19: Value Match EQ 6.15 | B19: =B4-B14-B4*EXP(-B7*B13)*NORMSDIST(-B24)+B14*EXP(-B8*B13)*NORMSDIST(-B22) -> -7.113042216e-06 | C19: B4-B14-B4*EXP(-B7*B13)*NORMSDIST(-B24)+B14*EXP(-B8*B13)*NORMSDIST(-B22)
A20: r(t1/t2) | B20: =SQRT(B5/B6) -> 0.7071067812 | C20: SQRT(B5/B6)
A21: d1,t1 | B21: =(LN(B3/B14)+(B7-B8+0.5*B9^2)*B5)/B9*SQRT(B5) -> 4.859765262 | C21: (LN(B3/B14)+(B7-B8+0.5*B9^2)*B5)/B9*SQRT(B5)
A22: d1,t2 | B22: =(LN(B14/B4)+(B7-B8+0.5*B9^2)*B13)/B9*SQRT(B13) -> -3.467496607 | C22: (LN(B14/B4)+(B7-B8+0.5*B9^2)*B13)/B9*SQRT(B13)
A23: d2,t1 | B23: =B21-B9*SQRT(B5) -> 4.659765262 | C23: B21-B9*SQRT(B5)
A24: d2,t2 | B24: =B22-B9*SQRT(B13) -> -3.667496607 | C24: B22-B9*SQRT(B13)
A25: N(-d1,t1) | B25: =NORMSDIST(-B21) -> 5.876252329e-07 | C25: NORMSDIST(-B21)
A26: N(-d2,t1) | B26: =NORMSDIST(-B23) -> 1.582850999e-06 | C26: NORMSDIST(-B23)
A27: B1 | B27: =BiVariateNormalCDF(B21,-B15,-B20) -> 0.1624385519 | C27: BiVariateNormalCDF(B21,-B15,-B20)
A28: B2 | B28: =BiVariateNormalCDF(B23,-B16,-B20) -> 0.2414502998 | C28: BiVariateNormalCDF(B23,-B16,-B20)
A29: P (∞) EQ 6.17 | B29: =(-B4/(B31-1))*((B3/B30)^B31) -> 241.238342 | C29: (-B4/(B31-1))*((B3/B30)^B31)
A30: V* (∞) EQ 6.18 | B30: =(B31/(B31-1))*B4 -> 287.6894374 | C30: (B31/(B31-1))*B4
A31: h EQ 6.19 | B31: =(-(B7-B8-0.5*B9^2)-SQRT((B7-B8-0.5*B9^2)^2+2*(B9^2)*B7))/(B9^2) -> -0.5615528128 | C31: (-(B7-B8-0.5*B9^2)-SQRT((B7-B8-0.5*B9^2)^2+2*(B9^2)*B7))/(B9^2)
A33: Use Tools/Solver, set B19=0, changing B14.
A35: At $55, PHF is charging too much for this put option, so Alfred Marshall should wait.
A36: But if PHF lowers the quarantee premium to below $26, or raises the guarantee to $900,
A37: Alfred should take up the guarantee but not exercise it until the asset value falls below $407 (if X=800), a sharp
A38: decline from the current value.

Sheet Problem 6.5
B1: LEE-PAXSON REAL AMERICAN PUT OPTION APPROXIMATION, CEA
A2: PROBLEM 6.5
A3: RENT, V | B3: 42
A4: TAKE BACK RENT, K | B4: 40
A5: T/2 | B5: =B6/2 -> 0.5
A6: T | B6: 1
A7: INTEREST RATE | B7: 0.05
A8: YIELD | B8: 0
A9: RENT VOLATILITY | B9: 0.4
A10: AMERICAN PUT APPROX(CEA) | B10: =MAX(B29-((B29-B12)^2)/(B29-B11), B4-B3) -> 4.194690133 | C10: MAX(B29-((B29-B12)^2)/(B29-B11), B4-B3)
A11: P1 EQ 6.13 | B11: =B4*EXP(-B7*B6)*NORMSDIST(-B16)-B3*EXP(-B8*B6)*NORMSDIST(-B15) -> 4.559041814 | C11: B4*EXP(-B7*B6)*NORMSDIST(-B16)-B3*EXP(-B8*B6)*NORMSDIST(-B15)
A12: P2 EQ 6.14 | B12: =B4*EXP(-B7*B6)*B28-B3*EXP(-B8*B6)*B27+B4*EXP(-B7*B5)*B26-B3*EXP(-B8*B5)*B25 -> 4.378759732 | C12: B4*EXP(-B7*B6)*B28-B3*EXP(-B8*B6)*B27+B4*EXP(-B7*B5)*B26-B3*EXP(-B8*B5)*B25
A13: t2-t1 | B13: =B6-B5 -> 0.5 | C13: B6-B5
A14: V* | B14: 31.07311843
A15: d1 | B15: =(LN(B3/B4)+((B7-B8+0.5*B9^2)*B6))/(B9*SQRT(B6)) -> 0.4469754104 | C15: (LN(B3/B4)+((B7-B8+0.5*B9^2)*B6))/(B9*SQRT(B6))
A16: d2 | B16: =B15-B9*SQRT(B6) -> 0.04697541042 | C16: B15-B9*SQRT(B6)
A17: N1 | B17: =NORMSDIST(B15) -> 0.6725535929 | C17: NORMSDIST(B15)
A18: N2 | B18: =NORMSDIST(B16) -> 0.5187335872 | C18: NORMSDIST(B16)
A19: Value Match EQ 6.15 | B19: =B4-B14-B4*EXP(-B7*B13)*NORMSDIST(-B24)+B14*EXP(-B8*B13)*NORMSDIST(-B22) -> 4.160875804e-06 | C19: B4-B14-B4*EXP(-B7*B13)*NORMSDIST(-B24)+B14*EXP(-B8*B13)*NORMSDIST(-B22)
A20: r(t1/t2) | B20: =SQRT(B5/B6) -> 0.7071067812 | C20: SQRT(B5/B6)
A21: d1,t1 | B21: =(LN(B3/B14)+(B7-B8+0.5*B9^2)*B5)/B9*SQRT(B5) -> 0.6475799373 | C21: (LN(B3/B14)+(B7-B8+0.5*B9^2)*B5)/B9*SQRT(B5)
A22: d1,t2 | B22: =(LN(B14/B4)+(B7-B8+0.5*B9^2)*B13)/B9*SQRT(B13) -> -0.3315205935 | C22: (LN(B14/B4)+(B7-B8+0.5*B9^2)*B13)/B9*SQRT(B13)
A23: d2,t1 | B23: =B21-B9*SQRT(B5) -> 0.3647372248 | C23: B21-B9*SQRT(B5)
A24: d2,t2 | B24: =B22-B9*SQRT(B13) -> -0.614363306 | C24: B22-B9*SQRT(B13)
A25: N(-d1,t1) | B25: =NORMSDIST(-B21) -> 0.2586283385 | C25: NORMSDIST(-B21)
A26: N(-d2,t1) | B26: =NORMSDIST(-B23) -> 0.3576537843 | C26: NORMSDIST(-B23)
A27: B1 | B27: =BiVariateNormalCDF(B21,-B15,-B20) -> 0.1445372117 | C27: BiVariateNormalCDF(B21,-B15,-B20)
A28: B2 | B28: =BiVariateNormalCDF(B23,-B16,-B20) -> 0.1934018601 | C28: BiVariateNormalCDF(B23,-B16,-B20)
A29: P (∞) EQ 6.17 | B29: =(-B4/(B31-1))*((B3/B30)^B31) -> 13.14029065 | C29: (-B4/(B31-1))*((B3/B30)^B31)
A30: V* (∞) EQ 6.18 | B30: =(B31/(B31-1))*B4 -> 15.38461538 | C30: (B31/(B31-1))*B4
A31: h EQ 6.19 | B31: =(-(B7-B8-0.5*B9^2)-SQRT((B7-B8-0.5*B9^2)^2+2*(B9^2)*B7))/(B9^2) -> -0.625 | C31: (-(B7-B8-0.5*B9^2)-SQRT((B7-B8-0.5*B9^2)^2+2*(B9^2)*B7))/(B9^2)
A33: Use Tools/Solver, set B19=0, changing B14.
A35: This right is worth over £4 per SF or around 10% of the current rent. If Global can exercise this right
A36: anytime over the next year, it should do so if rent falls to £31 (when the intrinsic value would be £9).
A37: Also, the put with any positive intrinsic value just before the end of the year should be exercised.
A38: Per square foot calculations should be multiplied by 10,000 to figure the total value of this arrangement.

Sheet Problem 6.6
B1: LEE-PAXSON REAL AMERICAN PUT OPTION APPROXIMATION, CEAM
A2: PROBLEM 6.6
A3: N | B3: 1 | C3: =B3+1 -> 2 | D3: =C3+1 -> 3 | E3: 4 | F3: 5 | G3: 6 | H3: 7 | I3: 8
A4: BJ T/N | B4: =(B3*B5)/8 -> 0.5 | C4: 1 | D4: 1.5 | E4: 2 | F4: 2.5 | G4: 3 | H4: 3.5 | I4: =(I3*I5)/8.01 -> 3.995006242
A5: T | B5: 4 | C5: =B5 -> 4 | D5: 4 | E5: 4 | F5: 4 | G5: 4 | H5: 4 | I5: 4
A6: INTEREST RATE | B6: 0.05 | C6: 0.05 | D6: 0.05 | E6: 0.05 | F6: 0.05 | G6: 0.05 | H6: 0.05 | I6: 0.05
A7: YIELD | B7: 0 | C7: 0 | D7: 0 | E7: 0 | F7: 0 | G7: 0 | H7: 0 | I7: 0
A8: VALUE VARIANCE | B8: =B9^2 -> 0.16 | C8: 0.16 | D8: 0.16 | E8: 0.16 | F8: 0.16 | G8: 0.16 | H8: 0.16 | I8: 0.16
A9: VALUE VOLATILITY | B9: 0.4 | C9: 0.4 | D9: 0.4 | E9: 0.4 | F9: 0.4 | G9: 0.4 | H9: 0.4 | I9: 0.4
A10: ASSET VALUE, V | B10: 42 | C10: 42 | D10: 42 | E10: 42 | F10: 42 | G10: 42 | H10: 42 | I10: 42
A11: PUT EXERCISE PRICE, K | B11: 40 | C11: =B11 -> 40 | D11: =C11 -> 40 | E11: 40 | F11: 40 | G11: 40 | H11: 40 | I11: 40
A12: P1 EQ 6.13 | B12: =B11*EXP(-B6*B5)*NORMSDIST(-B23)-B10*EXP(-B7*B5)*NORMSDIST(-B22) -> 7.517102533 | C12: 7.517102533 | D12: 7.517102533 | E12: 7.517102533 | F12: 7.517102533 | G12: 7.517102533 | H12: 7.517102533 | I12: 7.517102533
A13: P2 EQ 6.14 | B13: =B11*EXP(-B6*B5)*B36-B10*EXP(-B7*B5)*B35+B11*EXP(-B6*B4)*B34-B10*EXP(-B7*B4)*B33 -> 7.647114522 | C13: 7.872478338 | D13: 8.013541629 | E13: 8.066875058 | F13: 8.04343238 | G13: 7.950214318 | H13: 7.785820997 | I13: 7.520696963
A14: AMERICAN PUT APPROX, CEAM | B14: =MAX(B16-((B16-B13)^2)/(B16-B12), B11-B10) -> 7.771797259 | C14: 8.188036538 | D14: 8.432278871 | E14: 8.521353598 | F14: 8.482421778 | G14: 8.324183637 | H14: 8.031773056 | I14: 7.52428732
A15: P1(s*) EQ A3 | B15: =B11*EXP(-B6*B5)*NORMSDIST(-B40)-B10*EXP(-B7*B5)*NORMSDIST(-B39) -> 10.6888644 | C15: 10.6888644 | D15: 10.6888644 | E15: 10.6888644 | F15: 10.6888644 | G15: 10.6888644 | H15: 10.6888644 | I15: 10.6888644
A16: U* EQ A6 | B16: =MIN(B17,B15) -> 10.6888644 | C16: 10.6888644 | D16: 10.6888644 | E16: 10.6888644 | F16: 10.6888644 | G16: 10.6888644 | H16: 10.6888644 | I16: 10.6888644
A17: P (∞) EQ 6.17 | B17: =(-B11/(B19-1))*((B10/B18)^B19) -> 13.14029065 | C17: 13.14029065 | D17: 13.14029065 | E17: 13.14029065 | F17: 13.14029065 | G17: 13.14029065 | H17: 13.14029065 | I17: 13.14029065
A18: V* (∞) EQ 6.18 | B18: =(B19/(B19-1))*B11 -> 15.38461538 | C18: 15.38461538 | D18: 15.38461538 | E18: 15.38461538 | F18: 15.38461538 | G18: 15.38461538 | H18: 15.38461538 | I18: 15.38461538
A19: h | B19: =(-(B6-B7-0.5*B8)-SQRT((B6-B7-0.5*B8)^2+2*B8*B6))/B8 -> -0.625 | C19: =(-(C6-C7-0.5*C8)-SQRT((C6-C7-0.5*C8)^2+2*C8*C6))/C8 -> -0.625 | D19: =(-(D6-D7-0.5*D8)-SQRT((D6-D7-0.5*D8)^2+2*D8*D6))/D8 -> -0.625 | E19: -0.625 | F19: -0.625 | G19: -0.625 | H19: -0.625 | I19: -0.625
A20: t2-t1 | B20: =B5-B4 -> 3.5 | C20: =C5-C4 -> 3 | D20: 2.5 | E20: 2 | F20: 1.5 | G20: 1 | H20: 0.5 | I20: 0.004993757803
A21: V* | B21: 27.96132409 | C21: 27.94319308 | D21: 27.98826513 | E21: 28.12814917 | F21: 28.42595583 | G21: 29.01778826 | H21: 30.32336923 | I21: 33
A22: d1 | B22: =(LN(B10/B11)+((B6-B7+0.5*B8)*B5))/(SQRT(B8*B5)) -> 0.7109877052 | C22: =(LN(C10/C11)+((C6-C7+0.5*C8)*C5))/(SQRT(C8*C5)) -> 0.7109877052 | D22: 0.7109877052 | E22: 0.7109877052 | F22: 0.7109877052 | G22: 0.7109877052 | H22: 0.7109877052 | I22: 0.7109877052
A23: d2 | B23: =B22-SQRT(B8*B5) -> -0.08901229479 | C23: -0.08901229479 | D23: -0.08901229479 | E23: -0.08901229479 | F23: -0.08901229479 | G23: -0.08901229479 | H23: -0.08901229479 | I23: -0.08901229479
A24: N1 | B24: =NORMSDIST(B22) -> 0.7614540727 | C24: =NORMSDIST(C22) -> 0.7614540727 | D24: 0.7614540727 | E24: 0.7614540727 | F24: 0.7614540727 | G24: 0.7614540727 | H24: 0.7614540727 | I24: 0.7614540727
A25: N2 | B25: =NORMSDIST(B23) -> 0.4645360695 | C25: 0.4645360695 | D25: 0.4645360695 | E25: 0.4645360695 | F25: 0.4645360695 | G25: 0.4645360695 | H25: 0.4645360695 | I25: 0.4645360695
A26: Value Match EQ 6.15 | B26: =B11-B21-B11*EXP(-B6*B20)*NORMSDIST(-B32)+B21*EXP(-B7*B20)*NORMSDIST(-B30) -> -4.298745598e-05 | C26: 6.811208085e-05 | D26: -0.00010440759 | E26: 6.449348502e-05 | F26: -3.651462414e-05 | G26: 4.039171861e-05 | H26: 7.950689368e-05 | I26: 0.009986268828
A27: SSE | B27: =B26^2 -> 1.847921371e-09 | C27: 4.639255558e-09 | D27: 1.090094485e-08 | E27: 4.15940961e-09 | F27: 1.333317776e-09 | G27: 1.631490932e-09 | H27: 6.321346142e-09 | I27: 9.97255651e-05
A28: r(t1/t2) | B28: =SQRT(B4/B5) -> 0.3535533906 | C28: =SQRT(C4/C5) -> 0.5 | D28: 0.6123724357 | E28: 0.7071067812 | F28: 0.790569415 | G28: 0.8660254038 | H28: 0.9354143467 | I28: 0.9993755853
A29: d1,t1 | B29: =(LN(B10/B21)+(B6-B7+0.5*B8)*B4)/(SQRT(B8*B4)) -> 1.668232288 | C29: 1.343739969 | D29: 1.226549938 | E29: 1.168315046 | F29: 1.131094467 | G29: 1.09661995 | H29: 1.043322331 | I29: 0.9512350505
A30: d1,t2 | B30: =(LN(B21/B11)+(B6-B7+0.5*B8)*B20)/(SQRT(B8*B20)) -> 0.1295452908 | C30: 0.04516925339 | D30: -0.05074528173 | E30: -0.1628265909 | F30: -0.2991986173 | G30: -0.4774260598 | H30: -0.7493945139 | I30: -6.7826564
A31: d2,t1 | B31: =B29-SQRT(B8*B4) -> 1.385389575 | C31: 0.9437399686 | D31: 0.7366519892 | E31: 0.6026296214 | F31: 0.4986389351 | G31: 0.4037996271 | H31: 0.2949908535 | I31: 0.1517345822
A32: d2,t2 | B32: =B30-SQRT(B8*B20) -> -0.6187861866 | C32: -0.6476510696 | D32: -0.6832008138 | E32: -0.7285120159 | F32: -0.7890965659 | G32: -0.8774260598 | H32: -1.032237226 | I32: -6.81092301
A33: N(-d1,t1) | B33: =NORMSDIST(-B29) -> 0.04763481183 | C33: =NORMSDIST(-C29) -> 0.08951624392 | D33: 0.1099958975 | E33: 0.1213398542 | F33: 0.1290076664 | G33: 0.1364037814 | H33: 0.148399516 | I33: 0.1707425346
A34: N(-d2,t1) | B34: =NORMSDIST(-B31) -> 0.08296668842 | C34: =NORMSDIST(-C31) -> 0.1726512721 | D34: 0.2306670052 | E34: 0.2733775551 | F34: 0.3090168854 | G34: 0.3431800354 | H34: 0.3840004334 | I34: 0.4396981401
A35: B1 | B35: =BiVariateNormalCDF(B29,-B22,-B28) -> 0.2142291875 | C35: =BiVariateNormalCDF(C29,-C22,-C28) -> 0.1862040806 | D35: 0.1664711135 | E35: 0.1505560275 | F35: 0.1359199751 | G35: 0.1203620793 | H35: 0.09953332372 | I35: 0.06780342767
A36: B2 | B36: =BiVariateNormalCDF(B31,-B23,-B28) -> 0.4705048972 | C36: =BiVariateNormalCDF(C31,-C23,-C28) -> 0.393398352 | D36: 0.3378755345 | E36: 0.2928927614 | F36: 0.2522848788 | G36: 0.2112803474 | H36: 0.1619862773 | I36: 0.09576579032
A37: VOL* EQ A2 | B37: =B9+(B11/B10)*(10*(B6-B7)*(B6-B7)+B38*B9)*SQRT(B5) -> 0.5238095238 | C37: 0.5238095238 | D37: 0.5238095238 | E37: 0.5238095238 | F37: 0.5238095238 | G37: 0.5238095238 | H37: 0.5238095238 | I37: 0.5238095238
A38: a | B38: 0.1 | C38: =B38 -> 0.1 | D38: 0.1 | E38: 0.1 | F38: 0.1 | G38: 0.1 | H38: 0.1 | I38: 0.1
A39: d1 | B39: =(LN(B10/B11)+((B6-B7+0.5*B37^2)*B5))/(B37*SQRT(B5)) -> 0.7612910442 | C39: =(LN(C10/C11)+((C6-C7+0.5*C37^2)*C5))/(C37*SQRT(C5)) -> 0.7612910442 | D39: 0.7612910442 | E39: 0.7612910442 | F39: 0.7612910442 | G39: 0.7612910442 | H39: 0.7612910442 | I39: 0.7612910442
A40: d2 | B40: =B39-B37*SQRT(B5) -> -0.2863280035 | C40: =C39-C37*SQRT(C5) -> -0.2863280035 | D40: -0.2863280035 | E40: -0.2863280035 | F40: -0.2863280035 | G40: -0.2863280035 | H40: -0.2863280035 | I40: -0.2863280035
H42: MAX | I42: =MAX(B14:I14) -> 8.521353598
A43: Use Tools/Solver, set I43=0, changing B21:I21 | C43: CEAM is Max B14:I14 | I43: =SUM(B27:I27) -> 9.975639878e-05
A44: AN ACCURATE VALUE IS £8,521,400. THE PUTBACK SHOULD BE EXECUTED WHEN RENTS=£28 OR AT YEAR END,
A45: IF THE THEN RENTS <£40 PER SQUARE FOOT.
A47: =A12 -> P1 EQ 6.13 | B47: J11*EXP(-J6*J5)*NORMSDIST(-J23)-J10*EXP(-J7*J5)*NORMSDIST(-J22)
A48: =A13 -> P2 EQ 6.14 | B48: J11*EXP(-J6*J5)*J36-J10*EXP(-J7*J5)*J35+J11*EXP(-J6*J4)*J34-J10*EXP(-J7*J4)*J33
A49: AMERICAN PUT APPROX, CEAM | B49: MAX(J16-((J16-J13)^2)/(J16-J12), J11-J10)
A50: P1(s*) EQ A3 | B50: J11*EXP(-J6*J5)*NORMSDIST(-J41)-J10*EXP(-J7*J5)*NORMSDIST(-J40)
A51: U* EQ A6 | B51: MIN(J17,J15)
A52: P (∞) EQ 6.17 | B52: (-J11/(J19-1))*((J10/J18)^J19)
A53: V* (∞) EQ 6.18 | B53: (J19/(J19-1))*J11
A54: h | B54: (-(J6-J7-0.5*J8)-SQRT((J6-J7-0.5*J8)^2+2*J8*J6))/J8
A55: =A22 -> d1 | B55: (LN(J10/J11)+((J6-J7+0.5*J8)*J5))/(SQRT(J8*J5))
A56: d2 | B56: J22-SQRT(J8*J5)
A57: N1 | B57: NORMSDIST(J22)
A58: N2 | B58: NORMSDIST(J23)
A59: Value Match EQ 6.15 | B59: J11-J21-J11*EXP(-J6*J20)*NORMSDIST(-J32)+J21*EXP(-J7*J20)*NORMSDIST(-J30)
A60: SSE | B60: J26^2
A61: r(t1/t2) | B61: SQRT(J4/J5)
A62: =A29 -> d1,t1 | B62: (LN(J10/J21)+(J6-J7+0.5*J8)*J4)/(SQRT(J8*J4))
A63: d1,t2 | B63: (LN(J21/J11)+(J6-J7+0.5*J8)*J20)/(SQRT(J8*J20))
A64: d2,t1 | B64: J29-SQRT(J8*J4)
A65: d2,t2 | B65: J30-SQRT(J8*J20)
A66: N(-d1,t1) | B66: NORMSDIST(-J29)
A67: N(-d2,t1) | B67: NORMSDIST(-J31)
A68: B1 | B68: BiVariateNormalCDF(J29,-J22,-J28)
A69: B2 | B69: BiVariateNormalCDF(J31,-J23,-J28)
A70: VOL* EQ A2 | B70: J9+(J11/J10)*(10*(J6-J7)*(J6-J7)+J38*J9)*SQRT(J5)
A71: =A39 -> d1 | B71: (LN(J10/J11)+((J6-J7+0.5*J37^2)*J5))/(J37*SQRT(J5))
A72: =A40 -> d2 | B72: J39-J37*SQRT(J5)

Sheet Exercise 7.1
A1: STAGE ONE | C1: STAGE TWO | E1: Exercise 7.1
A2: INPUT | D2: INPUT
A3: V | B3: 100 | C3: =B3 -> 100 | D3: V | E3: STAGE | F3: VOLATILITY | G3: f | I3: V^ | J3: V^-SKN
A4: K1 | B4: 90 | C4: =B4 -> 90 | D4: K1 | E4: 1 | F4: =B33 -> 0.2 | G4: =B27 -> 3 | I4: =B29 -> 135 | J4: =I4-B4 -> 44.99999997
A5: K2 | B5: 10 | C5: 10 | D5: K2 | E5: 2 | F5: =C33 -> 0.4472135955 | G5: =C34 -> 1.366025404 | I5: =C29 -> 126.8368501 | J5: =I5-B5-B4 -> 26.8368501
A6: sV | B6: 0.2 | C6: 0.2 | D6: sV
A7: sK1 | B7: 0.2 | C7: 0.2 | D7: sK1 | E7: STAGE | F7: ROV | G7: A | H7: b | I7: h1 | J7: h2
A8: sK2 | B8: =B7 -> 0.2 | C8: 0.2 | D8: sK2 | E8: 1 | F8: =B35 -> 18.28989458 | G8: =B26 -> 0.1481481471 | H8: =B27 -> 3 | I8: =B28 -> -2.000000001
A9: r VK1 | B9: 0.5 | C9: 0.5 | D9: r VK1 | E9: 2 | F9: =C35 -> 10.31290607 | G9: =C26 -> 0.03329230481 | H9: =C27 -> 4.098076211 | I9: =C28 -> -2.732050805 | J9: =C30 -> -0.3660254026
A10: r VK2 | B10: 0.5 | C10: 0.5 | D10: r VK2
A11: r K1K2 | B11: 0 | C11: 0 | D11: r K1K2 | E11: CALCULATOR RESULT
A12: r | B12: 0.04 | C12: 0.04 | D12: r | E12: STEP 1 | F12: V1^ | G12: =(G4/(G4-1))*B4 -> 135 | H12: (G4/(G4-1))*B4
A13: qV | B13: 0 | C13: 0 | D13: qV | E13: STEP 2 | F13: A1 | G13: =(G4^-G4)*(G4-1)^(G4-1) -> 0.1481481481 | H13: (G4^-G4)*(G4-1)^(G4-1)
A14: qK1 | B14: 0.04 | C14: 0.04 | D14: qK1 | E14: STEP 3 | F14: ROV1 | G14: =G13*(B3^G4)*B4^(1-G4) -> 18.28989483 | H14: G13*(B3^G4)*B4^(1-G4)
A15: qK2 | B15: 0.04 | C15: 0.04 | D15: qK2 | E15: STEP 4 | F15: V2^ | G15: =(G4/(G4-1))*((G5*(G4-1)/(G5-1))^(1/G4))*(B4^((G4-1)/G4))*(B5^(1/G4)) -> 126.8368496 | H15: (G4/(G4-1))*((G5*(G4-1)/(G5-1))^(1/G4))*(B4^((G4-1)/G4))*(B5^(1/G4))
A16: l1 | B16: 0 | C16: 0 | D16: l1 | E16: STEP 5 | F16: B | G16: =((G5-1)^(G5-1))/(G5^G5) -> 0.4520577218 | H16: ((G5-1)^(G5-1))/(G5^G5)
A17: l2 | B17: 0.05 | C17: 0.05 | D17: l2 | E17: STEP 6 | F17: ROV2 | G17: =G16*(G14^G5)*(B5^(1-G5)) -> 10.31290611 | H17: G16*(G14^G5)*(B4^(1-G5))
A18: s1^2 | B18: =B6^2+B7^2-2*B9*B6*B7 -> 0.04 | C18: =(B27^2)*(C6^2)+((1-B27)^2)*(C7^2)+(C8^2)+2*B27*(1-B27)*C9*C6*C7-2*B27*C10*C6*C8-2*(1-B27)*C11*C7*C8 -> 0.2 | D18: s2^2
A19: Q(b,h) | B19: =0.5*(B18)*B27*(B27-1)+B27*(B13-B14)-(B12+B16-B14) -> 3.138322935e-13 | C19: =0.5*(C18)*C34*(C34-1)+C34*(C12+C16-C15)-(C12+C17-C15) -> -1.719457909e-13 | D19: Q(b,h) | E19: 0.5*(C18)*C34*(C34-1)+C34*(C12+C16-C15)-(C12+C17-C15)
A20: SP1 | B20: =B27*B26*(B29^(B27-1))*(B31^B28)-1 -> -1.448266862e-08 | C20: =C27*C26*(C29^(C27-1))*(C31^C28)*(C32^C30)-B27*B26*(C29^(B27-1))*(C31^(1-B27)) -> 6.882336701e-09 | D20: SP1 | E20: C27*C26*(C29^(C27-1))*(C31^C28)*(C32^C30)-B27*B26*(C29^(B27-1))*(C31^(1-B27))
A21: SP2 | B21: =B28*B26*(B29^B27)*(B31^(B28-1))+1 -> 1.39948606e-08 | C21: =C28*C26*(C29^C27)*(C31^(C28-1))*(C32^C30)-(1-B27)*B26*(C29^B27)*(C31^(-B27)) -> -5.561867855e-09 | D21: SP2 | E21: C28*C26*(C29^C27)*(C31^(C28-1))*(C32^C30)-(1-B27)*B26*(C29^B27)*(C31^(-B27))
A22: VM1 | B22: =B26*(B29^B27)*(B31^B28)-(B29-B31) -> -6.295115469e-07 | C22: =C30*C26*(C29^C27)*(C31^C28)*(C32^(C30-1))+1 -> -8.719664768e-09 | D22: SP3 | E22: C30*C26*(C29^C27)*(C31^C28)*(C32^(C30-1))+1
C23: =C26*(C29^C27)*(C31^C28)*(C32^C30)-B26*(C29^B27)*(C31^(1-B27))+C32 -> 1.709255955e-07 | D23: VM1 | E23: C26*(C29^C27)*(C31^C28)*(C32^C30)-B26*(C29^B27)*(C31^(1-B27))+C32
A24: SOLVER: SET D25=0, CHANGING B26:C30
A25: SOLVER | B25: =SUM(ABS(B19:B22)) -> 6.579893899e-07 | C25: =SUM(ABS(C19:C23)) -> 1.920896367e-07 | D25: =SUM(ABS(B25:C25)) -> 8.500790267e-07
A26: A12 | B26: 0.1481481471 | C26: 0.03329230481 | D26: A24
A27: b12 | B27: 3 | C27: 4.098076211 | D27: b24
A28: h1,12 | B28: -2.000000001 | C28: -2.732050805 | D28: h2,14
A29: V1* | B29: 135 | C29: 126.8368501 | D29: V2*
C30: -0.3660254026 | D30: h2,24
A31: K1* | B31: =B4 -> 90 | C31: =C4 -> 90 | D31: K1*
C32: =C5 -> 10 | D32: K2*
A33: VOLATILITY | B33: =SQRT(B18) -> 0.2 | C33: =SQRT(C18) -> 0.4472135955 | D33: VOLATILITY
A34: b12 | B34: =B27 -> 3 | C34: =C27/B34 -> 1.366025404 | D34: f2
A35: ROV 1 | B35: =IF(B3<B29,B26*(B3^B27)*(B4^B28),B29-B31) -> 18.28989458 | C35: =IF(C3<C29,C26*(C3^C27)*(C4^C28)*(C5^C30),C3-C31-C32) -> 10.31290607 | D35: ROV 2 | E35: IF(C3<C29,C26*(C3^C27)*(C4^C28)*(C5^C30),C3-C31-C32)
A36: Q(b,h) | B36: 0.5*(B18)*B27*(B27-1)+B27*(B13-B14)-(B12+B16-B14)
A37: SP1 | B37: B27*B26*(B29^(B27-1))*(B31^B28)-1
A38: SP2 | B38: B28*B26*(B29^B27)*(B31^(B28-1))+1
A39: VM1 | B39: B26*(B29^B27)*(B31^B28)-(B29-B31)
A40: ROV 1 | B40: IF(B3<B29,B26*(B3^B27)*(B4^B28),B27-B31)
A41: s2^2 | B41: (B27^2)*(C6^2)+((1-B27)^2)*(C7^2)+(C8^2)+2*B27*(1-B27)*C9*C6*C7-2*B27*C10*C6*C8-2*(1-B27)*C11*C7*C8

Sheet Problem 7.2
B1: GESKE EUROPEAN COMPOUND CALL OPTION
A2: Problem 7.2
A3: DEVELOPMENT TIME t' | B3: 1
A4: INVESTMENT TIME t | B4: 5
A5: INTEREST RATE | B5: 0.04
A6: V YIELD | B6: 0.04
A7: VALUE VOLATILITY | B7: 0.2
A8: V | B8: 900000
A9: D | B9: 150000
A10: K | B10: 819000
A11: REAL OPTION VALUE | B11: =B8*EXP(-B6*B4)*B26-B10*EXP(-B5*B4)*B27-B9*EXP(-B5*B3)*B25 -> 46884.58986 | C11: B8*EXP(-B6*B4)*B26-B10*EXP(-B5*B4)*B27-B9*EXP(-B5*B3)*B25
A12: t-t' | B12: =B4-B3 -> 4 | C12: B4-B3
A13: V* | B13: 893329.0863
A14: d1 | B14: =(LN(B13/B10)+((B5-B6+0.5*B7^2)*B12))/(B7*SQRT(B12)) -> 0.417177367 | C14: (LN(B13/B10)+((B5-B6+0.5*B7^2)*B12))/(B7*SQRT(B12))
A15: d2 | B15: =B14-B7*SQRT(B12) -> 0.01717736697 | C15: B14-B7*SQRT(B12)
A16: N1 | B16: =NORMSDIST(B14) -> 0.6617256607 | C16: NORMSDIST(B14)
A17: N2 | B17: =NORMSDIST(B15) -> 0.506852441 | C17: NORMSDIST(B15)
A18: EQ 7.4 | B18: =B13*EXP(-B6*B12)*B16-B10*EXP(-B5*B12)*B17 -> 150000 | C18: B13*EXP(-B6*B12)*B16-B10*EXP(-B5*B12)*B17
A19: EQ 7.4-D | B19: =B18-B9 -> -1.513399184e-09 | C19: B18-B9
A20: r(t'/t) | B20: =SQRT(B3/B4) -> 0.4472135955 | C20: SQRT(B3/B4)
A21: d1,t1 | B21: =(LN(B8/B13)+(B5-B6+0.5*B7^2)*B3)/(B7*SQRT(B3)) -> 0.1371986634 | C21: (LN(B8/B13)+(B5-B6+0.5*B7^2)*B3)/(B7*SQRT(B3))
A22: d1,t2 | B22: =(LN(B8/B10)+(B5-B6+0.5*B7^2)*B4)/(B7*SQRT(B4)) -> 0.4344918881 | C22: (LN(B8/B10)+(B5-B6+0.5*B7^2)*B4)/(B7*SQRT(B4))
A23: d2,t1 | B23: =B21-B7*SQRT(B3) -> -0.06280133659 | C23: B21-B7*SQRT(B3)
A24: d2,t2 | B24: =B22-B7*SQRT(B4) -> -0.01272170745 | C24: B22-B7*SQRT(B4)
A25: N2 | B25: =NORMSDIST(B23) -> 0.4749623508 | C25: NORMSDIST(B23)
A26: B1 | B26: =BiVariateNormalCDF(B21,B22,B20) -> 0.4374531509 | C26: BiVariateNormalCDF(B21,B22,B20)
A27: B2 | B27: =BiVariateNormalCDF(B23,B24,B20) -> 0.3087140979 | C27: BiVariateNormalCDF(B23,B24,B20)
A28: V-D-K | B28: =B8-B9-B10 -> -69000 | C28: B8-B9-B10
A29: USE TOOLS/SOLVER, SETTING B19=0 BY CHANGING B13.
A31: This is an out-of-the-money call option, with 150,000 paid at t=1 in order to maintain the
A32: option to pay 819,000 at T=5 to receive V. Using solver V* (the Putney house value
A33: that would justify paying D) is slightly below the current value, so the European part of K is costly.
A34: The RO value of the bungalow site is £46,884, even thoughy the net present value of paying D
A35: and K for V is negative, due to the volatility of Putney house prices.

Sheet Problem 7.3
B1: EUROPEAN COMPOUND EXCHANGE OPTION
A2: Problem 7.3
A3: DEVELOPMENT TIME t' | B3: 1
A4: INVESTMENT TIME t | B4: 5
A5: V YIELD | B5: 0.04
A6: K YIELD | B6: 0.04
A7: VALUE VOLATILITY | B7: 0.2
A8: K VOLATILITY | B8: 0.2
A9: CORRELATION | B9: 0.5
A10: EXCHANGE VOLATILITY | B10: =SQRT(B7^2+B8^2-2*B9*B7*B8) -> 0.2 | C10: SQRT(B7^2+B8^2-2*B9*B7*B8)
A11: V | B11: 900000
A12: D | B12: =0.18*B13 -> 148500
A13: K | B13: 825000
A14: X=V/K | B14: =B11/B13 -> 1.090909091 | C14: B11/B13
A15: REAL OPTION VALUE | B15: =B11*EXP(-B5*B4)*B30-B13*EXP(-B6*B4)*B31-B12*EXP(-B6*B3)*B29 -> 46049.43511 | C15: B11*EXP(-B5*B4)*B30-B13*EXP(-B6*B4)*B31-B12*EXP(-B6*B3)*B29
A16: t-t' | B16: =B4-B3 -> 4 | C16: B4-B3
A17: X* | B17: 1.090797207
A18: d1 | B18: =(LN(B11/B13)+((B5-B6+0.5*B10^2)*B16))/(B10*SQRT(B16)) -> 0.4175284425 | C18: (LN(B11/B13)+((B5-B6+0.5*B10^2)*B16))/(B10*SQRT(B16))
A19: d2 | B19: =B18-B10*SQRT(B16) -> 0.01752844247 | C19: B18-B10*SQRT(B16)
A20: N1 | B20: =NORMSDIST(B18) -> 0.6618540376 | C20: NORMSDIST(B18)
A21: N2 | B21: =NORMSDIST(B19) -> 0.5069924787 | C21: NORMSDIST(B19)
A22: EQ 7.10 | B22: =B17*EXP(-B5*B16)*B20-EXP(-B6*B16)*B21 -> 0.183173469 | C22: B17*EXP(-B5*B16)*B20-EXP(-B6*B16)*B21
A23: EQ 7.10-D/K | B23: =B22-(B12/B13) -> 0.003173469029 | C23: B22-(B12/B13)
A24: r(t'/t) | B24: =SQRT(B3/B4) -> 0.4472135955 | C24: SQRT(B3/B4)
A25: d1,t1 | B25: =(LN(B14/B17)+(B6-B5+0.5*B10^2)*B3)/(B10*SQRT(B3)) -> 0.100512826 | C25: (LN(B14/B17)+(B6-B5+0.5*B10^2)*B3)/(B10*SQRT(B3))
A26: d1,t2 | B26: =(LN(B14)+(B6-B5+0.5*B10^2)*B4)/(B10*SQRT(B4)) -> 0.4181701515 | C26: (LN(B14)+(B6-B5+0.5*B10^2)*B4)/(B10*SQRT(B4))
A27: d2,t1 | B27: =B25-B7*SQRT(B3) -> -0.099487174 | C27: B25-B7*SQRT(B3)
A28: d2,t2 | B28: =B26-B7*SQRT(B4) -> -0.02904344399 | C28: B26-B7*SQRT(B4)
A29: N2 | B29: =NORMSDIST(B27) -> 0.4603757355 | C29: NORMSDIST(B27)
A30: B1 | B30: =BiVariateNormalCDF(B25,B26,B24) -> 0.4250542792 | C30: BiVariateNormalCDF(B25,B26,B24)
A31: B2 | B31: =BiVariateNormalCDF(B27,B28,B24) -> 0.2982738649 | C31: BiVariateNormalCDF(B27,B28,B24)
A32: V-D-K | B32: =B11-B12-B13 -> -73500
A33: The first five inputs are the D and K timing estimates, the
A34: value and cost yields and volatilities, and correlation.
A35: After calculating the exchange volatility, the next three inputs are V, D and K estimates.
A36: Real call option value assumes X* is the value above which D should be paid at t,.
A37: USE TOOLS/SOLVER, SETTING B23=0 BY CHANGING B17.
A39: This is an out-of-the-money European exchange option, with 148,500 paid at t=1 in order to maintain the
A40: option to pay 825,000 at T=5, in order to receive V, but both the house value and the construction
A41: cost (and by assumption the architect and demolition costs) are variable. If construction costs are 825,000 at t=1,
A42: then V should be greater than 900,000 before paying the earlier costs at t=1. V* depends on K at t=1.
A43: The RO value of the bungalow site is £46,049, similar to the previous exercise, since the
A44: parameters are quite similar.

Sheet Problem 7.4
B1: GESKE EUROPEAN COMPOUND CALL OPTION
A2: Problem 7.4
A3: DEVELOPMENT TIME t' | B3: =B4/2 -> 1
A4: INVESTMENT TIME t | B4: 2
A5: INTEREST RATE | B5: 0.04
A6: V YIELD | B6: 0.04
A7: VALUE VOLATILITY | B7: 0.2
A8: V | B8: =5/B5 -> 125 | C8: 5/B5
A9: D | B9: 50
A10: K | B10: 50
A11: REAL OPTION VALUE | B11: =B8*EXP(-B6*B4)*B26-B10*EXP(-B5*B4)*B27-B9*EXP(-B5*B3)*B25 -> 22.87799096 | C11: B8*EXP(-B6*B4)*B26-B10*EXP(-B5*B4)*B27-B9*EXP(-B5*B3)*B25
A12: t-t' | B12: =B4-B3 -> 1 | C12: B4-B3
A13: V* | B13: 102.0399031
A14: d1 | B14: =(LN(B13/B10)+((B5-B6+0.5*B7^2)*B12))/(B7*SQRT(B12)) -> 3.666704691 | C14: (LN(B13/B10)+((B5-B6+0.5*B7^2)*B12))/(B7*SQRT(B12))
A15: d2 | B15: =B14-B7*SQRT(B12) -> 3.466704691 | C15: B14-B7*SQRT(B12)
A16: N1 | B16: =NORMSDIST(B14) -> 0.9998771519 | C16: NORMSDIST(B14)
A17: N2 | B17: =NORMSDIST(B15) -> 0.9997365598 | C17: NORMSDIST(B15)
A18: EQ 7.4 | B18: =B13*EXP(-B6*B12)*B16-B10*EXP(-B5*B12)*B17 -> 50.00000095 | C18: B13*EXP(-B6*B12)*B16-B10*EXP(-B5*B12)*B17
A19: EQ 7.4-D | B19: =B18-B9 -> 9.544913766e-07 | C19: B18-B9
A20: r(t'/t) | B20: =SQRT(B3/B4) -> 0.7071067812 | C20: SQRT(B3/B4)
A21: d1,t1 | B21: =(LN(B8/B13)+(B5-B6+0.5*B7^2)*B3)/(B7*SQRT(B3)) -> 1.114748968 | C21: (LN(B8/B13)+(B5-B6+0.5*B7^2)*B3)/(B7*SQRT(B3))
A22: d1,t2 | B22: =(LN(B8/B10)+(B5-B6+0.5*B7^2)*B4)/(B7*SQRT(B4)) -> 3.380998306 | C22: (LN(B8/B10)+(B5-B6+0.5*B7^2)*B4)/(B7*SQRT(B4))
A23: d2,t1 | B23: =B21-B7*SQRT(B3) -> 0.9147489681 | C23: B21-B7*SQRT(B3)
A24: d2,t2 | B24: =B22-B7*SQRT(B4) -> 3.098155594 | C24: B22-B7*SQRT(B4)
A25: N2 | B25: =NORMSDIST(B23) -> 0.8198382846 | C25: NORMSDIST(B23)
A26: B1 | B26: =BiVariateNormalCDF(B21,B22,B20) -> 0.8675130528 | C26: BiVariateNormalCDF(B21,B22,B20)
A27: B2 | B27: =BiVariateNormalCDF(B23,B24,B20) -> 0.8198174776 | C27: BiVariateNormalCDF(B23,B24,B20)
A29: USE TOOLS/SOLVER, SETTING B19=0 BY CHANGING B13.
A31: Assume that the current value of the research is price/yield less cost/rate, so V=5/.04.
A32: This is thus an in-the-money call option, with 50 paid at T/2 in order to maintain the
A33: option to pay 50 at T to receive V. Using solver V* (the net value of the research at the end
A34: of the year that would justify paying 50) is way below the current value.
A35: The ROV is actually less than the current present value if D and K could be paid today
A36: (that is the research yield is high, so it would pay to exercise the option immediately).
A37: However, WW must delay enjoying the fruits of his research, so even the optionality
A38: does not add to value in this case (perhaps WW is a slow worker, or his research
A39: supervisor enjoys testing WW's endurance).

Sheet Problem 7.5
A1: SEQUENTIAL MATRIX | B1: PROB 7.5 | D1: STAGE | E1: VOLATILITY | F1: f | G1: V^ | H1: V^-SKN | I1: ROV
A2: Project value V | B2: 81 | D2: 1 | E2: =B37 -> 0.2 | F2: =B42 -> 1.58113883 | G2: =B46 -> 163.2455532 | H2: =B46-B19 -> 103.2455532 | I2: =B49 -> 34.09115589
A3: q theta_V | B3: 0.02 | D3: 2 | E3: =B59 -> 0.316227766 | F3: =B64 -> 1.414213562 | G3: =B69 -> 162.4252082 | H3: =B69-B19-B20 -> 72.42520818 | I3: =B71 -> 15.28367618
A4: sigma_V | B4: 0.2 | D4: 3 | E4: =B86 -> 0.4472135955 | F4: =B91 -> 1.224744871 | G4: =B97 -> 143.0224365 | H4: =B97-B19-B20-B21 -> 43.02243649 | I4: =B99 -> 9.377655167
A5: Stage 1
A6: theta_K1 | B6: 0
A7: sigma_K1 | B7: 0 | D7: Input the correlations:
A8: Failure probability: lambda | B8: 0 | E8: V | F8: K1 | G8: K2 | H8: K3 | I8: Volatility
A9: Stage 2 | D9: V | E9: 1 | F9: =E10 -> 0 | G9: =E10 -> 0 | H9: =E10 -> 0 | I9: =B23 -> 0.2
A10: theta_K2 | B10: 0 | D10: K1 | E10: 0 | F10: =E9 -> 1 | G10: 0 | H10: 0 | I10: =C23 -> 0
A11: sigma_K2 | B11: 0 | D11: K2 | E11: =E10 -> 0 | F11: 0 | G11: =E9 -> 1 | H11: 0 | I11: =D23 -> 0
A12: Failure probability: lambda | B12: 0.05 | D12: K3 | E12: =E10 -> 0 | F12: 0 | G12: 0 | H12: =E9 -> 1 | I12: =E23 -> 0
A13: Stage 3 | C13: Assumes all V, K correlations are the same as in D10, Ks are not correlated.
A14: theta_K3 | B14: 0
A15: sigma_K3 | B15: 0
A16: Risk-free rate | B16: 0.05
A17: Failure probability: lambda | B17: 0.1
A18: Threshold Levels
A19: K1^ | B19: 60
A20: K2^ | B20: 30
A21: K3^ | B21: 10
A22: Calculations
A23: Volatility | B23: =B4 -> 0.2 | C23: =B7 -> 0 | D23: =B11 -> 0 | E23: =B15 -> 0
A24: Variance-Covariance Matrix
A25: V | B25: =E9*B$23*$I9 -> 0.04 | C25: 0 | D25: 0 | E25: 0
A26: K1 | B26: 0 | C26: 0 | D26: 0 | E26: 0
A27: K2 | B27: 0 | C27: 0 | D27: 0 | E27: 0
A28: K3 | B28: 0 | C28: 0 | D28: 0 | E28: 0
A29: Analysis
A30: Stage 1
A31: w | B31: 1 | C31: column vector with 2 elements
B32: -1
A33: wT (w transpose) | B33: =TRANSPOSE(B31:B32) -> 1 | C33: -1 | D33: TRANSPOSE(B31:B32)
A34: Var-Covar*w | B34: =MMULT(B25:C26,B31:B32) -> 0.04 | C34: MMULT(B25:C26,B31:B32)
B35: 0
A36: sigma^2_1=wT*Var-Covar*w | B36: =MMULT(B33:C33,B34:B35) -> 0.04 | C36: MMULT(B33:C33,B34:B35)
A37: vol_1 | B37: =SQRT(B36) -> 0.2 | C37: SQRT(B36)
A38: theta_V - theta_K1 | B38: =B3-B6 -> 0.02 | C38: B3-B6
A39: r + Lamda_1 - theta_K1 | B39: =B16+B8-B6 -> 0.05 | C39: B16+B8-B6
A40: T1 | B40: =0.5-B38/B36 -> 0 | C40: 0.5-B38/B36
A41: T2 | B41: =B40^2+2*B39/B36 -> 2.5 | C41: B40^2+2*B39/B36
A42: phi_1 | B42: =B40+SQRT(B41) -> 1.58113883 | C42: B40+SQRT(B41)
A43: phi_1/(phi_1 - 1) | B43: =B42/(B42-1) -> 2.72075922 | C43: B42/(B42-1)
A44: beta_1 | B44: =B42 -> 1.58113883 | C44: B42
A45: eta_11 | B45: =1-B44 -> -0.5811388301 | C45: 1-B44
A46: V1^ | B46: =B43*B19 -> 163.2455532 | C46: B43*B19
A47: A1 | B47: =((B42-1)^(B42-1))/(B42^B42) -> 0.3535205742 | C47: ((B42-1)^(B42-1))/(B42^B42)
A48: Mark-up Factor MEF | B48: =B42/(B42-1) -> 2.72075922 | C48: B42/(B42-1)
A49: ROV 1 | B49: =IF(B2<B46,B47*(B2^B44)*(B19^B45),MAX(B46-B19,0)) -> 34.09115589 | C49: IF(B2<B46,B47*(B2^B44)*(B19^B45),MAX(B46-B19,0))
A50: Stage 2
A51: w | B51: =B42 -> 1.58113883 | C51: column vector with 3 elements
B52: =1-B42 -> -0.5811388301
B53: -1
A54: wT | B54: =TRANSPOSE(B51:B53) -> 1.58113883 | C54: -0.5811388301 | D54: -1
A55: Var-Covar*w | B55: =MMULT(B25:D27,B51:B53) -> 0.0632455532
B56: 0
B57: 0
A58: sigma^2_2=wT*Var-Covar*w | B58: =MMULT(B54:D54,B55:B57) -> 0.1 | C58: MMULT(B54:D54,B55:B57)
A59: vol_2 | B59: =SQRT(B58) -> 0.316227766 | C59: SQRT(B58)
A60: r + lambda_1 - theta_K2 | B60: =B16+B8-B10 -> 0.05 | C60: B16+B8-B10
A61: r + lambda_2 - theta_K2 | B61: =B16+B12-B10 -> 0.1 | C61: B16+B12-B10
A62: T1 | B62: =0.5-B60/B58 -> 0 | C62: 0.5-B60/B58
A63: T2 | B63: =B62^2+2*B61/B58 -> 2 | C63: B62^2+2*B61/B58
A64: phi_2 | B64: =B62+SQRT(B63) -> 1.414213562 | C64: B62+SQRT(B63)
A65: B2 | B65: =((B64-1)^(B64-1))/(B64^B64) -> 0.4251956067 | C65: ((B64-1)^(B64-1))/(B64^B64)
A66: beta_2 | B66: =B64*B44 -> 2.236067977 | C66: B64*B44
A67: eta_21 | B67: =B64*B45 -> -0.8218544151 | C67: B64*B45
A68: eta_22 | B68: =1-B64 -> -0.4142135624 | C68: 1-B64
A69: V2^ | B69: =((B64*(B19^(B42-1))*B20)/(B47*(B64-1)))^(1/B42) -> 162.4252082 | C69: ((B64*(B19^(B42-1))*B20)/(B47*(B64-1)))^(1/B42)
A70: A2 | B70: =B65*B47^B64 -> 0.0977126303 | C70: B65*B47^B64
A71: ROV 2 | B71: =IF($B$2<B69,B70*($B$2^B66)*($B$19^B67)*($B$20^B68),MAX(B49-B20,0)) -> 15.28367618 | C71: IF($B$2<B69,B70*($B$2^B66)*($B$19^B67)*($B$20^B68),MAX(B49-B20,0))
A72: Mark-up Factor_2 | B72: =(B64/(B47*(B64-1)))^(1/B44) -> 4.196529378 | C72: (B64/(B47*(B64-1)))^(1/B44)
A73: V2^/(K1^+K2^) MEF | B73: =B69/(B19+B20) -> 1.804724535 | C73: B69/(B19+B20)
A74: Check: V2^/K2^ | B74: =B69/B20 -> 5.414173606 | C74: B69/B20
A75: Stage 3
A76: w | B76: =B42*B64 -> 2.236067977 | C76: column vector with 4 elements
B77: =B64*(1-B42) -> -0.8218544151
B78: =1-B64 -> -0.4142135624
B79: -1
A80: wT | B80: =TRANSPOSE(B76:B79) -> 2.236067977 | C80: -0.8218544151 | D80: -0.4142135624 | E80: -1
A81: Var-Covar*w | B81: =MMULT(B25:E28,B76:B79) -> 0.0894427191
B82: 0
B83: 0
B84: 0
A85: sigma^2_3=wT*Var-Covar*w | B85: =MMULT(B80:E80,B81:B84) -> 0.2 | C85: MMULT(B80:E80,B81:B84)
A86: vol_3 | B86: =SQRT(B85) -> 0.4472135955 | C86: SQRT(B85)
A87: r + lambda_2 - theta_K3 | B87: =B16+B12-B14 -> 0.1 | C87: B16+B12-B14
A88: r + lambda_3 - theta_K3 | B88: =B16+B17-B14 -> 0.15 | C88: B16+B17-B14
A89: T1 | B89: =0.5-B87/B85 -> 0 | C89: 0.5-B87/B85
A90: T2 | B90: =B89^2+2*B88/B85 -> 1.5 | C90: B89^2+2*B88/B85
A91: phi_3 | B91: =B89+SQRT(B90) -> 1.224744871 | C91: B89+SQRT(B90)
A92: B3 | B92: =((B91-1)^(B91-1))/(B91^B91) -> 0.5577790163 | C92: ((B91-1)^(B91-1))/(B91^B91)
A93: beta_3 | B93: =B91*B66 -> 2.738612788 | C93: B91*B66
A94: eta_31 | B94: =B91*B67 -> -1.00656198 | C94: B91*B67
A95: eta_32 | B95: =B91*B68 -> -0.5073059362 | C95: B91*B68
A96: eta_33 | B96: =1-B91 -> -0.2247448714 | C96: 1-B91
A97: V3^ | B97: =((B91*(B19^(-B67))*(B20^(-B68))*B21)/(B70*(B91-1)))^(1/B66) -> 143.0224365 | C97: ((B91*(B19^(-B67))*(B20^(-B68))*B21)/(B70*(B91-1)))^(1/B66)
A98: A3 | B98: =B92*B70^B91 -> 0.03231539561 | C98: B92*B70^B91
A99: ROV 3 | B99: =IF($B$2<B97,B98*($B$2^B93)*($B$19^B94)*($B$20^B95)*($B$21^B96),MAX(B71-$B$20,0)) -> 9.377655167 | C99: IF($B$2<B97,B98*($B$2^B93)*($B$19^B94)*($B$20^B95)*($B$21^B96),MAX(B71-$B$20,0))
A100: Mark-up Factor_3 | B100: =(B91/(B70*(B91-1)))^(1/B66) -> 6.039710467 | C100: (B91/(B70*(B91-1)))^(1/B66)
A101: V2^/(K1^+K2^+K3^) MEF | B101: =B97/(B19+B20+B21) -> 1.430224365 | C101: B97/(B19+B20+B21)
A102: Check: V2^/K2^ | B102: =B97/B21 -> 14.30224365 | C102: B97/B21

Sheet Problem 7.6
A1: SEQUENTIAL MATRIX | B1: Prob 7.6 | D1: STAGE | E1: VOLATILITY | F1: f | G1: V^ | H1: V^-SKN | I1: ROV
A2: Project value V | B2: 87 | D2: 1 | E2: =B37 -> 0.4096828041 | F2: =B42 -> 1.241561726 | G2: =B46 -> 308.38372 | H2: =B46-B19 -> 248.38372 | I2: =B49 -> 51.61730552
A3: q theta_V | B3: 0.02 | D3: 2 | E3: =B59 -> 0.4504133436 | F3: =B64 -> 1.278295289 | G3: =B69 -> 191.8664145 | H3: =B69-B19-B20 -> 101.8664145 | I3: =B71 -> 30.72449585
A4: sigma_V | B4: 0.2 | D4: 3 | E4: =B86 -> 0.5168744067 | F4: =B91 -> 1.19280161 | G4: =B97 -> 135.2223715 | H4: =B97-B19-B20-B21 -> 35.22237151 | I4: =B99 -> 22.50661098
A5: Stage 1
A6: theta_K1 | B6: 0 | D6: Input the correlations:
A7: sigma_K1 | B7: 0.34 | D7: V | E7: K1 | F7: K2 | G7: K3 | I7: Volatility
A8: Failure probability: lambda | B8: 0 | C8: V | D8: 1 | E8: =D9 -> -0.09 | F8: =D9 -> -0.09 | G8: =D9 -> -0.09 | I8: =B23 -> 0.2
A9: Stage 2 | C9: K1 | D9: -0.09 | E9: =D8 -> 1 | F9: 0 | G9: 0 | I9: =C23 -> 0.34
A10: theta_K2 | B10: 0 | C10: K2 | D10: =D9 -> -0.09 | E10: 0 | F10: =D8 -> 1 | G10: 0 | I10: =D23 -> 0.34
A11: sigma_K2 | B11: =B7 -> 0.34 | C11: K3 | D11: =D9 -> -0.09 | E11: 0 | F11: 0 | G11: =D8 -> 1 | I11: =E23 -> 0.34
A12: Failure probability: lambda | B12: 0.05 | C12: Assumes all V, K correlations are the same , Ks are not correlated.
A13: Stage 3
A14: theta_K3 | B14: 0
A15: sigma_K3 | B15: =B7 -> 0.34
A16: Failure probability: lambda | B16: 0.1
A17: Risk-free rate | B17: 0.05
A18: Threshold Levels
A19: K1^ | B19: 60
A20: K2^ | B20: 30
A21: K3^ | B21: 10
A22: Calculations
A23: Volatility | B23: =B4 -> 0.2 | C23: =B7 -> 0.34 | D23: =B11 -> 0.34 | E23: =B15 -> 0.34
A24: Variance-Covariance Matrix
A25: V | B25: =D8*B$23*$I8 -> 0.04 | C25: -0.00612 | D25: -0.00612 | E25: -0.00612
A26: K1 | B26: -0.00612 | C26: 0.1156 | D26: 0 | E26: 0
A27: K2 | B27: -0.00612 | C27: 0 | D27: 0.1156 | E27: 0
A28: K3 | B28: -0.00612 | C28: 0 | D28: 0 | E28: 0.1156
A29: Analysis
A30: Stage 1
A31: w | B31: 1 | C31: column vector with 2 elements
B32: -1
A33: wT (w transpose) | B33: =TRANSPOSE(B31:B32) -> 1 | C33: -1 | D33: TRANSPOSE(B44:B45)
A34: Var-Covar*w | B34: =MMULT(B25:C26,B31:B32) -> 0.04612 | C34: MMULT(B37:C38,B44:B45)
B35: -0.12172
A36: sigma^2_1=wT*Var-Covar*w | B36: =MMULT(B33:C33,B34:B35) -> 0.16784 | C36: MMULT(B46:C46,B47:B48)
A37: vol_1 | B37: =SQRT(B36) -> 0.4096828041 | C37: SQRT(B49)
A38: theta_V - theta_K1 | B38: =B3-B6 -> 0.02 | C38: B3-B6
A39: r + Lamda_1 - theta_K1 | B39: =B17+B8-B6 -> 0.05 | C39: B21+B8-B6
A40: T1 | B40: =0.5-B38/B36 -> 0.3808388942 | C40: 0.5-B51/B49
A41: T2 | B41: =B40^2+2*B39/B36 -> 0.7408437924 | C41: B53^2+2*B52/B49
A42: phi_1 | B42: =B40+SQRT(B41) -> 1.241561726 | C42: B53+SQRT(B54)
A43: phi_1/(phi_1 - 1) | B43: =B42/(B42-1) -> 5.139728667 | C43: B55/(B55-1)
A44: beta_1 | B44: =B42 -> 1.241561726 | C44: =C42 -> B53+SQRT(B54)
A45: eta_11 | B45: =1-B44 -> -0.2415617255 | C45: 1-B57
A46: V1^ | B46: =B43*B19 -> 308.38372 | C46: B56*B23
A47: A1 | B47: =((B42-1)^(B42-1))/(B42^B42) -> 0.5423701062 | C47: ((B55-1)^(B55-1))/(B55^B55)
A48: Mark-up Factor MEF | B48: =B42/(B42-1) -> 5.139728667 | C48: B55/(B55-1)
A49: F | B49: =IF(B2<B46,B47*(B2^B44)*(B19^B45),MAX(B46-B19,0)) -> 51.61730552 | C49: IF(B2<B59,B60*(B2^B57)*(B23^B58),MAX(B59-B23,0))
A50: Stage 2
A51: w | B51: =B42 -> 1.241561726 | C51: column vector with 3 elements
B52: =1-B42 -> -0.2415617255
B53: -1
A54: wT | B54: =TRANSPOSE(B51:B53) -> 1.241561726 | C54: -0.2415617255 | D54: -1
A55: Var-Covar*w | B55: =MMULT(B25:D27,B51:B53) -> 0.05726082678
B56: -0.03552289323
B57: -0.1231983578
A58: sigma^2_2=wT*Var-Covar*w | B58: =MMULT(B54:D54,B55:B57) -> 0.20287218 | C58: MMULT(B67:D67,B68:B70)
A59: vol_2 | B59: =SQRT(B58) -> 0.4504133436 | C59: SQRT(B71)
A60: r + lambda_1 - theta_K2 | B60: =B17+B8-B10 -> 0.05 | C60: B21+B8-B10
A61: r + lambda_2 - theta_K2 | B61: =B17+B12-B10 -> 0.1 | C61: B21+B12-B10
A62: T1 | B62: =0.5-B60/B58 -> 0.2535393961 | C62: 0.5-B73/B71
A63: T2 | B63: =B62^2+2*B61/B58 -> 1.050124641 | C63: B75^2+2*B74/B71
A64: phi_2 | B64: =B62+SQRT(B63) -> 1.278295289 | C64: B75+SQRT(B76)
A65: B2 | B65: =((B64-1)^(B64-1))/(B64^B64) -> 0.5118025557 | C65: ((B77-1)^(B77-1))/(B77^B77)
A66: beta_2 | B66: =B64*B44 -> 1.587082505 | C66: B77*B57
A67: eta_21 | B67: =B64*B45 -> -0.3087872159 | C67: B77*B58
A68: eta_22 | B68: =1-B64 -> -0.2782952894 | C68: 1-B77
A69: V2^ | B69: =((B64*(B19^(B42-1))*B20)/(B47*(B64-1)))^(1/B42) -> 191.8664145 | C69: ((B77*(B23^(B55-1))*B24)/(B60*(B77-1)))^(1/B55)
A70: A2 | B70: =B65*B47^B64 -> 0.2341283217 | C70: B78*B60^B77
A71: F | B71: =IF($B$2<B69,B70*($B$2^B66)*($B$19^B67)*($B$20^B68),MAX(B69-B19-B20,0)) -> 30.72449585 | C71: IF($B$2<B82,B83*($B$2^B79)*($B$23^B80)*($B$24^B81),MAX(B82-B23-B24,0))
A72: Mark-up Factor_2 | B72: =(B64/(B47*(B64-1)))^(1/B44) -> 5.58867 | C72: (B77/(B60*(B77-1)))^(1/B57)
A73: V2^/(K1^+K2^) MEF | B73: =B69/(B19+B20) -> 2.13184905 | C73: B82/(B23+B24)
A74: Check: V2^/K2^ | B74: =B69/B20 -> 6.395547149 | C74: B82/B24
A75: Stage 3
A76: w | B76: =B42*B64 -> 1.587082505 | C76: column vector with 4 elements
B77: =B64*(1-B42) -> -0.3087872159
B78: =1-B64 -> -0.2782952894
B79: -1
A80: wT | B80: =TRANSPOSE(B76:B79) -> 1.587082505 | C80: -0.3087872159 | D80: -0.2782952894 | E80: -1
A81: Var-Covar*w | B81: =MMULT(B25:E28,B76:B79) -> 0.07319624514
B82: -0.04540874708
B83: -0.04188388039
B84: -0.1253129449
A85: sigma^2_3=wT*Var-Covar*w | B85: =MMULT(B80:E80,B81:B84) -> 0.2671591523 | C85: MMULT(B93:E93,B94:B97)
A86: vol_3 | B86: =SQRT(B85) -> 0.5168744067 | C86: SQRT(B98)
A87: r + lambda_2 - theta_K3 | B87: =B17+B12-B14 -> 0.1 | C87: B21+B12-B14
A88: r + lambda_3 - theta_K3 | B88: =B17+B16-B14 -> 0.15 | C88: B21+B16-B14
A89: T1 | B89: =0.5-B87/B85 -> 0.1256912812 | C89: 0.5-B100/B98
A90: T2 | B90: =B89^2+2*B88/B85 -> 1.138724455 | C90: B102^2+2*B101/B98
A91: phi_3 | B91: =B89+SQRT(B90) -> 1.19280161 | C91: B102+SQRT(B103)
A92: B3 | B92: =((B91-1)^(B91-1))/(B91^B91) -> 0.5899802739 | C92: ((B104-1)^(B104-1))/(B104^B104)
A93: beta_3 | B93: =B91*B66 -> 1.893074568 | C93: B104*B79
A94: eta_31 | B94: =B91*B67 -> -0.3683218883 | C94: B104*B80
A95: eta_32 | B95: =B91*B68 -> -0.3319510694 | C95: B104*B81
A96: eta_33 | B96: =1-B91 -> -0.1928016104 | C96: 1-B104
A97: V3^ | B97: =((B91*(B19^(-B67))*(B20^(-B68))*B21)/(B70*(B91-1)))^(1/B66) -> 135.2223715 | C97: ((B104*(B23^(-B80))*(B24^(-B81))*B25)/(B83*(B104-1)))^(1/B79)
A98: A3 | B98: =B92*B70^B91 -> 0.1044049644 | C98: B105*B83^B104
A99: F | B99: =IF($B$2<B97,B98*($B$2^B93)*($B$19^B94)*($B$20^B95)*($B$21^B96),MAX(B97-$B$19-$B$20-$B$21,0)) -> 22.50661098 | C99: IF($B$2<B110,B111*($B$2^B106)*($B$23^B107)*($B$24^B108)*($B$25^B109),MAX(B110-$B$23-$B$24-$B$25,0))
A100: Mark-up Factor_3 | B100: =(B91/(B70*(B91-1)))^(1/B66) -> 7.870203071 | C100: (B104/(B83*(B104-1)))^(1/B79)
A101: V2^/(K1^+K2^+K3^) MEF | B101: =B97/(B19+B20+B21) -> 1.352223715 | C101: B110/(B23+B24+B25)
A102: Check: V2^/K2^ | B102: =B97/B21 -> 13.52223715 | C102: B110/B25

Sheet Exercise 8.1
A1: Exercise 8.1 | B1: MARSHALLIAN & SIMPLE OPTION ENTER PRICES
A2: INPUT
A3: P | B3: 2
A4: Investment K | B4: 5
A5: Operating cost C | B5: 1
A6: Abandon A | B6: 25
A7: Interest Rate | B7: 0.04
A8: Asset Yield | B8: 0.04
A9: Asset Volatility | B9: 0.2
A11: b1 | B11: =0.5-(B7-B8)/(B9^2)+SQRT(((B7-B8)/(B9^2)-0.5)^2 + 2*B7/(B9^2)) -> 2 | C11: 0.5-(B7-B8)/(B9^2)+SQRT(((B7-B8)/(B9^2)-0.5)^2 + 2*B7/(B9^2))
A12: b2 | B12: =0.5-(B7-B8)/(B9^2)-SQRT(((B7-B8)/(B9^2)-0.5)^2 + 2*B7/(B9^2)) -> -1 | C12: 0.5-(B7-B8)/(B9^2)-SQRT(((B7-B8)/(B9^2)-0.5)^2 + 2*B7/(B9^2))
A14: OUTPUT
A15: WK | B15: =B5+B7*B4 -> 1.2 | C15: B5+B7*B4
A16: WA | B16: =IF((B5-B7*B6)>0,B5-B7*B6,0) -> 0 | C16: IF((B5-B7*B6)>0,B5-B7*B6,0)
A17: WK-WA | B17: =B15-B16 -> 1.2 | C17: B15-B16
A19: PK | B19: =(B8/B7)*B11/(B11-1)*B15 -> 2.4 | C19: (B8/B7)*B11/(B11-1)*B15
A20: PA | B20: =(B8/B7)*(-B12/(-B12+1))*B16 -> 0 | C20: (B8/B7)*(-B12/(-B12+1))*B16
A21: PK-PA | B21: =B19-B20 -> 2.4 | C21: B19-B20
A23: (PK-PA)/(WK-WA) | B23: =B21/B17 -> 2 | C23: B21/B17
A25: ROV | B25: =B26*(B3^B11) -> 20.83333333 | C25: B26*(B3^B11)
A26: A1 | B26: =(B19/B8-B5/B7-B4)/(B19^B11) -> 5.208333333 | C26: (B19/B8-B5/B7-B4)/(B19^B11)
A27: ROV | B27: =(B19/B8-B5/B7-B4)*(B3/B19)^B11 -> 20.83333333 | C27: (B19/B8-B5/B7-B4)*(B3/B19)^B11
A28: NPV | B28: =(B3/B8-B5/B7-B4) -> 20 | C28: (B3/B8-B5/B7-B4)
A29: C-rA | B29: =B5-B7*B6 -> 0 | C29: B5-B7*B6
A30: Following Professor Marshall you would enter the class now, since P>=WK. With the advantage
A31: of a stochastic real options model, you would wait until the perceived benefits P>2.400.
A32: Note that Professor Marshall class value is less than the RO value.
A33: Perhaps it is only a dream of teachers, that students "once committed, are forever comitted",
A34: but this class appears to be valuable if viewed as a real option.

Sheet Problem 8.2
A1: PROBLEM 8.2 | D1: Perpetual American Option
A2: INPUT | D2: INPUT
A3: P | B3: 2 | D3: P | E3: 2
A4: Investment K | B4: 5 | D4: K | E4: 5
A5: Operating cost C | B5: 1 | D5: C | E5: 1
A6: Abandon A | B6: 25
A7: Interest Rate | B7: 0.04 | D7: r | E7: 0.04
A8: Asset Yield | B8: 0.04 | D8: d | E8: 0.04
A9: Asset Volatility | B9: 0.2 | D9: s | E9: 0.2
A11: b1 | B11: =0.5-(B7-B8)/(B9^2)+SQRT(((B7-B8)/(B9^2)-0.5)^2 + 2*B7/(B9^2)) -> 2 | D11: b1 | E11: =0.5-(E7-E8)/(E9^2)+SQRT(((E7-E8)/(E9^2)-0.5)^2 + (2*E7)/(E9^2)) -> 2
A14: OUTPUT
A15: WK | B15: =B5+B7*B4 -> 1.2 | D15: Vo(P) | E15: =E17*(E3^E11) -> 20.83333333 | F15: E17*(E3^E11)
D16: PV-K | E16: =E3/E8-E5/E7-E4 -> 20 | F16: E3/E8-E5/E7-E4
A17: A1 | B17: =(B19/B8-B5/B7-B4)/(B19^B11) -> 5.208333333 | D17: A1 | E17: =B17 -> 5.208333333
D18: B
A19: PK | B19: =(B8/B7)*B11/(B11-1)*B15 -> 2.4 | D19: PK | E19: =B19 -> 2.4
D21: ODE(0) | E21: =0.5*(E9^2)*(E3^2)*E23+(E7-E8)*E3*E22-E7*E15 -> 0 | F21: 0.5*(E9^2)*(E3^2)*E23+(E7-E8)*E3*E22-E7*E15
A22: ROV | B22: =(B19/B8-B5/B7-B4)*(B3/B19)^B11 -> 20.83333333 | D22: V'o(P) | E22: =E11*E17*(E3^(E11-1)) -> 20.83333333 | F22: E11*E17*(E3^(E11-1))
A23: NPV | B23: =(B3/B8-B5/B7-B4) -> 20 | D23: V''o(P) | E23: =E11*(E11-1)*E17*(E3^(E11-2)) -> 10.41666667 | F23: E11*(E11-1)*E17*(E3^(E11-2))
D24: VALUE MATCH
D25: Vo(P*) | E25: =E17*(E19^E11) -> 30 | F25: E17*(E19^E11)
D26: P*-K | E26: =(E19/E8)-(E5/E7)-E4 -> 30 | F26: (E19/E8)-(E5/E7)-E4
D27: SMOOTH PASTE
D28: V'o(P*) | E28: =E11*E17*(E19^(E11-1)) -> 25 | F28: E11*E17*(E19^(E11-1))
D29: 'NPV(P*) | E29: =(1/E8) -> 25 | F29: (1/E8)
D31: ODE (8.2)=0 | F31: VALUE MATCHING & SMOOTH PASTING CONDITIONS MET.

Sheet Problem 8.3
A1: PROBLEM 8.3 | B1: MARSHALLIAN AND OPTION ENTER TRIGGERS
A2: INPUT
A3: P | B3: 2 | C3: 2 | D3: 2 | E3: 2 | F3: 2
A4: Investment K | B4: 5 | C4: 5 | D4: 5 | E4: 5 | F4: 5
A5: Operating cost C | B5: 0.8 | C5: =B5+0.05 -> 0.85 | D5: =C5+0.05 -> 0.9 | E5: =D5+0.05 -> 0.95 | F5: =E5+0.05 -> 1
A6: Abandon A | B6: 25 | C6: 25 | D6: 25 | E6: 25 | F6: 25
A7: Interest Rate | B7: 0.04 | C7: 0.04 | D7: 0.04 | E7: 0.04 | F7: 0.04
A8: Asset Yield | B8: 0.04 | C8: 0.04 | D8: 0.04 | E8: 0.04 | F8: 0.04
A9: Asset Volatility | B9: 0.2 | C9: 0.2 | D9: 0.2 | E9: 0.2 | F9: 0.2
A11: b1 | B11: =0.5-(B7-B8)/(B9^2)+SQRT(((B7-B8)/(B9^2)-0.5)^2 + 2*B7/(B9^2)) -> 2 | C11: =0.5-(C7-C8)/(C9^2)+SQRT(((C7-C8)/(C9^2)-0.5)^2 + 2*C7/(C9^2)) -> 2 | D11: =0.5-(D7-D8)/(D9^2)+SQRT(((D7-D8)/(D9^2)-0.5)^2 + 2*D7/(D9^2)) -> 2 | E11: =0.5-(E7-E8)/(E9^2)+SQRT(((E7-E8)/(E9^2)-0.5)^2 + 2*E7/(E9^2)) -> 2 | F11: =0.5-(F7-F8)/(F9^2)+SQRT(((F7-F8)/(F9^2)-0.5)^2 + 2*F7/(F9^2)) -> 2
A12: b2 | B12: =0.5-(B7-B8)/(B9^2)-SQRT(((B7-B8)/(B9^2)-0.5)^2 + 2*B7/(B9^2)) -> -1 | C12: =0.5-(C7-C8)/(C9^2)-SQRT(((C7-C8)/(C9^2)-0.5)^2 + 2*C7/(C9^2)) -> -1 | D12: =0.5-(D7-D8)/(D9^2)-SQRT(((D7-D8)/(D9^2)-0.5)^2 + 2*D7/(D9^2)) -> -1 | E12: =0.5-(E7-E8)/(E9^2)-SQRT(((E7-E8)/(E9^2)-0.5)^2 + 2*E7/(E9^2)) -> -1 | F12: =0.5-(F7-F8)/(F9^2)-SQRT(((F7-F8)/(F9^2)-0.5)^2 + 2*F7/(F9^2)) -> -1
A14: OUTPUT
A15: WK | B15: =B5+B7*B4 -> 1 | C15: =C5+C7*C4 -> 1.05 | D15: =D5+D7*D4 -> 1.1 | E15: =E5+E7*E4 -> 1.15 | F15: =F5+F7*F4 -> 1.2
A16: WA | B16: =IF((B5-B7*B6)>0,B5-B7*B6,0) -> 0 | C16: =IF((C5-C7*C6)>0,C5-C7*C6,0) -> 0 | D16: =IF((D5-D7*D6)>0,D5-D7*D6,0) -> 0 | E16: =IF((E5-E7*E6)>0,E5-E7*E6,0) -> 0 | F16: =IF((F5-F7*F6)>0,F5-F7*F6,0) -> 2.220446049e-16
A17: WK-WA | B17: =B15-B16 -> 1 | C17: =C15-C16 -> 1.05 | D17: =D15-D16 -> 1.1 | E17: =E15-E16 -> 1.15 | F17: =F15-F16 -> 1.2
A18: PK-PA | B18: =B19-B20 -> 2 | C18: =C19-C20 -> 2.1 | D18: =D19-D20 -> 2.2 | E18: =E19-E20 -> 2.3 | F18: =F19-F20 -> 2.4
A19: PK | B19: =(B8/B7)*B11/(B11-1)*B15 -> 2 | C19: =(C8/C7)*C11/(C11-1)*C15 -> 2.1 | D19: =(D8/D7)*D11/(D11-1)*D15 -> 2.2 | E19: =(E8/E7)*E11/(E11-1)*E15 -> 2.3 | F19: =(F8/F7)*F11/(F11-1)*F15 -> 2.4
A20: PA | B20: =(B8/B7)*(-B12/(-B12+1))*B16 -> 0 | C20: =(C8/C7)*(-C12/(-C12+1))*C16 -> 0 | D20: =(D8/D7)*(-D12/(-D12+1))*D16 -> 0 | E20: =(E8/E7)*(-E12/(-E12+1))*E16 -> 0 | F20: =(F8/F7)*(-F12/(-F12+1))*F16 -> 1.110223025e-16
A22: (PK-PA)/(WK-WA) | B22: =B18/B17 -> 2 | C22: =C18/C17 -> 2 | D22: =D18/D17 -> 2 | E22: =E18/E17 -> 2 | F22: =F18/F17 -> 2
A24: Following Professor Marshall & RO theory you might have entered this class now when C=.8. With the advantage
A25: of a stochastic real options model, this would be a marginal decision highly dependent on this remaining a low.
A26: cost (low mental and physical stress) class, while Professor Marshall could increase class requirements without
A27: losing his popularity.

Sheet Problem 8.4
A1: Entry - Exit (STOCHASTIC MODEL)
A2: PROBLEM 8.4
A3: P= | B3: 2
A4: K= | B4: 5
A5: C= | B5: 0.4
A6: A= | B6: 2
A7: r= | B7: 0.04
A8: d= | B8: 0.04
A9: s= | B9: 0.2
A11: b1= | B11: =0.5-((B7-B8)/(B9^2))+SQRT(((((B7-B8)/(B9^2))-0.5)^2)+(2*(B7/(B9^2)))) -> 2 | C11: 0.5-((B7-B8)/(B9^2))+SQRT(((((B7-B8)/(B9^2))-0.5)^2)+(2*(B7/(B9^2))))
A12: b2= | B12: =0.5-((B7-B8)/(B9^2))-SQRT(((((B7-B8)/(B9^2))-0.5)^2)+(2*(B7/(B9^2)))) -> -1 | C12: 0.5-((B7-B8)/(B9^2))-SQRT(((((B7-B8)/(B9^2))-0.5)^2)+(2*(B7/(B9^2))))
A14: Vo(P) | B14: =B17*(B3^B11) -> 43.42939487 | C14: B17*(B3^B11)
A15: VK(P) | B15: =B18*(B3^B12)+(B3/B8)-(B5/B7) -> 40.34668098 | C15: B18*(B3^B12)+(B3/B8)-(B5/B7)
A17: A1 | B17: 10.85734872
A18: B2 | B18: 0.6933619547
A19: PK | B19: 1.126114675
A20: PA | B20: 0.1814475088
A21: PK-PA | B21: =B19-B20 -> 0.944667166
A22: Eq.8.14 | B22: =(B17*(B19^B11))-(B18*(B19^B12))-(B19/B8)+(B5/B7)+B4 -> -2.655389181e-06 | C22: (B17*(B19^B11))-(B18*(B19^B12))-(B19/B8)+(B5/B7)+B4
A23: Eq.8.15 | B23: =(B11*B17*(B19^(B11-1)))-(B12*B18*(B19^(B12-1)))-(1/B8) -> -3.028760091e-06 | C23: (B11*B17*(B19^(B11-1)))-(B12*B18*(B19^(B12-1)))-(1/B8)
A24: Eq.8.16 | B24: =(-B17*(B20^B11))+(B18*(B20^B12))+(B20/B8)-(B5/B7)+B6 -> 1.027651667e-05 | C24: (-B17*(B20^B11))+(B18*(B20^B12))+(B20/B8)-(B5/B7)+B6
A25: Eq.8.17 | B25: =(-B11*B17*(B20^(B11-1)))+(B12*B18*(B20^(B12-1)))+(1/B8) -> -5.939323812e-05 | C25: (-B11*B17*(B20^(B11-1)))+(B12*B18*(B20^(B12-1)))+(1/B8)
A26: SUM | B26: =SUM(ABS(B22:B25)) -> 7.535390406e-05
A27: SOLVER | B27: Set B26=0, and B23=B24=B25=B22, CHANGING B17:B20.
A29: Note that the annualized value of the abandonment cost is not above the perpetual operating cost
A30: value, so the simple stochastic entry model is inappropriate. Now the optimal entry price is
A31: below the Marshallian trigger, and the hysteresis range is narrower, because of the
A32: flexibility of exiting and then re-entering. Teachers offering this flexibility should attract
A33: larger numbers of students initially, but those student will come and go as the
A34: perceived benefits vary from class to class over time.

Sheet Problem 8.5
B1: Entry - Exit (STOCHASTIC MODEL)
A2: PROBLEM 8.5
A3: P= | B3: 9
A4: K= | B4: 100
A5: C= | B5: 3
A6: A= | B6: -55
A7: r= | B7: 0.1
A8: d= | B8: 0.05
A9: s= | B9: 0.3
A11: b1= | B11: =0.5-((B7-B8)/(B9^2))+SQRT(((((B7-B8)/(B9^2))-0.5)^2)+(2*(B7/(B9^2)))) -> 1.436191287 | C11: 0.5-((B7-B8)/(B9^2))+SQRT(((((B7-B8)/(B9^2))-0.5)^2)+(2*(B7/(B9^2))))
A12: b2= | B12: =0.5-((B7-B8)/(B9^2))-SQRT(((((B7-B8)/(B9^2))-0.5)^2)+(2*(B7/(B9^2)))) -> -1.547302398 | C12: 0.5-((B7-B8)/(B9^2))-SQRT(((((B7-B8)/(B9^2))-0.5)^2)+(2*(B7/(B9^2))))
A14: Vo(P) | B14: =B17*(B3^B11) -> 86.63635332 | C14: B17*(B3^B11)
A15: VK(P) | B15: =B18*(B3^B12)+(B3/B8)-(B5/B7) -> 159.2524434 | C15: B18*(B3^B12)+(B3/B8)-(B5/B7)
A16: NPV | B16: =(B3/B8)-(B5/B7)-B4 -> 50 | C16: (B3/B8)-(B5/B7)-B4
A17: A1 | B17: 3.691691368
A18: B2 | B18: 277.1776195
A19: PK | B19: 20.51758095
A20: PA | B20: 4.392455762
A21: PK-PA | B21: =B19-B20 -> 16.12512519
A22: Eq.8.14 | B22: =(B17*(B19^B11))-(B18*(B19^B12))-(B19/B8)+(B5/B7)+B4 -> -1.422530943e-06 | C22: (B17*(B19^B11))-(B18*(B19^B12))-(B19/B8)+(B5/B7)+B4
A23: Eq.8.15 | B23: =(B11*B17*(B19^(B11-1)))-(B12*B18*(B19^(B12-1)))-(1/B8) -> 1.253501303e-07 | C23: (B11*B17*(B19^(B11-1)))-(B12*B18*(B19^(B12-1)))-(1/B8)
A24: Eq.8.16 | B24: =(-B17*(B20^B11))+(B18*(B20^B12))+(B20/B8)-(B5/B7)+B6 -> -6.597553173e-05 | C24: (-B17*(B20^B11))+(B18*(B20^B12))+(B20/B8)-(B5/B7)+B6
A25: Eq.8.17 | B25: =(-B11*B17*(B20^(B11-1)))+(B12*B18*(B20^(B12-1)))+(1/B8) -> 5.630720011e-05 | C25: (-B11*B17*(B20^(B11-1)))+(B12*B18*(B20^(B12-1)))+(1/B8)
A26: SUM | B26: =SUM(ABS(B22:B25)) -> 0.0001238306129
A27: SOLVER | B27: Set B26=0, and B23=B24=B25=B22, CHANGING B17:B20.
A29: This analysis, stated on a per room basis, times 100 rooms is transformed into hotel.
A30: Consider the switching opportunity as a "negative" abandonment cost A.
A31: This is an in-the-money investment opportunity, since the NPV is positive, but
A32: the current investment should not be made yet until the price per room times
A33: the vacancy rate is above $20,500. Once the suite-hotel is constructed
A34: the switching-refurbishment alternative is quite valuable.
A35: Change P to 20.518, so that VK(P)=383, which is 103 over the then NPV,
A36: representing the switching-refurbishment option.

Sheet Problem 8.6
A1: Problem 8.6 | C1: Invest, Revert, Contract and Abandonment
B2: INPUT
A3: P | B3: Gross Profits | C3: 9
A4: K | B4: Initial Investment | C4: 100
A5: C | B5: Operating Cost | C5: 3
A6: r | B6: Riskless Rate | C6: 0.1
A7: δ | B7: Cost of Carry | C7: 0.05
A8: σ | B8: Volatility | C8: 0.3
A9: E | B9: Cost of Contracting | C9: 15
A10: A | B10: Abandonment Cost | C10: 5
A11: R | B11: Cost for Reversion:FS from Contraction | C11: 10
A12: C1 | B12: Reduced Operating Cost in Contraction | C12: 1
A13: ς | B13: Contraction Multiplier | C13: 0.5
A14: β1 | B14: Eq. 8.6 | C14: =0.5-((C6-C7)/(C8^2))+SQRT(((((C6-C7)/(C8^2))-0.5)^2)+(2*(C6/(C8^2)))) -> 1.436191287
A15: β2 | B15: Eq. 8.7 | C15: =0.5-((C6-C7)/(C8^2))-SQRT(((((C6-C7)/(C8^2))-0.5)^2)+(2*(C6/(C8^2)))) -> -1.547302398
A17: V0(P) | B17: Eq. 8.4 | C17: =C21*(C3^C14) -> 85.89581777 | D17: C21*(C3^C14)
A18: VK(P) | B18: Eq. 8.12 | C18: =C22*(C3^C15)+(C3/C7)-(C5/C6) -> 150.0252839 | D18: C22*(C3^C15)+(C3/C7)-(C5/C6)
A19: VC(P) | B19: Eq.8.23 | C19: =C23*(C3^C14)+C24*(C3^C15)+(C13*C3/C7)-(C12/C6) -> 140.1950083 | D19: C23*(C3^C14)+C24*(C3^C15)+(C13*C3/C7)-(C12/C6)
B20: NPV | C20: =(C3/C7)-(C5/C6)-C4 -> 50 | D20: (C3/C7)-(C5/C6)-C4
A21: A1 | B21: Value Coefficient of the Option to Invest | C21: 3.660136154
A22: B2 | B22: Value Coefficient of the Option to Contract | C22: 0.7574346389
A23: D1 | B23: Value Coefficient of the Option to Revert:FS1 | C23: 2.564498128
A24: D2 | B24: Value Coefficient of the Option to Abandon | C24: 0.3459064574
A25: P(K) | B25: Price Trigger for New Entry | C25: 21.39945528
A26: P(R) | B26: Price Trigger to Revert | C26: 9.869570038
A27: 'P'('C) | B27: Price Trigger to Contract | C27: 0.3779849818
A28: P(A) | B28: Price Trigger to Abandon | C28: 0.3298011696
B30: Eq.8.16 | C30: =(C21)*(C25^C14)-C22*(C25^C15)-(C25/C7)+(C5/C6)+C4 -> 1.136868377e-13 | D30: (C24)*(C28^C17)-C25*(C28^C18)-(C28/C10)+(C8/C9)+C7
B31: Eq.8.17 | C31: =C14*(C21)*(C25^(C14-1))-C15*C22*(C25^(C15-1))-(1/C7) -> 1.10134124e-13 | D31: C17*(C24)*(C28^(C17-1))-C18*C25*(C28^(C18-1))-(1/C10)
B32: Eq.8.26 | C32: =(-C23)*(C27^C14)+(C22-C24)*(C27^C15)+((1-C13)*C27)/C7-((C5-C12)/C6)+C9 -> 1.43884904e-13 | D32: (-C26)*(C30^C17)+(C25-C27)*(C30^C18)+((1-C16)*C30)/C10-((C8-C15)/C9)+C12
B33: Eq.8.27 | C33: =C14*(-C23)*(C27^(C14-1))+C15*(C22-C24)*(C27^(C15-1))+(1-C13)/C7 -> 1.477040712e-11 | D33: C17*(-C26)*(C30^(C17-1))+C18*(C25-C27)*(C30^(C18-1))+(1-C16)/C10
B34: Eq.8.28 | C34: =(C23)*(C26^C14)+(C24-C22)*(C26^C15)-(1-C13)*C26/C7+(C5-C12)/C6+C11 -> -8.526512829e-14 | D34: (C26)*(C29^C17)+(C27-C25)*(C29^C18)-(1-C16)*C29/C10+(C8-C15)/C9+C14
B35: Eq.8.29 | C35: =C14*(C23)*(C26^(C14-1))+C15*(C24-C22)*(C26^(C15-1))-(1-C13)/C7 -> -2.842170943e-14 | D35: C17*(C26)*(C29^(C17-1))+C18*(C27-C25)*(C29^(C18-1))-(1-C16)/C10
B36: Eq.8.30 | C36: =(C23-C21)*(C28^C14)+C24*(C28^C15)+((C13*C28)/C7)-C12/C6+C10 -> 1.306028047e-06 | D36: (C26-C24)*(C31^C17)+C27*(C31^C18)+((C16*C31)/C10)-C15/C9+C13
B37: Eq.8.31 | C37: =C14*(C23-C21)*(C28^(C14-1))+C15*C24*(C28^(C15-1))+(C13/C7) -> -1.276742114e-05 | D37: C17*(C26-C24)*(C31^(C17-1))+C18*C27*(C31^(C18-1))+(C16/C10)
B38: SOLVER: SET C38=0, CHANGING C30:C37 | C38: =SUM(ABS(C30:C37)) -> 1.407346444e-05
A40: Note it costs $5000 per room to abandon the hotel, and there is
A41: no switching-refurbishing alternative. Even so this contracting option is very valuable, increasing
A42: the option to invest from the previous problem, and the value of the full operating state is also
A43: increased. Note that the investment trigger for the room rent times the occupancy rate has decreased.
A44: If P rises to the investment trigger, the NPV is still 100 less than than the value of the full service
A45: state, representing the value of the contracting and reversion alternative. The contracting trigger
A46: is hardly greater than the abandonment trigger, but the reversion option is quite valuable.

Sheet Exercise 9.1 A
A1: Duopoly Competition with Permanent First-Mover Advantage
A2: Stochastic Value
A3: Exercise 9.1 A
A5: Risk-free Rate of Interest (r) | B5: 0.04
A6: Expected Drift of V (m) | B6: 0
A7: Volatility of Value (s) | B7: 0.2
A8: Leader's Market Share After Follower's Entry (a) | B8: 0.66666
A9: Total Market Value (V) | B9: 1000000
A10: Investment Cost (K) | B10: 1000000
A11: Follower's Real Option Value | B11: =IF(B9<B14,B17,B18) -> 27778.8889 | C11: IF(B9<B14,B17,B18)
A12: Leader's Real Option Value | B12: =IF(B9<B14,B19,B20) -> -55557.7778 | C12: IF(B9<B14,B19,B20)
A14: Investment Trigger Follower (VF) | B14: =(B22/(B22-1))*B10*(1/(1-B8)) -> 5999880.002 | C14: (B22/(B22-1))*B10*(1/(1-B8))
A15: Investment Trigger Leader (VL) | B15: =B25 -> 1101025.464
A17: Follower's Real Option Value (Before Entry) | B17: =(((1-B8)*B14-B10)*(B9/B14)^B22) -> 27778.8889 | C17: (((1-B8)*B14-B10)*(B9/B14)^B22)
A18: Follower's Real Option Value (After Entry) | B18: =((1-B8)*B9-B10) -> -666660 | C18: ((1-B8)*B9-B10)
A19: Leader's Real Option Value (Before Entry of F.) | B19: =B9-(B9^B22)*(B14^(1-B22))+B8*B14*(B9/B14)^B22-B10 -> -55557.7778 | C19: B9-(B9^B22)*(B14^(1-B22))+B8*B14*(B9/B14)^B22-B10
A20: Leader's Real Option Value (After Entry of F.) | B20: =B8*B9 -> 666660 | C20: B8*B9
A22: b1 | B22: =0.5-(B6/B7^2)+SQRT(((B6/B7^2)-0.5)^2+(2*B5/B7^2)) -> 2 | C22: 0.5-(B6/B7^2)+SQRT(((B6/B7^2)-0.5)^2+(2*B5/B7^2))
A23: IF B22=2 | B23: QUADRATIC SOLUTION
A24: d | B24: =(B14^(-B22))*((1-B8)*B14-B10)+(1-B8)*B14^(1-B22) -> 8.33366667e-08 | C24: (B14^(-B22))*((1-B8)*B14-B10)+(1-B8)*B14^(1-B22)
A25: B15= | B25: =(1-SQRT(1-4*B24*B10))/(2*B24) -> 1101025.464 | C25: (1-SQRT(1-4*B24*B10))/(2*B24)
A27: Assuming that the total market is $1,000,000 and that Julia's value will be 2/3rds of that amount after
A28: the follower enters, at the current V, the leader's value is negative. Note that the current NPV after the
A29: follower enters for both the leader and follower is now -$1,000,000, since the total market is $1,000,000
A30: and both have the same investment cost of $1,000,000. Note that if V=$1,101,025, the value of the
A31: follower and leader are equal, so it pays then to be the leader.
A32: Mark should not enter until V is six times the current V, when he will have a value of his RO earnings of
A33: $1,999,940.

Sheet Exercise 9.1 B
A1: Duopoly Competition with Permanent First-Mover Advantage
A2: Stochastic Value
A3: Exercise 9.1 B
A5: Risk-free Rate of Interest (r) | B5: 0.04
A6: Expected Drift of V (m) | B6: 0
A7: Volatility of Value (s) | B7: 0.2
A8: Leader's Market Share After Follower's Entry (a) | B8: 0.66666
A9: Total Market Value (V) | B9: 1101025
A10: Investment Cost (K) | B10: 1000000
A11: Follower's Real Option Value | B11: =IF(B9<B14,B17,B18) -> 33675.12615 | C11: IF(B9<B14,B17,B18)
A12: Leader's Real Option Value | B12: =IF(B9<B14,B19,B20) -> 33674.7477 | C12: IF(B9<B14,B19,B20)
A14: Investment Trigger Follower (VF) | B14: =(B22/(B22-1))*B10*(1/(1-B8)) -> 5999880.002 | C14: (B22/(B22-1))*B10*(1/(1-B8))
A15: Investment Trigger Leader (VL) | B15: =B25 -> 1101025.464
A17: Follower's Real Option Value (Before Entry) | B17: =(((1-B8)*B14-B10)*(B9/B14)^B22) -> 33675.12615 | C17: (((1-B8)*B14-B10)*(B9/B14)^B22)
A18: Follower's Real Option Value (After Entry) | B18: =((1-B8)*B9-B10) -> -632984.3265 | C18: ((1-B8)*B9-B10)
A19: Leader's Real Option Value (Before Entry of F.) | B19: =B9-(B9^B22)*(B14^(1-B22))+B8*B14*(B9/B14)^B22-B10 -> 33674.7477 | C19: B9-(B9^B22)*(B14^(1-B22))+B8*B14*(B9/B14)^B22-B10
A20: Leader's Real Option Value (After Entry of F.) | B20: =B8*B9 -> 734009.3265 | C20: B8*B9
A22: b1 | B22: =0.5-(B6/B7^2)+SQRT(((B6/B7^2)-0.5)^2+(2*B5/B7^2)) -> 2 | C22: 0.5-(B6/B7^2)+SQRT(((B6/B7^2)-0.5)^2+(2*B5/B7^2))
A23: IF B22=2 | B23: QUADRATIC SOLUTION
A24: d | B24: =(B14^(-B22))*((1-B8)*B14-B10)+(1-B8)*B14^(1-B22) -> 8.33366667e-08 | C24: (B14^(-B22))*((1-B8)*B14-B10)+(1-B8)*B14^(1-B22)
A25: B15= | B25: =(1-SQRT(1-4*B24*B10))/(2*B24) -> 1101025.464 | C25: (1-SQRT(1-4*B24*B10))/(2*B24)
A27: If V=$1,101,025, the leader and follower value functions would be equal (B17=B19), so at
A28: that point it pays to be the leader and Julia should invest.

Sheet Problem 9.2
A1: RIVALRY UNDER PRICE & QUANTITY UNCERTAINTY
A2: Problem 9.2
A3: r | B3: 0.04
A4: u | B4: 0
A5: w | B5: 0
A6: s
A7: s2
A8: a
A9: a2
A10: r
A12: b | B12: 2
A13: P | B13: 0.1
A14: Q | B14: 5
A15: X | B15: =+B14*B13 -> 0.5
A16: K | B16: 12.5
A17: XF | B17: =B12*(B3-B5-B4)*B16/(B12-1) -> 1 | C17: B12*(B3-B5-B4)*B16/(B12-1)
A18: Option | B18: =B16/(B12-1)*((B15/B17)^B12) -> 3.125 | C18: B16/(B12-1)*((B15/B17)^B12)
A19: NPV | B19: =B15/(B3-B4-B5)-B16 -> 0 | C19: B15/(B3-B4-B5)-B16
A20: Follower ROV | B20: =IF(B15<B17,B18,B19) -> 3.125 | C20: IF(B15<B17,B18,B19)
A21: m | B21: 1
A22: m* | B22: 2
A23: Leader before | B23: =(B15/B17)^B12*B16*B12/(B12-1)*(B21-B22)+B15*B22/(B3-B5-B4)-B16 -> 6.25 | C23: (B15/B17)^B12*B16*B12/(B12-1)*(B21-B22)+B15*B22/(B3-B5-B4)-B16
A24: Leader after | B24: =B15*B21/(B3-B5-B4) -> 12.5 | C24: B15*B21/(B3-B5-B4)
A25: Leader ROV | B25: =IF(B15<B17,B23,B24) -> 6.25 | C25: IF(B15<B17,B23,B24)
A26: XL | B26: 0.3333333448
A27: Solver | B27: =((B26/B17)^B12)*B16*B12/(B12-1)*(B21-B22)+B26*B22/(B3-B4-B5)-B16-(B16/(B12-1))*((B26/B17)^B12) -> 2.85655108e-07 | C27: Set B27=0, Changing B26.
A28: =A29 -> Quadratic | B28: =((-B22/(B3-B4-B5))+SQRT(4*(B16^2)*(2*(B21-B22)-1)+(-B22/(B3-B4-B5))^2))/(2*B16*(2*(B21-B22)-1)) -> 0.3333333333
A29: Quadratic | B29: ((-B22/(B3-B4-B5))+SQRT(4*(B16^2)*(2*(B21-B22)-1)+(-B22/(B3-B4-B5))^2))/(2*B16*(2*(B21-B22)-1))
A30: Solver | B30: ((B26/B17)^B12)*B16*B12/(B12-1)*(B21-B22)+B26*B22/(B3-B4-B5)-B16-B16/(B12-1)*(B26/B17)^B12
A31: Julia should become the leader (invest) now since X>XL .
A32: Mark should restrain himself until X reaches 1 (any combination of P & Q, such as
A33: P=.10 and Q=10), but the follower's ROV is significant.

Sheet Problem 9.3
A1: RIVALRY UNDER NET REVENUE & INVESTMENT COST UNCERTAINTY
A2: Problem 9.3
A3: Riskless rate | B3: 0.08
A4: Value Drift | B4: 0.04
A5: Cost Drift | B5: 0
A6: Value Volatility
A7: Cost Volatility
A8: Correlation
A9: s2
A10: a2
A11: g2
A12: b1 | B12: 2
A13: PV of CF (F)=V | B13: =B14/(B3-B4) -> 12.5 | C13: B14/(B3-B4)
A14: Eq AnnualRevenue | B14: 0.5
A15: K | B15: 12.5
A16: Y Current | B16: =B14/B15 -> 0.04 | C16: B14/B15
A17: YF Trigger | B17: =(B3-B4)*B12/(B12-1) -> 0.08 | C17: (B3-B4)*B12/(B12-1)
A18: Follower Before | B18: =B15/(B12-1)*(B16/B17)^B12 -> 3.125 | C18: B15/(B12-1)*(B16/B17)^B12
A19: Follower After | B19: =B14/(B3-B4)-B15 -> 0 | C19: B14/(B3-B4)-B15
A20: Follower Value | B20: =IF(B16<B17,B18,B19) -> 3.125 | C20: IF(B16<B17,B18,B19)
A21: m (L's Market A/F) | B21: 1
A22: m*(Total Market) | B22: 2
A23: Leader Before | B23: =B14*B22/(B3-B4)+(B16/B17)^B12*B12*B15/(B12-1)*(B21-B22)-B15 -> 6.25 | C23: B14*B22/(B3-B4)+(B16/B17)^B12*B12*B15/(B12-1)*(B21-B22)-B15
A24: Leader After | B24: =B14*B21/(B3-B4) -> 12.5 | C24: B14*B21/(B3-B4)
A25: Leader Value | B25: =IF(B16<B17,B23,B24) -> 6.25 | C25: IF(B16<B17,B23,B24)
A26: Follower at YL | B26: =B15/(B12-1)*(B28/B17)^B12 -> 1.388889137 | C26: B15/(B12-1)*(B28/B17)^B12
A27: Leader at YL | B27: =B15*B28*B22/(B3-B4)+(B28/B17)^B12*B12*B15/(B12-1)*(B21-B22)-B15 -> 1.388889881 | C27: B15*B28*B22/(B3-B4)+(B28/B17)^B12*B12*B15/(B12-1)*(B21-B22)-B15
A28: YL Trigger | B28: 0.02666666905 | C28: SOLVER: SET B29=0, CHANGING B28.
A29: YF-YL | B29: =B27-B26 -> 7.438532625e-07 | C29: B27-B26
A30: Quadratic | B30: =((-B22/(B3-B4-B5))+SQRT(4*(B15^2)*(2*(B21-B22)-1)+(-B22/(B3-B4-B5))^2))/(2*B15*(2*(B21-B22)-1))/B15 -> 0.02666666667
A31: ((-B22/(B3-B4-B5))+SQRT(4*(B16^2)*(2*(B21-B22)-1)+(-B22/(B3-B4-B5))^2))/(2*B16*(2*(B21-B22)-1))/b15
A32: YF Trigger *K | B32: =B17*B15 -> 1
A33: USE: INPUTS INTO BOLD BLUE CELLS
A34: SOLVER: SET B29=0, CHANGING B28.
A36: Notice that the follower's trigger multiplied by K equals 1 (B32), so the quadratic solution can
A37: be used. This is an out-of-the money call option for the follower, since he will
A38: have V=12.5/2-K=-6.25, but the real option value is significant.
A39: The leader should enter now since Y>Y(L), but the follower should delay.

Sheet Problem 9.4
A1: Duopoly Competition with Permanent First-Mover Advantage
A2: Stochastic Value
A3: Problem 9.4
A5: Risk-free Rate of Interest (r) | B5: 0.05
A6: Expected Drift of V (m) | B6: 0
A7: Volatility of Value (s) | B7: 0.4
A8: Leader's Market Share After Follower's Entry (a) | B8: 0.65
A9: Total Market Value (V) | B9: 1250000
A10: Investment Cost (K) | B10: 1000000
A11: Follower's Real Option Value | B11: =IF(B9<B14,B17,B18) -> 126502.8702 | C11: IF(B9<B14,B17,B18)
A12: Leader's Real Option Value | B12: =IF(B9<B14,B19,B20) -> 68415.96518 | C12: IF(B9<B14,B19,B20)
A14: Investment Trigger Follower (VF) | B14: =(B22/(B22-1))*B10*(1/(1-B8)) -> 9419037.013 | C14: (B22/(B22-1))*B10*(1/(1-B8))
A15: Investment Trigger Leader (VL) | B15: 1340661.351
A17: Follower's Real Option Value (Before Entry) | B17: =(((1-B8)*B14-B10)*(B9/B14)^B22) -> 126502.8702 | C17: (((1-B8)*B14-B10)*(B9/B14)^B22)
A18: Follower's Real Option Value (After Entry) | B18: =((1-B8)*B9-B10) -> -562500 | C18: ((1-B8)*B9-B10)
A19: Leader's Real Option Value (Before Entry of F.) | B19: =B9-(B9^B22)*(B14^(1-B22))+B8*B14*(B9/B14)^B22-B10 -> 68415.96518 | C19: B9-(B9^B22)*(B14^(1-B22))+B8*B14*(B9/B14)^B22-B10
A20: Leader's Real Option Value (After Entry of F.) | B20: =(B8*B9) -> 812500 | C20: (B8*B9)
A22: b1 | B22: =0.5-(B6/B7^2)+SQRT(((B6/B7^2)-0.5)^2+(2*B5/B7^2)) -> 1.435414347 | C22: 0.5-(B6/B7^2)+SQRT(((B6/B7^2)-0.5)^2+(2*B5/B7^2))
A23: Leader's Value Function at Trigger | B23: =B15-(B15^B22)*(B14^(1-B22))+B8*B14*(B15/B14)^B22-B10 -> 139878.19 | C23: B15-(B15^B22)*(B14^(1-B22))+B8*B14*(B15/B14)^B22-B10
A24: Follower's Value Function at Trigger | B24: =(((1-B8)*B14-B10)*(B15/B14)^B22) -> 139878.19 | C24: (((1-B8)*B14-B10)*(B15/B14)^B22)
A25: B22-B23, changing B14. | B25: =B23-B24 -> 1.478765626e-07 | C25: B23-B24
A27: Since beta does not equal 2, the simple solution cannot be used.
A28: The leader's trigger is the result of equating the value functions of the leader and follower.
A29: subsituting the trigger for V in cells B23 and B24, setting B25=0, by changing B15, using Solver.
A30: Now Julia should delay becoming the leader since V<V(L), and
A31: Mark should restrain himself until V reaches over 7.5 times the current V, due to the high V volatility.

Sheet Problem 9.5
A1: RIVALRY UNDER PRICE & QUANTITY UNCERTAINTY
A2: Problem 9.5
A3: r | B3: 0.04
A4: u | B4: 0
A5: w | B5: 0
A6: s | B6: 0.4
A7: s2 | B7: =+B6^2 -> 0.16
A8: a | B8: 0.3
A9: a2 | B9: =B8^2 -> 0.09
A10: r | B10: -0.2
A11: z2 | B11: =B7+B9+2*B6*B8*B10 -> 0.202 | C11: B7+B9+2*B6*B8*B10
A12: b | B12: =0.5-(B4-B5)/(B11)+SQRT(((B4-B5)/(B11)-0.5)^2 + 2*B3/(B11)) -> 1.303765889 | C12: 0.5-(B4-B5)/(B11)+SQRT(((B4-B5)/(B11)-0.5)^2 + 2*B3/(B11))
A13: P | B13: 0.2
A14: Q | B14: 5
A15: X | B15: =B13*B14 -> 1 | C15: B13*B14
A16: K | B16: 20
A17: XF | B17: =B12*(B3-B5-B4)*B16/(B12-1) -> 3.433607095 | C17: B12*(B3-B5-B4)*B16/(B12-1)
A18: Option | B18: =B16/(B12-1)*((B15/B17)^B12) -> 13.18249569 | C18: B16/(B12-1)*((B15/B17)^B12)
A19: NPV | B19: =B15/(B3-B4-B5)-B16 -> 5 | C19: B15/(B3-B4-B5)-B16
A20: Follower ROV | B20: =IF(B15<B17,B18,B19) -> 13.18249569 | C20: IF(B15<B17,B18,B19)
A21: m | B21: 2
A22: m* | B22: 4
A23: Leader before | B23: =(B15/B17)^B12*B16*B12/(B12-1)*(B21-B22)+B15*B22/(B3-B5-B4)-B16 -> 45.62622358 | C23: (B15/B17)^B12*B16*B12/(B12-1)*(B21-B22)+B15*B22/(B3-B5-B4)-B16
A24: Leader after | B24: =B15*B21/(B3-B5-B4) -> 50 | C24: B15*B21/(B3-B5-B4)
A25: Leader ROV | B25: =IF(B15<B17,B23,B24) -> 45.62622358 | C25: IF(B15<B17,B23,B24)
A26: XL | B26: 0.2981909995
A27: Solver | B27: =(B26/B17)^B12*B16*B12/(B12-1)*(B21-B22)+B26*B22/(B3-B4-B5)-B16-B16/(B12-1)*(B26/B17)^B12 -> -3.914139866e-07
A28: (B26/B17)^B12*B16*B12/(B12-1)*(B21-B22)+B26*B22/(B3-B4-B5)-B16-B16/(B12-1)*(B26/B17)^B12
A29: Set B27=0, Changing B26.
A31: Julia should invest now since X>XL , and also the NPV is positive.
A32: Mark should restrain himself until X reaches 3.4 times the current level
A33: although his option value is significant.

Sheet Problem 9.6
A1: RIVALRY UNDER NET REVENUE & INVESTMENT COST UNCERTAINTY
A2: Problem 9.6
A3: Riskless rate | B3: 0.04
A4: Value Drift | B4: 0
A5: Cost Drift | B5: 0.02
A6: Value Volatility | B6: 0.6
A7: Cost Volatility | B7: 0.1
A8: Correlation | B8: 0.2
A9: s2 | B9: =+B6^2 -> 0.36
A10: a2 | B10: =+B7^2 -> 0.01
A11: g2 | B11: =B9+B10-2*B6*B7*B8 -> 0.346 | C11: B9+B10-2*B6*B7*B8
A12: b1 | B12: =0.5+(B4-B5)/B11+SQRT(((B4-B5)/B11-0.5)^2+2*B5/B11) -> 1.095458842 | C12: 0.5+(B4-B5)/B11+SQRT(((B4-B5)/B11-0.5)^2+2*B5/B11)
A13: PV of CF (F)=V | B13: =B14/(B3-B4) -> 1000000 | C13: B14/(B3-B4)
A14: Eq AnnualReturnF | B14: 40000
A15: K | B15: 1000000
A16: Y Current | B16: =B14/B15 -> 0.04 | C16: B14/B15
A17: YF Trigger | B17: =(B3-B4)*B12/(B12-1) -> 0.4590287592 | C17: (B3-B4)*B12/(B12-1)
A18: Follower Before | B18: =B15/(B12-1)*(B16/B17)^B12 -> 723166.9549 | C18: B15/(B12-1)*(B16/B17)^B12
A19: Follower After | B19: =B14/(B3-B4)-B15 -> 0 | C19: B14/(B3-B4)-B15
A20: Follower Value | B20: =IF(B16<B17,B18,B19) -> 723166.9549 | C20: IF(B16<B17,B18,B19)
A21: m (L's Market A/F) | B21: 2
A22: m*(Total Market) | B22: 3
A23: Leader Before | B23: =B14*B22/(B3-B4)+(B16/B17)^B12*B12*B15/(B12-1)*(B21-B22)-B15 -> 1207800.365 | C23: B14*B22/(B3-B4)+(B16/B17)^B12*B12*B15/(B12-1)*(B21-B22)-B15
A24: Leader After | B24: =B14*B21/(B3-B4) -> 2000000 | C24: B14*B21/(B3-B4)
A25: Leader Value | B25: =IF(B16<B17,B23,B24) -> 1207800.365 | C25: IF(B16<B17,B23,B24)
A26: Follower at YL | B26: =B15/(B12-1)*(B28/B17)^B12 -> 448584.9345 | C26: B15/(B12-1)*(B28/B17)^B12
A27: Leader at YL | B27: =B15*B28*B22/(B3-B4)+(B28/B17)^B12*B12*B15/(B12-1)*(B21-B22)-B15 -> 448584.9345 | C27: B15*B28*B22/(B3-B4)+(B28/B17)^B12*B12*B15/(B12-1)*(B21-B22)-B15
A28: YL Trigger | B28: 0.02586655023 | C28: SOLVER: SET B29=0, CHANGING B28.
A29: YF-YL | B29: =B27-B26 -> 1.575681381e-07 | C29: B27-B26
A30: USE: INPUTS INTO BOLD BLUE CELLS
A31: SOLVER: SET B29=0, CHANGING B28.
A32: NOTE: ASSUMES K FOR EACH FIRM IS THE SAME REGARDLESS OF MARKET SHARE.
A34: This wonderful RO class and models indicate that Julia should invest now to become the
A35: leader since Y>Y(L), since she will have a very good return until Mark is inspired.
A36: Mark should restrain himself for a little while, until Y>.46, which may be soon. If he is
A37: impatient, perhaps he might attempt to sell his option to enter, although the number of students
A38: in this wonderful RO class are, so far, limited.

Sheet Exercise 10.1
B1: Real Debt Strategy Simple
A2: Exercise10.1
B4: ACCOUNTS | C4: REAL
A5: ASSETS | B5: =B10 -> 100 | C5: =C10-C15*C19*(C19/C10)^-C20 -> 87.5 | D5: C10-C15*C19*(C19/C10)^-C20
A6: DEBT | B6: 100 | C6: =B6+((1-C15)*C19-B6)*(C19/C10)^-C20 -> 62.5 | D6: B6+((1-C15)*C19-B6)*(C19/C10)^-C20
A7: EQ | B7: =B5-B6 -> 0 | C7: =C5-C6 -> 25 | D7: C5-C6
A9: INPUT
A10: NOM V | B10: 100 | C10: =B10 -> 100
A11: Coupon | B11: 4 | C11: =B11 -> 4
A12: NOM Debt | B12: =B11/C17 -> 100 | C12: =B12 -> 100
A13: d | C13: 0.04
A14: s | C14: 0.2
A15: a | C15: 0.5
A16: t | C16: 0
A17: r(f) | C17: 0.04
A18: OUTPUT
A19: VB | C19: =((((1-C16)*C11)/C17))*-C20/(1-C20) -> 50 | D19: (1-C16)*(C11/C17)*(-C20/(-C20+1))
A20: b2 | C20: =(0.5-(C17-C13)/(C14^2)-SQRT((0.5-(C17-C13)/(C14^2))^2+2*C17/(C14^2))) -> -1
A22: b2 | B22: (0.5-(C17-C13)/(C14^2)-SQRT((0.5-(C17-C13)/(C14^2))^2+2*C17/(C14^2)))

Sheet Exercise 10.2
B1: Real Debt Strategy Simple
A2: Exercise10.2
B4: ACCOUNTS | C4: REAL
A5: ASSETS | B5: =B10 -> 100 | C5: =C10-C15*C19*(C19/C10)^-C20 -> 85.18518519 | D5: C10-C15*C19*(C19/C10)^-C20
A6: DEBT | B6: 100 | C6: =B6+((1-C15)*C19-B6)*(C19/C10)^-C20 -> 70.37037037 | D6: B6+((1-C15)*C19-B6)*(C19/C10)^-C20
A7: EQ | B7: =B5-B6 -> 0 | C7: =C5-C6 -> 14.81481481 | D7: C5-C6
A9: INPUT
A10: NOM V | B10: 100 | C10: =B10 -> 100
A11: Coupon | B11: 8 | C11: =B11 -> 8
A12: NOM Debt | B12: =B11/C17 -> 100 | C12: =B12 -> 100
A13: d | C13: 0.06
A14: s | C14: 0.2
A15: a | C15: 0.5
A16: t | C16: 0
A17: r(f) | C17: 0.08
A18: OUTPUT
A19: VB | C19: =((((1-C16)*C11)/C17))*-C20/(1-C20) -> 66.66666667 | D19: (1-C16)*(C11/C17)*(-C20/(-C20+1))
A20: b2 | C20: =(0.5-(C17-C13)/(C14^2)-SQRT((0.5-(C17-C13)/(C14^2))^2+2*C17/(C14^2))) -> -2
A22: b2 | B22: (0.5-(C17-C13)/(C14^2)-SQRT((0.5-(C17-C13)/(C14^2))^2+2*C17/(C14^2)))

Sheet Exercise 10.3
B1: Real Debt Strategy Simple
A2: Exercise10.3
B4: ACCOUNTS | C4: REAL
A5: ASSETS | B5: =B10 -> 200 | C5: =C10-C15*C19*(C19/C10)^-C20 -> 193.75 | D5: C10-C15*C19*(C19/C10)^-C20
A6: DEBT | B6: 100 | C6: =B6+((1-C15)*C19-B6)*(C19/C10)^-C20 -> 81.25 | D6: B6+((1-C15)*C19-B6)*(C19/C10)^-C20
A7: EQ | B7: =B5-B6 -> 100 | C7: =C5-C6 -> 112.5 | D7: C5-C6
A9: INPUT
A10: NOM V | B10: 200 | C10: =B10 -> 200
A11: Coupon | B11: 4 | C11: =B11 -> 4
A12: NOM Debt | B12: =B11/C17 -> 100 | C12: =B12 -> 100
A13: d | C13: 0.04
A14: s | C14: 0.2
A15: a | C15: 0.5
A16: t | C16: 0
A17: r(f) | C17: 0.04
A18: OUTPUT
A19: VB | C19: =((((1-C16)*C11)/C17))*-C20/(1-C20) -> 50 | D19: (1-C16)*(C11/C17)*(-C20/(-C20+1))
A20: b2 | C20: =(0.5-(C17-C13)/(C14^2)-SQRT((0.5-(C17-C13)/(C14^2))^2+2*C17/(C14^2))) -> -1
A22: b2 | B22: (0.5-(C17-C13)/(C14^2)-SQRT((0.5-(C17-C13)/(C14^2))^2+2*C17/(C14^2)))

Sheet Problem 10.4
B1: Real Debt Strategy Simple
A2: Problem10.4
B4: ACCOUNTS | C4: REAL
A5: ASSETS | B5: =B10 -> 100 | C5: =C10+(C16*C11/C17)*(1-(C19/C10)^-C20)-C15*C19*(C19/C10)^-C20 -> 115.4560644 | D5: C10+(C16*C11/C17)*(1-(C19/C10)^-C20)-C15*C19*(C19/C10)^-C20
A6: DEBT | B6: =B11/C17 -> 100 | C6: =B6+((1-C15)*C19-B6)*(C19/C10)^-C20 -> 62.20341392 | D6: B6+((1-C15)*C19-B6)*(C19/C10)^-C20
A7: EQ | B7: =B5-B6 -> 0 | C7: =C5-C6 -> 53.25265049 | D7: C5-C6
A9: INPUT
A10: NOM V | B10: 100 | C10: =B10 -> 100
A11: Coupon | B11: 4 | C11: =B11 -> 4
A12: NOM Debt | B12: =B11/C17 -> 100 | C12: =B12 -> 100
A13: d | C13: 0.04
A14: s | C14: 0.3
A15: a | C15: 0.4
A16: t | C16: 0.35
A17: r(f) | C17: 0.04
A18: OUTPUT
A19: VB | C19: =(1-C16)*(C11/C17)*(-C20/(-C20+1)) -> 23.52442336 | D19: (1-C16)*(C11/C17)*(-C20/(-C20+1))
A20: b2 | C20: =(0.5-(C17-C13)/(C14^2)-SQRT((0.5-(C17-C13)/(C14^2))^2+2*C17/(C14^2))) -> -0.5671873729
A22: b2 | B22: (0.5-(C17-C13)/(C14^2)-SQRT((0.5-(C17-C13)/(C14^2))^2+2*C17/(C14^2)))

Sheet Problem 10.5
B1: Real Debt Strategy
B2: Problem 10.5
A3: BASE CASE
B4: ACCOUNTS | C4: REAL 1 | D4: REAL 2
A5: ASSETS | B5: =B10 -> 100 | C5: =C10+(C16*C11/C17)*(1-(C19/C10)^-C20)-C15*C19*(C19/C10)^-C20 -> 118.5396961 | D5: =D10+(D16*D11/D17)*(1-(D19/D10)^-D20)-D15*D19*(D19/D10)^-D20 -> 122.7150752 | E5: V*
A6: DEBT | B6: =B11/C17 -> 133.3333333 | C6: =(C11/C17)+((1-C15)*C19-(C11/C17))*(C19/C10)^-C20 -> 90.33494244 | D6: =(D11/D17)+((1-D15)*D19-(D11/D17))*(D19/D10)^-D20 -> 94.7017342 | E6: D*
A7: EQ | B7: =B5-B6 -> -33.33333333 | C7: =C5-C6 -> 28.20475365 | D7: =D5-D6 -> 28.01334101 | E7: E*
C8: WE CHOOSE | D8: YOU CHOOSE
A9: Retained Equity | B9: MAX | C9: =C7 -> 28.20475365 | D9: =(1-D24)*D7 -> 28.01334101
A10: NOM V | B10: 100 | C10: =B10 -> 100 | D10: 100
A11: Coupon | B11: 8 | C11: 8 | D11: 8
A12: NOM Debt | B12: =B11/C17 -> 133.3333333 | C12: 133.3333333 | D12: 133.3333333
A13: d | C13: 0.06 | D13: =C13 -> 0.06
A14: s | C14: 0.2 | D14: =C14 -> 0.2
A15: a | C15: 0.5 | D15: =C15 -> 0.5
A16: t | C16: 0.35 | D16: =C16 -> 0.35
A17: r(f) | C17: 0.06 | D17: =C17 -> 0.06
A18: OUTPUT
A19: VB | C19: =(1-C16)*(C11/C17)*(-C20/(-C20+1)) -> 49.03092602 | D19: =$B$6/D23 -> 44.44444444
A20: b2 | C20: =(0.5-(C17-C13)/(C14^2)-SQRT((0.5-(C17-C13)/(C14^2))^2+2*C17/(C14^2))) -> -1.302775638 | D20: =(0.5-(D17-D13)/(D14^2)-SQRT((0.5-(D17-D13)/(D14^2))^2+2*D17/(D14^2))) -> -1.302775638
A21: LTV | B21: =$B$6/B5 -> 1.333333333 | C21: =$B$6/C19 -> 2.719372122 | D21: =$B$6/D19 -> 3
C23: LTV MAX | D23: 3
C24: SHARED EQUITY | D24: 0
A25: DEBT* + SH EQ | C25: =C6 -> 90.33494244 | D25: =D6 -> 94.7017342

Sheet Problem 10.6
F1: Real Debt Strategy i
A2: Problem 10.6
A3: BASE CASE
B4: ACCOUNTS | C4: REAL 1 | D4: REAL 2 | E4: REAL 3 | F4: REAL 4 | G4: REAL 5 | H4: REAL 6 | I4: REAL 7
A5: ASSETS | B5: =B10 -> 40 | C5: =C10+(C16*C11/C17)*(1-(C19/C10)^-C20)-C15*C19*(C19/C10)^-C20 -> 36.25388077 | D5: =D10+(D16*D11/D17)*(1-(D19/D10)^-D20)-D15*D19*(D19/D10)^-D20 -> 43.56084171 | E5: 42.86012627 | F5: 41.86155785 | G5: 41.06040098 | H5: 39.91602229 | I5: 38.99567463 | J5: V*
A6: DEBT | B6: =B11/C17 -> 66.66666667 | C6: =(C11/C17)+((1-C15)*C19-(C11/C17))*(C10^C20)*C19^-C20 -> 34.66860554 | D6: =(D11/D17)+((1-D15)*D19-(D11/D17))*(D10^D20)*D19^-D20 -> 42.41679337 | E6: 41.63089605 | F6: 40.52830025 | G6: 39.65773144 | H6: 38.4347407 | I6: 37.46782871 | J6: D*
A7: EQ | B7: =B5-B6 -> -26.66666667 | C7: =C10-(1-C16)*(C11/C17)+((1-C16)*(C11/C17)-C19)*((C19/C10)^-C20) -> 1.585275236 | D7: =D10-(1-D16)*(D11/D17)+((1-D16)*(D11/D17)-D19)*((D19/D10)^-D20) -> 1.144048337 | E7: 1.229230219 | F7: 1.3332576 | G7: 1.402669537 | H7: 1.481281588 | I7: 1.527845921 | J7: E*
C8: WE CHOOSE | D8: YOU CHOOSE | E8: NEGOTIATE | F8: NEGOTIATE | G8: NEGOTIATE | H8: NEGOTIATE | I8: NEGOTIATE
A9: Retained Equity | C9: =C7 -> 1.585275236 | D9: =(1-D23)*D7 -> 1.144048337 | E9: 1.216937917 | F9: 1.306592448 | G9: 1.36058945 | H9: 1.422030324 | I9: 1.451453625
A10: NOM V | B10: 40 | C10: =B10 -> 40 | D10: =C10 -> 40 | E10: =D10 -> 40 | F10: 40 | G10: =B10 -> 40 | H10: 40 | I10: 40
A11: Coupon | B11: 4 | C11: =B11 -> 4 | D11: =C11 -> 4 | E11: 4 | F11: 4 | G11: 4 | H11: 4 | I11: 4
A12: NOM Debt | B12: =B11/C17 -> 66.66666667 | C12: 66.66666667 | D12: =C12 -> 66.66666667 | E12: 66.66666667 | F12: 66.66666667 | G12: 66.66666667 | H12: 66.66666667 | I12: 66.66666667
A13: d | C13: 0.01 | D13: =C13 -> 0.01 | E13: 0.01 | F13: 0.01 | G13: 0.01 | H13: 0.01 | I13: 0.01
A14: s | C14: 0.2 | D14: =C14 -> 0.2 | E14: 0.2 | F14: 0.2 | G14: 0.2 | H14: 0.2 | I14: 0.2
A15: a | C15: 0.5 | D15: =C15 -> 0.5 | E15: 0.5 | F15: 0.5 | G15: 0.5 | H15: 0.5 | I15: 0.5
A16: t | C16: 0.3 | D16: 0.3 | E16: 0.3 | F16: 0.3 | G16: 0.3 | H16: 0.3 | I16: 0.3
A17: r(f) | C17: 0.06 | D17: 0.06 | E17: 0.06 | F17: 0.06 | G17: 0.06 | H17: 0.06 | I17: 0.06
A18: OUTPUT
A19: VB | C19: =(1-C16)*(C11/C17)*(-C20/(-C20+1)) -> 33.83719651 | D19: =$B$6/D22 -> 30.03003003 | E19: =$B$6/E22 -> 30.4414003 | F19: 31.00775194 | G19: 31.44654088 | H19: 32.05128205 | I19: 32.5203252
A20: b2 | C20: =(0.5-(C17-C13)/(C14^2)-SQRT((0.5-(C17-C13)/(C14^2))^2+2*C17/(C14^2))) -> -2.637458609 | D20: =(0.5-(D17-D13)/(D14^2)-SQRT((0.5-(D17-D13)/(D14^2))^2+2*D17/(D14^2))) -> -2.637458609 | E20: -2.637458609 | F20: -2.637458609 | G20: -2.637458609 | H20: -2.637458609 | I20: -2.637458609
A21: LTV | B21: =$B$12/B5 -> 1.666666667 | C21: =$B$12/C5 -> 1.838883597 | D21: =$B$12/D5 -> 1.530426504 | E21: 1.555447276 | F21: 1.59255102 | G21: 1.623624346 | H21: 1.6701731 | I21: 1.709591315
C22: LTV MAX | D22: 2.22 | E22: 2.19 | F22: 2.15 | G22: 2.12 | H22: 2.08 | I22: 2.05
C23: SHARED EQUITY | D23: 0 | E23: 0.01 | F23: =E23+0.01 -> 0.02 | G23: =F23+0.01 -> 0.03 | H23: 0.04 | I23: 0.05
A24: DEBT LOSS + SH EQ | B24: =$B$6-(1-C15)*B10 -> 46.66666667 | C24: =$B$6-C6 -> 31.99806113 | D24: =$B$6-D6+D23*D7 -> 24.2498733 | E24: =$B$6-E6+E23*E7 -> 25.04806292 | F24: 26.16503157 | G24: 27.05101531 | H24: 28.29117723 | I24: 29.27523025
A25: CHANGE DEBT LOSS | C25: =C24-$B$24 -> -14.66860554 | D25: -22.41679337 | E25: -21.61860375 | F25: -20.5016351 | G25: -19.61565135 | H25: -18.37548943 | I25: -17.39143641
A26: LTV | D26: $B$12/D5
A27: VB | D27: $B$6/D22
A28: DEBT LOSS + SH EQ | C28: $B$6-C6 | D28: $B$6-D6+D23*D7
A29: CHANGE DEBT LOSS | C29: C24-$B$24

Sheet Exercise 11.1
A1: EXERCISE 11.1 | B1: Renewal Template
A2: INPUT | B2: Deterministic
A3: PI | B3: 80
A4: CI | B4: 20
A5: K | B5: 150
A6: C* | B6: =B21 -> 26.26550297
A7: sP | B7: 0
A8: sC | B8: 0
A9: r | B9: 0
A10: r | B10: 0.14
A11: qP | B11: -0.1
A12: qC | B12: 0.03
A14: OUTPUT
A15: Q(b,h) | B15: =B11*B18+B12*B19-B10 -> -1.214028877e-13
A16: SP | B16: =((B3/B20)^B18)-((B4/B21)^B19)-EXP(-B10*B22) -> -5.605598902e-08
A17: SUM | B17: =SUM(ABS(B15:B16)) -> 5.605611042e-08 | C17: SUM(ABS(B15:B16))
A18: b | B18: -0.4118785403
A19: h | B19: 3.293738199
A20: P* | B20: 32.25305816 | E20: CALCULATOR
A21: C* | B21: 26.26550297 | E21: T*C | F21: =(1/B12)*(LN(B21/B4)) -> 9.084137689 | G21: (1/B12)*(LN(B21/B4))
A22: T*C | B22: =(1/B12)*(LN(B21/B4)) -> 9.084137689 | E22: P(9) | F22: =$B$3*EXP(B11*B22) -> 32.25305817 | G22: $B$3*EXP(B11*B22)
A23: T*P | B23: =(1/B11)*(LN(B20/B3)) -> 9.084137692 | E23: P* | F23: =EXP(F21*B11+LN(B3)) -> 32.25305817 | G23: EXP(F21*B11+LN(B3))
A24: SOLVER | B24: =ABS(B37)+ABS(B17) -> 2.971971766e-07 | C24: ABS(B37)+ABS(B17)
A25: P*-C* | B25: =B20-B21 -> 5.987555188
A26: =B2 -> Deterministic
A27: Q(b,h) | B27: B11*B18+B12*B19-B10
A28: SP | B28: ((B3/B20)^B18)-((B4/B21)^B19)-EXP(-B10*B22)
A29: SOLVER | B29: SET B24=0,CHANGING B18:B21,B22=B23
A31: T*C | B31: (1/B12)*(LN(B6/B4))
A32: T*P | B32: (1/B11)*(LN(B20/B3))
A34: P* VALUE | B34: =B20*((1/B10)+(B11/B10)*(EXP(-B10*B23)/(B10-B11))) -> 203.469532
A35: C* VALUE | B35: =B21*((1/B10)+(B12/B10)*(EXP(-B10*B23)/(B10-B12))) -> 201.9543807
A36: Renewal V-K | B36: =B3/(B10-B11)-B4/(B10-B12)-B5 -> 1.515151515
A37: NPV=0 | B37: =B34-B35-B36 -> -2.411410662e-07
A39: P* | B39: B20*((1/B10)+(B11/B10)*(EXP(-B10*B22)/(B10-B11)))
A40: C* | B40: B6*((1/B10)+(B12/B10)*(EXP(-B10*B22)/(B10-B12)))
A41: Renewal V-K | B41: B3/(B10-B11)-B4/(B10-B12)-B5
A42: NPV=0 | B42: B31-B32-B33
B43: CAR DETERIORATION OVER THE YEARS
A44: YEARS | B44: 1 | C44: 2 | D44: 3 | E44: 4 | F44: 5 | G44: 6 | H44: 7 | I44: 8 | J44: 9
A45: CAR ENJOY | B45: =$B$3*EXP($B$11*B44) -> 72.38699344 | C45: =$B$3*EXP($B$11*C44) -> 65.49846025 | D45: 59.26545765 | E45: 53.62560368 | F45: 48.52245278 | G45: 43.90493089 | H45: 39.7268243 | I45: 35.94631713 | J45: 32.52557278
A46: COST | B46: =$B$4*EXP($B$12*B44) -> 20.60909068 | C46: =$B$4*EXP($B$12*C44) -> 21.23673093 | D46: 21.88348567 | E46: 22.54993703 | F46: 23.23668485 | G46: 23.94434726 | H46: 24.6735612 | I46: 25.42498301 | J46: 26.19928901
A47: P-C | B47: =B45-B46 -> 51.77790276 | C47: 44.26172932 | D47: 37.38197198 | E47: 31.07566665 | F47: 25.28576792 | G47: 19.96058363 | H47: 15.0532631 | I47: 10.52133412 | J47: 6.326283765

Sheet Exercise 11.2
C1: Renewal Template
B2: Stochastic P | D2: EXERCISE 11.2
A3: PI | B3: 80
A4: CI | B4: 30
A5: K | B5: 100
A6: C* | B6: 30
A7: sP | B7: 0.3
A8: sC | B8: 0
A9: r | B9: 0
A10: r | B10: 0.14
A11: qP | B11: -0.05
A12: qC | B12: 0
A14: OUTPUT
A15: Q(b,h=0) | B15: =(0.5-B11/(B7^2))-SQRT((0.5-B11/(B7^2))^2+2*B10/(B7^2))-B19 -> 0
A16: SP | B16: =(B20/(B19*(B10-B11)))*(B19-1+((B3/B20)^B19))-B3/(B10-B11)+B5 -> 7.614352171e-08
A17: SUM | B17: =SUM(ABS(B15:B16)) -> 7.614352171e-08
A18: OUTPUT
A19: b | B19: -1
A20: P* | B20: 41.01282264
A21: h | B21: 0
A22: P*-C* | B22: =B20-B6 -> 11.01282264
A23: =B2 -> Stochastic P
A24: Q(b,h=0) | B24: (0.5-B11/(B7^2))-SQRT((0.5-B11/(B7^2))^2+2*B10/(B7^2))-B19
A25: SP | B25: (B20/(B19*(B10-B11)))*(B19-1+((B3/B20)^B19))-B3/(B10-B11)+B5
A26: SOLVER | B26: SET B17=0, CHANGING B20.
A27: QUADRATIC
A28: a | B28: =1/-((B10-B11)*B3) -> -0.06578947368
A29: b | B29: =(B19-1)/(-(B10-B11)) -> 10.52631579
A30: c | B30: =-((B3/(B10-B11))-B5) -> -321.0526316
A31: P* | B31: =(-B29+SQRT((B29^2)-4*B28*B30))/(2*B28) -> 41.01282262
A33: a | B33: 1/-((B10-B11)*B3)
A34: b | B34: (B19-1)/(-(B10-B11))
A35: c | B35: -((B3/(B10-B11))-B5)
A36: P* | B36: (-B29+SQRT((B29^2)-4*B28*B30))/(2*B28)
A38: Actual Age | B38: =(1/B11)*LN((0.5*B3)/B3) -> 13.86294361 | C38: Years
A39: Renewal Age | B39: =(1/B11)*LN(B31/B3) -> 13.3628374 | C39: Years
A40: Renewal Age | B40: (1/B11)*LN(B31/B3)

Sheet Exercise 11.3
C1: Renewal Template
B2: Stochastic P | D2: EXERCISE 11.3
A3: PI | B3: 80
A4: CI | B4: 1
A5: K | B5: 100
A6: C* | B6: 1
A7: sP | B7: 0.2
A8: sC | B8: 0
A9: r | B9: 0
A10: r | B10: 0.08
A11: qP | B11: -0.04
A12: qC | B12: 0
A14: OUTPUT
A15: Q(b,h=0) | B15: =(0.5-B11/(B7^2))-SQRT((0.5-B11/(B7^2))^2+2*B10/(B7^2))-B19 -> 0
A16: SP | B16: =(B20/(B19*(B10-B11)))*(B19-1+((B3/B20)^B19))-B3/(B10-B11)+B5 -> -1.023181539e-12
A17: SUM | B17: =SUM(ABS(B15:B16)) -> 1.023181539e-12
A18: OUTPUT
A19: b | B19: -1
A20: P* | B20: 49.01613323
A21: h | B21: 0
A22: P*-C* | B22: =B20-B6 -> 48.01613323
A23: =B2 -> Stochastic P
A24: Q(b,h=0) | B24: (0.5-B11/(B7^2))-SQRT((0.5-B11/(B7^2))^2+2*B10/(B7^2))-B19
A25: SP | B25: (B20/(B19*(B10-B11)))*(B19-1+((B3/B20)^B19))-B3/(B10-B11)+B5
A26: SOLVER | B26: SET B17=0, CHANGING B20.
A27: QUADRATIC
A28: a | B28: =1/-((B10-B11)*B3) -> -0.1041666667
A29: b | B29: =(B19-1)/(-(B10-B11)) -> 16.66666667
A30: c | B30: =-((B3/(B10-B11))-B5) -> -566.6666667
A31: P* | B31: =(-B29+SQRT((B29^2)-4*B28*B30))/(2*B28) -> 49.01613323
A33: a | B33: 1/-((B10-B11)*B3)
A34: b | B34: (B19-1)/(-(B10-B11))
A35: c | B35: -((B3/(B10-B11))-B5)
A36: P* | B36: (-B29+SQRT((B29^2)-4*B28*B30))/(2*B28)
A38: Actual Age | B38: =(1/B11)*LN(50/B3) -> 11.75009073 | C38: Years
A39: Renewal Age | B39: =(1/B11)*LN(B31/B3) -> 12.24692853 | C39: Years
A40: Renewal Age | B40: (1/B11)*LN(B31/B3)

Sheet Problem 11.4
A1: Renewal Template
A2: INPUT | B2: Stochastic P & C | D2: PROBLEM 11.4
A3: PI | B3: 80
A4: CI | B4: 20
A5: K | B5: 150
A6: C* | B6: 26.3
A7: sP | B7: 0.4
A8: sC | B8: 0.4
A9: r | B9: -1
A10: r | B10: 0.14
A11: qP | B11: -0.1
A12: qC | B12: 0.03
A14: OUTPUT
A15: Q(b,h) | B15: =0.5*(B7^2)*B23*(B23-1)+0.5*(B8^2)*B24*(B24-1)+B9*B7*B8*B23*B24+B11*B23+B12*B24-B10 -> -4.556868771e-11
A16: SP | B16: =B25/(-B23*(B10-B11))-B6/(B24*(B10-B12)) -> -1.000045529e-06
A17: H(b,h) | B17: =B18*B19+B20 -> -3.372261128e-07
A18: PART 1 | B18: =B6/(B24*(B10-B12)) -> 284.3375692
A19: PART 2 | B19: =1-B23-B24-((B3^B23)*(B4^B24)/(B6^(B23+B24)))*((-B23*(B10-B11)/(B24*(B10-B12)))^-B23) -> 0.005328705532
A20: PART 3 | B20: =-B3/(B10-B11)+B4/(B10-B12)+B5 -> -1.515151515
A21: SUM | B21: =SUM(ABS(B15:B17)) -> 1.337317211e-06
A23: b | B23: -0.3650367747
A24: h | B24: 0.8408699201
A25: P* | B25: 24.91048052
A26: P*-C* | B26: =B25-B6 -> -1.389519483
A28: Q(b,h) | B28: 0.5*(B7^2)*B23*(B23-1)+0.5*(B8^2)*B24*(B24-1)+B9*B7*B8*B23*B24+B11*B23+B12*B24-B10
A29: SP | B29: B25/(-B23*(B10-B11))-B6/(B24*(B10-B12))
A30: H(b,h) | B30: B18*B19+B20
A31: PART 1 | B31: B6/(B24*(B10-B12))
A32: PART 2 | B32: 1-B23-B24-((B3^B23)*(B4^B24)/(B6^(B23+B24)))*((-B23*(B10-B11)/(B24*(B10-B12)))^-B23)
A33: PART 3 | B33: -B3/(B10-B11)+B4/(B10-B12)+B5
A35: SOLVER | B35: SET B21=0,CHANGING B23:B25.
A37: T*P | B37: =(1/B11)*(LN(B25/B3)) -> 11.66738015

Sheet Problem 11.5
C1: Renewal Template
B2: Stochastic P | D2: PROBLEM 11.5
A3: PI | B3: 80
A4: CI | B4: 30
A5: K | B5: 100
A6: C* | B6: 30
A7: sP | B7: 0.11547
A8: sC | B8: 0
A9: r | B9: 0
A10: r | B10: 0.14
A11: qP | B11: -0.05
A12: qC | B12: 0
A14: OUTPUT
A15: Q(b,h=0) | B15: =(0.5-B11/(B7^2))-SQRT((0.5-B11/(B7^2))^2+2*B10/(B7^2))-B19 -> -9.999999999e-07
A16: SP | B16: =(B20/(B19*(B10-B11)))*(B19-1+((B3/B20)^B19))-B3/(B10-B11)+B5 -> -1.567088185e-05
A17: SUM | B17: =SUM(ABS(B15:B16)) -> 1.667088185e-05
A18: OUTPUT
A19: b | B19: -1.999999448
A20: P* | B20: 45.60761931
A21: h | B21: 0
A22: P*-C* | B22: =B20-B6 -> 15.60761931
A23: =B2 -> Stochastic P
A24: Q(b,h=0) | B24: (0.5-B11/(B7^2))-SQRT((0.5-B11/(B7^2))^2+2*B10/(B7^2))-B19
A25: SP | B25: (B20/(B19*(B10-B11)))*(B19-1+((B3/B20)^B19))-B3/(B10-B11)+B5
A26: SOLVER | B26: SET B17=0, CHANGING B19:B20
A28: T*P | B28: =(1/B11)*(LN(B20/B3)) -> 11.23903684

Sheet Problem 11.6
A1: Renewal Template
A2: INPUT | B2: Stochastic P & C | D2: PROBLEM 11.6
A3: PI | B3: 80
A4: CI | B4: 20
A5: K | B5: 100
A6: C* | B6: 20
A7: sP | B7: 0.3
A8: sC | B8: 0
A9: r | B9: 0
A10: r | B10: 0.07
A11: qP | B11: -0.04
A12: qC | B12: 0
A14: OUTPUT
A15: Q(b,h=0) | B15: =(0.5-B11/(B7^2))-SQRT((0.5-B11/(B7^2))^2+2*B10/(B7^2))-B19 -> 0
A16: SP | B16: =(B20/(B19*(B10-B11)))*(B19-1+((B3/B20)^B19))-B3/(B10-B11)+B5 -> -2.288925316e-07
A17: SUM | B17: =SUM(ABS(B15:B16)) -> 2.288925316e-07
A18: OUTPUT
A19: b | B19: -0.6200142045
A20: P* | B20: 47.97725796
A21: h | B21: 0
A22: P*-C* | B22: =B20-B6 -> 27.97725796
A23: =B2 -> Stochastic P & C
A24: Q(b,h=0) | B24: (0.5-B11/(B7^2))-SQRT((0.5-B11/(B7^2))^2+2*B10/(B7^2))-B19
A25: SP | B25: (B20/(B19*(B10-B11)))*(B19-1+((B3/B20)^B19))-B3/(B10-B11)+B5
A26: SOLVER | B26: SET B17=0, CHANGING B19:B20.
A28: Actual Age | B28: =(1/B11)*LN(60/B3) -> 7.192051811 | C28: Years
A29: Renewal Age | B29: =(1/B11)*LN(B20/B3) -> 12.78248822 | C29: Years
A30: Renewal Age | B30: (1/B11)*LN(B20/B3)

Sheet Exercise 12.1
A1: Continuous American Perpetual SINGLE SWITCH Option
A2: ONE WAY SWITCH FROM OUTPUT x TO y | D2: EXERCISE 12.1
A3: OUTPUT x | B3: x | C3: 1
A4: OUTPUT y | B4: y | C4: 1
A5: Convenience yield of x | B5: δx | C5: 0.05
A6: Convenience yield of y | B6: δy | C6: 0.05
A7: Volatility of x | B7: σx | C7: 0.1
A8: Volatility of y | B8: σy | C8: 0.1
A9: Correlation x with y | B9: ρ | C9: 0
A10: Risk-free interest rate | B10: r | C10: 0.05
A11: Operating cost for x | B11: cx | C11: 0
A12: Operating cost for y | B12: cy | C12: 0
A13: Switching cost from x to y | B13: S12 | C13: 0.2
A15: PV of revenues x | B15: X | C15: =(C3/C5-C11/C10) -> 20
A16: PV of revenues y | B16: Y | C16: =(C4/C6-C12/C10) -> 20
A17: Switching boundary x to y | B17: x12 | C17: =C3 -> 1
B19: SOLUTION | D19: OPTION VALUE
A20: Asset value in operating mode '1' | B20: V1(x,y) | C20: =C3/C5-C11/C10+C22*C3^C24*C4^C25 -> 23.16711458 | D20: =C20-C15 -> 3.167114579
A21: Asset value in operating mode '2' | B21: V2(x,y) | C21: =C4/C6-C12/C10 -> 20 | D21: =C21-C16 -> 0
B22: A | C22: 3.167114579
A23: Switching boundary x to y | B23: y12 (x) | C23: 1.571054281
A24: Solution quadrant | B24: β11 | C24: -1.782358725 | D24: must be negative
A25: Solution quadrant | B25: β12 | C25: 2.800182309 | D25: must be positive
B26: EQUATIONS | D26: REVISED EQS
A27: Value matching 1 | B27: EQ 19 | C27: =(C22*C23^C25+C17/C5-C11/C10-C23/C6+C12/C10+C13) -> 1.786482795e-09 | D27: (C22*C23^C25+C17/C5-C11/C10-C23/C6+C12/C10+C13)
A28: Smooth pasting 1A | B28: EQ 20 | C28: =(C24*C22*C23^C25+1/C5) -> 1.484538998e-07 | D28: (C24*C22*C23^C25+1/C5)
A29: Smooth pasting 1B | B29: EQ 21 | C29: =(C25*C22*C23^(C25-1)-1/C6) -> -1.125358899e-07 | D29: (C25*C22*C23^(C25-1)-1/C6)
A30: Solution quadrant 1 | B30: EQ 22 | C30: =0.5*C7^2*C24*(C24-1)+0.5*C8^2*C25*(C25-1)-C10 -> 2.18341456e-11 | D30: 0.5*C7^2*C24*(C24-1)+0.5*C8^2*C25*(C25-1)-C10
B31: Sum | C31: =SUM(ABS(C27:C30)) -> 2.627981067e-07
B32: SOLVER: SET C31=0, CHANGING C22:C25
A33: =B27 -> EQ 19 | B33: (C22*C17^C24*C23^C25+C17/C5-C11/C10-C23/C6+C12/C10+C13)
A34: =B28 -> EQ 20 | B34: (C24*C22*C17^(C24-1)*C23^C25+1/C5)
A35: =B29 -> EQ 21 | B35: (C25*C22*C17^C24*C23^(C25-1)-1/C6)
A36: =B30 -> EQ 22 | B36: 0.5*C7^2*C24*(C24-1)+0.5*C8^2*C25*(C25-1)+C9*C7*C8*C24*C25+C24*(C10-C5)+C25*(C10-C6)-C10
A37: SPREAD | C37: =C23-C4 -> 0.5710542808
A38: V1(x,y) EQ 5 | B38: C3/C5-C11/C10+C22*C3^C24*C4^C25
A39: V2(x,y) EQ 7 | B39: C4/C6-C12/C10
B41: CALCULATOR ANSWER
B42: y12 (x) | C42: =-C25/C24 -> 1.571054284 | D42: =(C23^C25)/(C23^(C25-1)) -> 1.571054281
C43: -C25/C24 | D43: (C23^C25)/(C23^(C25-1))
B44: A | C44: =(-1/C5)/(C24*C42^C25) -> 3.167114586
C45: (-1/C5)/(C24*C42^C25)
B46: V1(x,y) | C46: =C3/C5-C11/C10+C22*C3^C24*C4^C25 -> 23.16711458
C47: C3/C5-C11/C10+C22*C3^C24*C4^C25

Sheet Exercise 12.1A
A1: Continuous American Perpetual SINGLE SWITCH Option
A2: ONE WAY SWITCH FROM OUTPUT x TO y | D2: EXERCISE 12.1A
A3: OUTPUT x | B3: x | C3: 70
A4: OUTPUT y | B4: y | C4: 100
A5: Convenience yield of x | B5: δx | C5: 0.04
A6: Convenience yield of y | B6: δy | C6: 0.04
A7: Volatility of x | B7: σx | C7: 0.2
A8: Volatility of y | B8: σy | C8: 0.2
A9: Correlation x with y | B9: ρ | C9: -1
A10: Risk-free interest rate | B10: r | C10: 0.05
A11: Operating cost for x | B11: cx | C11: 0
A12: Operating cost for y | B12: cy | C12: 0
A13: Switching cost from x to y | B13: S12 | C13: 100
A14: Switching cost from y to x | B14: S21
A15: PV of revenues x | B15: X | C15: =(C3/C5-C11/C10) -> 1750
A16: PV of revenues y | B16: Y | C16: =(C4/C6-C12/C10) -> 2500
A17: Switching boundary x to y | B17: x12 | C17: =C3 -> 70
B19: SOLUTION | D19: OPTION VALUE
A20: Asset value in operating mode '1' | B20: V1(x,y) | C20: =C3/C5-C11/C10+C22*C3^C24*C4^C25 -> 2997.10697 | D20: =C20-C15 -> 1247.10697
A21: Asset value in operating mode '2' | B21: V2(x,y) | C21: =C4/C6-C12/C10 -> 2500 | D21: =C21-C16 -> 0
B22: A | C22: 9.993688871
A23: Switching boundary x to y | B23: y12 (x) | C23: 269.9196528
A24: Solution quadrant | B24: β11 | C24: -0.3572893224 | D24: must be negative
A25: Solution quadrant | B25: β12 | C25: 1.377705855 | D25: must be positive
B26: EQUATIONS
A27: Value matching 1 | B27: EQ 19 | C27: =(C22*C17^C24*C23^C25+C17/C5-C11/C10-C23/C6+C12/C10+C13) -> -6.603295333e-08
A28: Smooth pasting 1A | B28: EQ 20 | C28: =(C24*C22*C17^(C24-1)*C23^C25+1/C5) -> -1.734008492e-10
A29: Smooth pasting 1B | B29: EQ 21 | C29: =(C25*C22*C17^C24*C23^(C25-1)-1/C6) -> 1.857181076e-10
A30: Solution quadrant 1 | B30: EQ 22 | C30: =0.5*C7^2*C24*(C24-1)+0.5*C8^2*C25*(C25-1)+C9*C7*C8*C24*C25+C24*(C10-C5)+C25*(C10-C6)-C10 -> -2.235711616e-14
B31: Sum | C31: =SUM(ABS(C27:C30)) -> 6.639209464e-08
B32: SOLVER: SET C31=0, CHANGING C22:C25
A33: =B27 -> EQ 19 | B33: (C22*C17^C24*C23^C25+C17/C5-C11/C10-C23/C6+C12/C10+C13)
A34: =B28 -> EQ 20 | B34: (C24*C22*C17^(C24-1)*C23^C25+1/C5)
A35: =B29 -> EQ 21 | B35: (C25*C22*C17^C24*C23^(C25-1)-1/C6)
A36: =B30 -> EQ 22 | B36: 0.5*C7^2*C24*(C24-1)+0.5*C8^2*C25*(C25-1)+C9*C7*C8*C24*C25+C24*(C10-C5)+C25*(C10-C6)-C10
A37: SPREAD | C37: =C23-C4 -> 169.9196528
A38: V1(x,y) EQ 5 | B38: C3/C5-C11/C10+C22*C3^C24*C4^C25
A39: V2(x,y) EQ 7 | B39: C4/C6-C12/C10
B41: CALCULATOR ANSWER
B42: y12 (x) | C42: =-C25*C17/C24 -> 269.9196528
C43: -C25*C17/C24
B44: A | C44: =(-1/C5)/(C24*(C17^(C24-1))*(C42^C25)) -> 9.993688871
B45: (-1/C25)/(C24*(C17^(C24-1))*C23^C25)
B46: V1(x,y) | C46: =C44*C3^C24*C4^C25 -> 1247.10697
B47: C44*C3^C24*C4^C25

Sheet Exercise 12.2
A1: SINGLE American Perpetual IN-OUT SWITCH Option
A2: Exercise 12.2 | B2: INPUT
A3: PRICE | B3: x | C3: 10
A4: COST | B4: y | C4: 9
A5: Convenience yield of x | B5: δx | C5: 0.04
A6: Convenience yield of y | B6: δy | C6: 0.04
A7: Volatility of x | B7: σx | C7: 0.4
A8: Volatility of y | B8: σy | C8: 0.4
A9: Correlation x with y | B9: ρ | C9: 0.5
A10: Risk-free interest rate | B10: r | C10: 0.05
A11: Switching cost from x to y | B11: S12 | C11: 10
A12: Switching boundary OP to SHUT | B12: x12 | C12: =C3 -> 10
B13: SOLUTION | D13: OPTION | E13: OPERATING
A14: Asset value in operating mode | B14: V1(x,y) | C14: =(C15*C3^C17*C4^C18+C3/C5-C4/C6) -> 121.207746 | D14: =(C15*C3^C17*C4^C18) -> 96.20774603 | E14: =C3/C5-C4/C6 -> 25
B15: A | C15: 10.75602123
A16: Switching boundary OP to SHUT | B16: y12 (x) | C16: 38.6691616 | D16: =-C18*C12/C17 -> 38.6691613
A17: Solution quadrant | B17: β11 | C17: -0.3537423668 | D17: must be negative
A18: Solution quadrant | B18: β12 | C18: 1.367892064 | D18: must be positive
B19: EQUATIONS
A20: Value matching 1 | B20: EQ 35 | C20: =(C15*C12^C17*C16^C18+C12/C5-C16/C6+C11) -> -4.696187261e-07
A21: Smooth pasting 1A | B21: EQ 36 | C21: =(C17*C15*(C12^(C17-1))*C16^C18+1/C5) -> -3.10921731e-07
A22: Smooth pasting 1B | B22: EQ 37 | C22: =(C18*C15*C12^C17*(C16^(C18-1))-1/C6) -> 1.203717588e-07
A23: Solution quadrant 1 | B23: EQ 38 | C23: =0.5*C7^2*C17*(C17-1)+0.5*C8^2*C18*(C18-1)+C9*C7*C8*C17*C18+C17*(C10-C5)+C18*(C10-C6)-C10 -> -1.965685253e-11
B24: Sum | C24: =SUM(ABS(C20:C23)) -> 9.009318728e-07 | D24: Solver
B25: SOLVER: SET C24=0, CHANGING C15:C18
A26: SPREAD | C26: =C16-C4 -> 29.6691616
A27: V1(x,y) | B27: (C15*C3^C17*C4^C18+C3/C5-C4/C6)
A28: =B20 -> EQ 35 | B28: (C15*C12^C17*C16^C18+C12/C5-C16/C6+C11)
A29: =B21 -> EQ 36 | B29: (C17*C15*(C12^(C17-1))*C16^C18+1/C5)
A30: =B22 -> EQ 37 | B30: (C18*C15*C12^C17*(C16^(C18-1))-1/C6)
A31: =B23 -> EQ 38 | B31: 0.5*C7^2*C17*(C17-1)+0.5*C8^2*C18*(C18-1)+C9*C7*C8*C17*C18+C17*(C10-C5)+C18*(C10-C6)-C10
A32: V1(x,y) | B32: (C15*C3^C17*C4^C18+C3/C5-C4/C6)
B33: y12 (x) | C33: -C18*C12/C17
B34: A | C34: =(-1/C5)/(C17*(C12^(C17-1))*C16^C18) -> 10.7560211 | D34: (-1/C5)/(C17*(C12^(C17-1))*C16^C18)

Sheet Exercise 12.3
A1: Continuous American Perpetual SINGLE SWITCH Option
A2: ONE WAY SWITCH FROM INPUT x TO y | D2: Exercise 12.3
A3: INPUT x | B3: x | C3: 1
A4: INPUT y | B4: y | C4: 1
A5: Convenience yield of x | B5: δx | C5: 0.04
A6: Convenience yield of y | B6: δy | C6: 0.04
A7: Volatility of x | B7: σx | C7: 0.2
A8: Volatility of y | B8: σy | C8: 0.2
A9: Correlation x with y | B9: ρ | C9: 0.5
A10: Risk-free interest rate | B10: r | C10: 0.05
A11: Output price for x | B11: px | C11: 3
A12: Output price for y | B12: py | C12: 3
A13: Switching cost from x to y | B13: S12 | C13: 1
A15: PV of revenues using x | B15: X | C15: =(-C3/C5+C11/C10) -> 35
A16: PV of revenues using y | B16: Y | C16: =(-C4/C6+C12/C10) -> 35
A17: Switching boundary x to y | B17: x12 | C17: =C3 -> 1
B19: SOLUTION | D19: OPTION VALUE
A20: Asset value in operating mode '1' | B20: V1(x,y) | C20: =-C3/C5+C11/C10+C22*C3^C24*C4^C25 -> 41.06643519 | D20: =C20-C15 -> 6.066435191
A21: Asset value in operating mode '2' | B21: V2(x,y) | C21: =-C4/C6+C12/C10 -> 35
B22: A | C22: 6.066435191
A23: Switching boundary x to y | B23: y12 (x) | C23: 0.4628627168
A24: Solution quadrant | B24: β11 | C24: 2.01151681 | D24: must be positive
A25: Solution quadrant | B25: β12 | C25: -0.9310561355 | D25: must be negative
B26: EQUATIONS
A27: Value matching 1 | B27: EQ 52 | C27: =C22*C17^C24*C23^C25-C17/C5+C11/C10+C23/C6-C12/C10+C13 -> 1.973138808e-08
A28: Smooth pasting 1A | B28: EQ 53 | C28: =C24*C22*C17^(C24-1)*C23^C25-1/C5 -> 8.565610088e-08
A29: Smooth pasting 1B | B29: EQ 54 | C29: =C25*C22*C17^C24*C23^(C25-1)+1/C6 -> -8.887451841e-08
A30: Solution quadrant 1 | B30: EQ 55 | C30: =0.5*C7^2*C24*(C24-1)+0.5*C8^2*C25*(C25-1)+C9*C7*C8*C24*C25+C24*(C10-C5)+C25*(C10-C6)-C10 -> -3.02978545e-11
B31: Sum | C31: =SUM(ABS(C27:C30)) -> 1.942923052e-07
B32: SOLVER: SET C31=0, CHANGING C22:C25
A33: =B27 -> EQ 52 | B33: C22*C17^C24*C23^C25-C17/C5+C11/C10+C23/C6-C12/C10+C13
A34: =B28 -> EQ 53 | B34: C24*C22*C17^(C24-1)*C23^C25-1/C5
A35: =B29 -> EQ 54 | B35: C25*C22*C17^C24*C23^(C25-1)+1/C6
A36: =B30 -> EQ 55 | B36: 0.5*C7^2*C24*(C24-1)+0.5*C8^2*C25*(C25-1)+C9*C7*C8*C24*C25+C24*(C10-C5)+C25*(C10-C6)-C10
A37: SPREAD | C37: =-C23+C4 -> 0.5371372832
A38: V1(x,y) | B38: -C3/C5+C11/C10+C22*C3^C24*C4^C25
A39: V2(x,y) | B39: -C4/C6+C12/C10
B40: y12 (x) | C40: =-C25/C24 -> 0.4628627169 | D40: -C25/C24
B41: V1(x,y) | C41: =-C3/C5+C11/C10+6.07*C3^C24*C4^C25 -> 41.07 | D41: -C3/C5+C11/C10+6.07*C3^C24*C4^C25

Sheet Problem 12.4
A1: Continuous American Perpetual SINGLE SWITCH Option
A2: ONE WAY SWITCH FROM OUTPUT x TO y | C2: PROBLEM 12.4
A3: OUTPUT x | B3: x | C3: 7000
A4: OUTPUT y | B4: y | C4: 10000
A5: Convenience yield of x | B5: δx | C5: 0.04
A6: Convenience yield of y | B6: δy | C6: 0.04
A7: Volatility of x | B7: σx | C7: 0.2
A8: Volatility of y | B8: σy | C8: 0.2
A9: Correlation x with y | B9: ρ | C9: 0
A10: Risk-free interest rate | B10: r | C10: 0.05
A11: Operating cost for x | B11: cx | C11: 0
A12: Operating cost for y | B12: cy | C12: 0
A13: Switching cost from x to y | B13: S12 | C13: 3000
A15: PV of revenues x | B15: X | C15: =(C3/C5-C11/C10) -> 175000 | D15: LHS EQ5
A16: PV of revenues y | B16: Y | C16: =(C4/C6-C12/C10) -> 250000 | D16: LHS EQ 7
A17: Switching boundary x to y | B17: x12 | C17: =C3 -> 7000
B19: SOLUTION | D19: OPTION VALUE
A20: Asset value in operating mode '1' | B20: V1(x,y) | C20: =C3/C5-C11/C10+C22*C3^C24*C4^C25 -> 279883.7216 | D20: =C20-C15 -> 104883.7216
A21: Asset value in operating mode '2' | B21: V2(x,y) | C21: =C4/C6-C12/C10 -> 250000 | D21: =C21-C16 -> 0
B22: A | C22: 7.656500424
A23: Switching boundary x to y | B23: y12 (x) | C23: 18565.2674
A24: Solution quadrant | B24: β11 | C24: -0.6116065056 | D24: must be negative
A25: Solution quadrant | B25: β12 | C25: 1.622091189 | D25: must be positive
B26: EQUATIONS
A27: Value matching 1 | B27: EQ 19 | C27: =(C22*C17^C24*C23^C25+C17/C5-C11/C10-C23/C6+C12/C10+C13) -> 1.34401489e-07
A28: Smooth pasting 1A | B28: EQ 20 | C28: =(C24*C22*C17^(C24-1)*C23^C25+1/C5) -> -8.039791055e-12
A29: Smooth pasting 1B | B29: EQ 21 | C29: =(C25*C22*C17^C24*C23^(C25-1)-1/C6) -> 1.116262638e-11
A30: Solution quadrant 1 | B30: EQ 22 | C30: =0.5*C7^2*C24*(C24-1)+0.5*C8^2*C25*(C25-1)+C9*C7*C8*C24*C25+C24*(C10-C5)+C25*(C10-C6)-C10 -> 3.60822483e-16
B31: Sum | C31: =SUM(ABS(C27:C30)) -> 1.344206918e-07
B32: SOLVER: SET C31=0, CHANGING C22:C25
A33: =B27 -> EQ 19 | B33: (C22*C17^C24*C23^C25+C17/C5-C11/C10-C23/C6+C12/C10+C13)
A34: =B28 -> EQ 20 | B34: (C24*C22*C17^(C24-1)*C23^C25+1/C5)
A35: =B29 -> EQ 21 | B35: (C25*C22*C17^C24*C23^(C25-1)-1/C6)
A36: =B30 -> EQ 22 | B36: 0.5*C7^2*C24*(C24-1)+0.5*C8^2*C25*(C25-1)+C9*C7*C8*C24*C25+C24*(C10-C5)+C25*(C10-C6)-C10
A37: SPREAD | C37: =C23-C4 -> 8565.267401
A38: V1(x,y) EQ 5 | B38: C3/C5-C11/C10+C22*C3^C24*C4^C25
A39: V2(x,y) EQ 7 | B39: C4/C6-C12/C10

Sheet Problem 12.4A
A1: Multiple American Perpetual Output Switch Option
A2: Problem 12.4A
A3: OUTPUT x | B3: x | C3: 10
A4: OUTPUT y | B4: y | C4: 8
A5: Convenience yield of x | B5: δx | C5: 0.05
A6: Convenience yield of y | B6: δy | C6: 0.05
A7: Volatility of x | B7: σx | C7: 0.1
A8: Volatility of y | B8: σy | C8: 0.1
A9: Correlation x with y | B9: ρ | C9: 0
A10: Risk-free interest rate | B10: r | C10: 0.05
A11: Operating cost for x | B11: cx | C11: 1
A12: Operating cost for y | B12: cy | C12: 1
A15: Switching cost from x to y | B15: S12 | C15: 1
A16: Switching cost from y to x | B16: S21 | C16: 1
A17: PV of revenues x | B17: X | C17: =(C3/C5-C11/C10) -> 180
A18: PV of revenues y | B18: Y | C18: =(C4/C6-C12/C10) -> 140
A19: Switching boundary x to y | B19: x12 | C19: =C3 -> 10
A20: Switching boundary y to x | B20: x21 | C20: =C3 -> 10
B21: SOLUTION | D21: OPTION VALUE
A22: Asset value in operating mode '1' | B22: V1(x,y) | C22: =C3/C5-C11/C10+C24*C3^C28*C4^C29 -> 202.1291838 | D22: =C22-C17 -> 22.12918378
A23: Asset value in operating mode '2' | B23: V2(x,y) | C23: =C4/C6-C12/C10+C25*C3^C30*C4^C31 -> 201.5172597 | D23: =C23-C18 -> 61.51725974
B24: A | C24: 3.821265033
B25: B | C25: 3.811312721
A26: Switching boundary x to y | B26: y12 (x) | C26: 11.5328819
A27: Switching boundary y to x | B27: y21 (x) | C27: 8.60708591
A28: Solution quadrant | B28: β11 | C28: -1.773746726 | D28: must be negative
A29: Solution quadrant | B29: β12 | C29: 2.808695698 | D29: must be positive
A30: Solution quadrant | B30: β21 | C30: 2.809258815 | D30: must be positive
A31: Solution quadrant | B31: β22 | C31: -1.773174812 | D31: must be negative
B32: EQUATIONS
A33: Value matching 1 | B33: EQ9 | C33: =(C24*C19^C28*C26^C29+C19/C5-C11/C10-C25*C19^C30*C26^C31-C26/C6+C12/C10+C15) -> 2.853036563e-08
A34: Value matching 2 | B34: EQ10 | C34: =(C24*C20^C28*C27^C29+C20/C5-C11/C10-C25*C20^C30*C27^C31-C27/C6+C12/C10-C16) -> 4.912698159e-08
A35: Smooth pasting 1A | B35: EQ11 | C35: =(C28*C24*C19^(C28-1)*C26^C29+1/C5-C30*C25*C19^(C30-1)*C26^C31) -> 1.643643444e-09
A36: Smooth pasting 1B | B36: EQ12 | C36: =(C29*C24*C19^C28*C26^(C29-1)-C31*C25*C19^C30*C26^(C31-1)-1/C6) -> 1.68807901e-09
A37: Smooth pasting 2A | B37: EQ13 | C37: =(C28*C24*C20^(C28-1)*C27^C29+1/C5-C30*C25*C20^(C30-1)*C27^C31) -> 1.497216928e-08
A38: Smooth pasting 2B | B38: EQ14 | C38: =(C29*C24*C20^C28*C27^(C29-1)-C31*C25*C20^C30*C27^(C31-1)-1/C6) -> -1.559973839e-08
A39: Solution quadrant 1 | B39: EQ6 | C39: =0.5*C7^2*C28*(C28-1)+0.5*C8^2*C29*(C29-1)+C9*C7*C8*C28*C29+C28*(C10-C5)+C29*(C10-C6)-C10 -> -5.586697771e-12
A40: Solution quadrant 2 | B40: EQ8 | C40: =0.5*C7^2*C30*(C30-1)+0.5*C8^2*C31*(C31-1)+C9*C7*C8*C30*C31+C30*(C10-C5)+C31*(C10-C6)-C10 -> -7.781275624e-14
B41: Sum | C41: =SUM(ABS(C33)+ABS(C34)+ABS(C35)+ABS(C36)+ABS(C37)+ABS(C38)+ABS(C39)+ABS(C40)) -> 1.115666419e-07
B42: SOLVER: SET C41=0, CHANGING C24:C31
B43: D | C43: =C29*C30-C28*C31 -> 4.745190131 | D43: C29*C30-C28*C31
B44: Wedge x | C44: =1-(C29-C31)/C43 -> 0.03441792992 | D44: 1-(C29-C31)/C43
B45: Wedge y | C45: =1-(C30-C28)/C43 -> 0.03417873373 | D45: 1-(C30-C28)/C43
B46: EQ 15 | C46: =(C26/C6)*C45-(C19/C5)*C44-C15 -> 6.143332953e-09 | D46: (C26/C6)*C45-(C19/C5)*C44-C15
B47: EQ 16 | C47: =(C20/C5)*C44-(C27/C6)*C45-C16 -> 3.423768824e-08 | D47: (C20/C5)*C44-(C27/C6)*C45-C16
A48: EQ9 | B48: (C24*C19^C28*C26^C29+C19/C5-C11/C10-C25*C19^C30*C26^C31-C26/C6+C12/C10+C15)
A49: EQ10 | B49: (C24*C20^C28*C27^C29+C20/C5-C11/C10-C25*C20^C30*C27^C31-C27/C6+C12/C10-C16)
A50: EQ11 | B50: (C28*C24*C19^(C28-1)*C26^C29+1/C5-C30*C25*C19^(C30-1)*C26^C31)
A51: EQ12 | B51: (C29*C24*C19^C28*C26^(C29-1)-C31*C25*C19^C30*C26^(C31-1)-1/C6)
A52: EQ13 | B52: (C28*C24*C20^(C28-1)*C27^C29+1/C5-C30*C25*C20^(C30-1)*C27^C31)
A53: EQ14 | B53: (C29*C24*C20^C28*C27^(C29-1)-C31*C25*C20^C30*C27^(C31-1)-1/C6)
A54: EQ6 | B54: 0.5*C7^2*C28*(C28-1)+0.5*C8^2*C29*(C29-1)+C9*C7*C8*C28*C29+C28*(C10-C5)+C29*(C10-C6)-C10
A55: EQ8 | B55: 0.5*C7^2*C30*(C30-1)+0.5*C8^2*C31*(C31-1)+C9*C7*C8*C30*C31+C30*(C10-C5)+C31*(C10-C6)-C10
A56: SPREAD | C56: =C26-C27 -> 2.925795988
A57: V1(x,y) EQ 5 | B57: C3/C5-C11/C10+C24*C3^C28*C4^C29
A58: V2(x,y) EQ 7 | B58: C4/C6-C12/C10+C25*C3^C30*C4^C31

Sheet Problem 12.5
A1: Continuous Multiple American Perpetual IN-OUT Exchange Option
A2: Problem 12.5 | B2: INPUT
A3: PRICE | B3: x | C3: 10
A4: COST | B4: y | C4: 9
A5: Convenience yield of x | B5: δx | C5: 0.04
A6: Convenience yield of y | B6: δy | C6: 0.04
A7: Volatility of x | B7: σx | C7: 0.4
A8: Volatility of y | B8: σy | C8: 0.4
A9: Correlation x with y | B9: ρ | C9: 0.5
A10: Risk-free interest rate | B10: r | C10: 0.05
A15: Switching cost from x to y | B15: S12 | C15: 10
A16: Switching cost from y to x | B16: S21 | C16: 10
A19: Switching boundary OP to SHUT | B19: x12 | C19: =C3 -> 10
A20: Switching boundary SHUT to OP | B20: x21 | C20: =C3 -> 10
B21: SOLUTION | D21: OPTION | E21: OPERATING
A22: Asset value in operating mode | B22: V1(x,y) | C22: =(C24*C3^C28*C4^C29+C3/C5-C4/C6) -> 142.5712417 | D22: =(C24*C19^C28*C4^C29) -> 117.5712417 | E22: =C3/C5-C4/C6 -> 25
A23: Asset value in shut down mode | B23: V2(x,y) | C23: =(C25*C3^C30*C4^C31) -> 140.675741 | D23: =C23 -> 140.675741
B24: A | C24: 11.75059191
B25: B | C25: 11.44956128
A26: Switching boundary OP to SHUT | B26: y12 (x) | C26: 17.67467821
A27: Switching boundary SHUT to OP | B27: y21 (x) | C27: 4.642227277
A28: Solution quadrant | B28: β11 | C28: -0.3096685112 | D28: must be negative
A29: Solution quadrant | B29: β12 | C29: 1.372722195 | D29: must be positive
A30: Solution quadrant | B30: β21 | C30: 1.373553261 | D30: must be positive
A31: Solution quadrant | B31: β22 | C31: -0.2977470528 | D31: must be negative
B32: EQUATIONS
A33: Value matching 1 | B33: EQ 29 | C33: =(C24*C19^C28*C26^C29+C19/C5-C26/C6-C25*C19^C30*C26^C31+C15) -> -1.025764789e-07 | D33: (C24*C19^C28*C26^C29+C19/C5-C26/C6-C25*C19^C30*C26^C31+C15)
A34: Value matching 2 | B34: EQ 30 | C34: =(C25*C20^C30*C27^C31-C24*C20^C28*C27^C29-C20/C5+C27/C6+C16) -> 3.02406562e-08 | D34: (C25*C20^C30*C27^C31-C24*C20^C28*C27^C29-C20/C5+C27/C6+C16)
A35: Smooth pasting 1A | B35: EQ 31 | C35: =(C28*C24*(C19^(C28-1))*C26^C29+1/C5-C30*C25*(C19^(C30-1))*C26^C31) -> 7.175540162e-09 | D35: (C28*C24*(C19^(C28-1))*C26^C29+1/C5-C30*C25*(C19^(C30-1))*C26^C31)
A36: Smooth pasting 1B | B36: EQ 32 | C36: =(C29*C24*C19^C28*(C26^(C29-1))-1/C6-C31*C25*C19^C30*(C26^(C31-1))) -> -3.703522156e-09 | D36: (C29*C24*C19^C28*(C26^(C29-1))-1/C6-C31*C25*C19^C30*(C26^(C31-1)))
A37: Smooth pasting 2A | B37: EQ 33 | C37: =(C30*C25*(C20^(C30-1))*C27^C31-C28*C24*(C20^(C28-1))*C27^C29-1/C5) -> -3.213752819e-09 | D37: (C30*C25*(C20^(C30-1))*C27^C31-C28*C24*(C20^(C28-1))*C27^C29-1/C5)
A38: Smooth pasting 2B | B38: EQ 34 | C38: =(C31*C25*C20^C30*(C27^(C31-1))-C29*C24*C20^C28*(C27^(C29-1))+1/C6) -> -1.023472862e-08 | D38: (C31*C25*C20^C30*(C27^(C31-1))-C29*C24*C20^C28*(C27^(C29-1))+1/C6)
A39: Solution quadrant 1 | B39: EQ 26 | C39: =0.5*C7^2*C28*(C28-1)+0.5*C8^2*C29*(C29-1)+C9*C7*C8*C28*C29+C28*(C10-C5)+C29*(C10-C6)-C10 -> -2.31127617e-13
A40: Solution quadrant 2 | B40: EQ 28 | C40: =0.5*C7^2*C30*(C30-1)+0.5*C8^2*C31*(C31-1)+C9*C7*C8*C30*C31+C30*(C10-C5)+C31*(C10-C6)-C10 -> 3.667136039e-13
B41: Sum | C41: =SUM(ABS(C33)+ABS(C34)+ABS(C35)+ABS(C36)+ABS(C37)+ABS(C38)+ABS(C39)+ABS(C40)) -> 1.571452767e-07 | D41: Solver
B42: SOLVER: SET C41=0, CHANGING C24:C31
B43: SPREAD | C43: =C26-C27 -> 13.03245093
A44: EQ 26 | B44: 0.5*C7^2*C28*(C28-1)+0.5*C8^2*C29*(C29-1)+C9*C7*C8*C28*C29+C28*(C10-C5)+C29*(C10-C6)-C10
A45: EQ 28 | B45: 0.5*C7^2*C30*(C30-1)+0.5*C8^2*C31*(C31-1)+C9*C7*C8*C30*C31+C30*(C10-C5)+C31*(C10-C6)-C10
A46: V1(x,y) | B46: (C24*C3^C28*C4^C29+C3/C5-C4/C6)
A47: V2(x,y) | B47: (C25*C3^C30*C4^C31)

Sheet Problem 12.6
A1: Multiple American Perpetual Input Switching Option
A2: Problem 12.6
A3: INPUT x | B3: x | C3: 1
A4: INPUT y | B4: y | C4: 1
A5: Convenience yield of x | B5: δx | C5: 0.04
A6: Convenience yield of y | B6: δy | C6: 0.04
A7: Volatility of x | B7: σx | C7: 0.2
A8: Volatility of y | B8: σy | C8: 0.2
A9: Correlation x with y | B9: ρ | C9: 0.5
A10: Risk-free interest rate | B10: r | C10: 0.05
A11: Output price for x | B11: px | C11: 3
A12: Output price for y | B12: py | C12: 3
A15: Switching cost from x to y | B15: S12 | C15: 0.5
A16: Switching cost from y to x | B16: S21 | C16: 0.5
A17: PV of revenues using x | B17: X | C17: =(-C3/C5+C11/C10) -> 35
A18: PV of revenues using y | B18: Y | C18: =(-C4/C6+C12/C10) -> 35
A19: Switching boundary x to y | B19: x12 | C19: =C3 -> 1
A20: Switching boundary y to x | B20: x21 | C20: 1
B21: SOLUTION | D21: OPTION VALUE
A22: Asset value in operating mode '1' | B22: V1(x,y) | C22: =-C3/C5+C11/C10+C24*C3^C28*C4^C29 -> 42.69176345 | D22: =C22-C17 -> 7.691763449
A23: Asset value in operating mode '2' | B23: V2(x,y) | C23: =-C4/C6+C12/C10+C25*C3^C30*C4^C31 -> 42.68799429 | D23: =C23-C18 -> 7.687994293
B24: A | C24: 7.691763449
B25: B | C25: 7.687994293
A26: Switching boundary x to y | B26: y12 (x) | C26: 0.7092764333
A27: Switching boundary y to x | B27: y21 (x) | C27: 1.354598946
A28: Solution quadrant | B28: β11 | C28: 2.01027778 | D28: must be positive
A29: Solution quadrant | B29: β12 | C29: -0.9399546999 | D29: must be negative
A30: Solution quadrant | B30: β21 | C30: -0.9453992751 | D30: must be negative
A31: Solution quadrant | B31: β22 | C31: 2.009484523 | D31: must be positive
B32: EQUATIONS
A33: Value matching 1 | B33: EQ47 | C33: =(C24*C19^C28*C26^C29-C19/C5+C11/C10-C25*C19^C30*C26^C31+C26/C6-C12/C10+C15) -> -1.374072411e-08
A34: Value matching 2 | B34: EQ48 | C34: =(C24*C20^C28*C27^C29-C20/C5+C11/C10-C25*C20^C30*C27^C31+C27/C6-C12/C10-C16) -> 1.216567114e-08
A35: Smooth pasting 1A | B35: EQ49 | C35: =(C28*C24*C19^(C28-1)*C26^C29-1/C5-C30*C25*C19^(C30-1)*C26^C31) -> -1.387246096e-07
A36: Smooth pasting 1B | B36: EQ50 | C36: =(C29*C24*C19^C28*C26^(C29-1)-C31*C25*C19^C30*C26^(C31-1)+1/C6) -> 1.485635472e-07
A37: Smooth pasting 2A | B37: EQ51 | C37: =(C28*C24*C20^(C28-1)*C27^C29-1/C5-C30*C25*C20^(C30-1)*C27^C31) -> -1.689260731e-07
A38: Smooth pasting 2B | B38: EQ52 | C38: =(C29*C24*C20^C28*C27^(C29-1)-C31*C25*C20^C30*C27^(C31-1)+1/C6) -> 1.543760924e-07
A39: Solution quadrant 1 | B39: EQ44 | C39: =0.5*C7^2*C28*(C28-1)+0.5*C8^2*C29*(C29-1)+C9*C7*C8*C28*C29+C28*(C10-C5)+C29*(C10-C6)-C10 -> 5.243356443e-11
A40: Solution quadrant 2 | B40: EQ46 | C40: =0.5*C7^2*C30*(C30-1)+0.5*C8^2*C31*(C31-1)+C9*C7*C8*C30*C31+C30*(C10-C5)+C31*(C10-C6)-C10 -> 5.157257954e-11
B41: Sum | C41: =SUM(ABS(C33)+ABS(C34)+ABS(C35)+ABS(C36)+ABS(C37)+ABS(C38)+ABS(C39)+ABS(C40)) -> 6.366007237e-07
B42: SOLVER: SET C41=0, CHANGING C24:C31
A43: EQ47 | B43: (C24*C19^C28*C26^C29-C19/C5+C11/C10-C25*C19^C30*C26^C31+C26/C6-C12/C10+C15)
A44: EQ48 | B44: (C24*C20^C28*C27^C29-C20/C5+C11/C10-C25*C20^C30*C27^C31+C27/C6-C12/C10-C16)
A45: EQ49 | B45: (C28*C24*C19^(C28-1)*C26^C29-1/C5-C30*C25*C19^(C30-1)*C26^C31)
A46: EQ50 | B46: (C29*C24*C19^C28*C26^(C29-1)-C31*C25*C19^C30*C26^(C31-1)+1/C6)
A47: EQ51 | B47: (C28*C24*C20^(C28-1)*C27^C29-1/C5-C30*C25*C20^(C30-1)*C27^C31)
A48: EQ52 | B48: (C29*C24*C20^C28*C27^(C29-1)-C31*C25*C20^C30*C27^(C31-1)+1/C6)
A49: EQ44 | B49: 0.5*C7^2*C28*(C28-1)+0.5*C8^2*C29*(C29-1)+C9*C7*C8*C28*C29+C28*(C10-C5)+C29*(C10-C6)-C10
A50: EQ46 | B50: 0.5*C7^2*C30*(C30-1)+0.5*C8^2*C31*(C31-1)+C9*C7*C8*C30*C31+C30*(C10-C5)+C31*(C10-C6)-C10
A51: SPREAD | C51: =-C26+C27 -> 0.6453225123
A52: V1(x,y) | B52: -C3/C5+C11/C10+C24*C3^C28*C4^C29
A53: V2(x,y) | B53: -C4/C6+C12/C10+C25*C3^C30*C4^C31

Sheet Exercise 13.1
A1: Continuous American Perpetual SINGLE SWITCH Option
A2: ONE WAY SWITCH FROM OUTPUT x TO y | C2: Exercise 13.1
A3: OUTPUT x Discount Class | B3: x | C3: 50
A4: OUTPUT y Upper Class | B4: y | C4: 100
A5: Convenience yield of x | B5: δx | C5: 0.04
A6: Convenience yield of y | B6: δy | C6: 0.04
A7: Volatility of x | B7: σx | C7: 0.2
A8: Volatility of y | B8: σy | C8: 0.2
A9: Correlation x with y | B9: ρ | C9: 0.5
A10: Risk-free interest rate | B10: r | C10: 0.05
A11: Operating cost for x | B11: cx | C11: 10
A12: Operating cost for y | B12: cy | C12: 70
A13: Switching cost from x to y | B13: S12 | C13: 300
A15: PV of revenues x | B15: X | C15: =(C3/C5-C11/C10) -> 1050
A16: PV of revenues y | B16: Y | C16: =(C4/C6-C12/C10) -> 1100
A17: Switching boundary x to y | B17: x12 | C17: =C3 -> 50
B19: SOLUTION | D19: OPTION VALUE
A20: Asset value in operating mode '1' | B20: V1(x,y) | C20: =C3/C5-C11/C10+C22*C3^C24*C4^C25 -> 1622.217115 | D20: =C20-C15 -> 572.2171149
A21: Asset value in operating mode '2' | B21: V2(x,y) | C21: =C4/C6-C12/C10 -> 1100 | D21: =C21-C16 -> 0
B22: A | C22: 0.3473829871
A23: Switching boundary x to y | B23: y12 (x) | C23: 220.9934208
A24: Solution quadrant | B24: β11 | C24: -0.4504771513 | D24: must be negative
A25: Solution quadrant | B25: β12 | C25: 1.991049733 | D25: must be positive
B26: EQUATIONS
A27: Value matching 1 | B27: EQ 15 | C27: =(C22*C17^C24*C23^C25+C17/C5-C11/C10-C23/C6+C12/C10+C13) -> 8.279585018e-09
A28: Smooth pasting 1A | B28: EQ 16 | C28: =(C24*C22*C17^(C24-1)*C23^C25+1/C5) -> -1.31922917e-10
A29: Smooth pasting 1B | B29: EQ 17 | C29: =(C25*C22*C17^C24*C23^(C25-1)-1/C6) -> 1.199182975e-10
A30: Solution quadrant 1 | B30: EQ 18 | C30: =0.5*C7^2*C24*(C24-1)+0.5*C8^2*C25*(C25-1)+C9*C7*C8*C24*C25+C24*(C10-C5)+C25*(C10-C6)-C10 -> 5.231926004e-15
B31: Sum | C31: =SUM(ABS(C27:C30)) -> 8.531431464e-09
B32: SOLVER: SET C31=0, CHANGING C22:C25
A33: =B27 -> EQ 15 | B33: (C22*C17^C24*C23^C25+C17/C5-C11/C10-C23/C6+C12/C10+C13)
A34: =B28 -> EQ 16 | B34: (C24*C22*C17^(C24-1)*C23^C25+1/C5)
A35: =B29 -> EQ 17 | B35: (C25*C22*C17^C24*C23^(C25-1)-1/C6)
A36: =B30 -> EQ 18 | B36: 0.5*C7^2*C24*(C24-1)+0.5*C8^2*C25*(C25-1)+C9*C7*C8*C24*C25+C24*(C10-C5)+C25*(C10-C6)-C10
A37: SPREAD | C37: =C23-C4 -> 120.9934208
A38: V1(x,y) EQ 5 | B38: C3/C5-C11/C10+C22*C3^C24*C4^C25
A39: V2(x,y) EQ 7 | B39: C4/C6-C12/C10
B41: CALCULATOR ANSWER
B42: y12 (x) | C42: =-C25*C17/C24 -> 220.9934208
C43: -C25*C17/C24
B44: A | C44: =(-1/C5)/(C24*(C17^(C24-1))*(C42^C25)) -> 0.3473829871
B45: (-1/C25)/(C24*(C17^(C24-1))*C23^C25)
B46: V1(x,y) | C46: =C44*C3^C24*C4^C25 -> 572.2171149
C47: C44*C3^C24*C4^C25

Sheet Exercise 13.2
A1: EXERCISE 13.2 | B1: Q1 | C1: Q2
A2: Booking Limit | B2: =MAX(MIN(NORMINV(B3,B4,B5),B6),0) -> 65.9319682 | C2: =MAX(MIN(NORMINV(C3,C4,C5),C6),0) -> 71.53636496
A3: PROB | B3: =B7 -> 0.625 | C3: =C7 -> 0.6666666667
A4: MEAN | B4: 50 | C4: =B4 -> 50
A5: STDEV | B5: 50 | C5: 50
A6: C | B6: 100 | C6: 100
A7: pd/pf | B7: =B8/B9 -> 0.625 | C7: 0.6666666667
A8: pd | B8: 500 | C8: =B8 -> 500
A9: pf | B9: 800 | C9: 750
A11: =A2 -> Booking Limit | B11: MAX(MIN(NORMINV(B3,B4,B5),B6),0)
A12: Approximate | B12: =200*B7-60 -> 65 | C12: =200*C7-60 -> 73.33333333
A13: B13= | B13: 200*B7-60

Sheet Exercise 13.3
A1: OPTIMAL OVERBOOKING with Stochastic No Shows
A2: PRICE | B2: 300 | C2: =B2 -> 300 | D2: =C2 -> 300 | E2: 300 | F2: 300 | G2: 300 | H2: 300 | I2: 300
A3: DENIED Compensation | B3: 700 | C3: =B3 -> 700 | D3: 700 | E3: 700 | F3: 700 | G3: 700 | H3: 700 | I3: 700
A4: CAPACITY | B4: 200 | C4: =B4 -> 200 | D4: 200 | E4: 200 | F4: 200 | G4: 200 | H4: 200 | I4: 200
A5: Expected NoShows | B5: 5 | C5: =B5+5 -> 10 | D5: =C5+5 -> 15 | E5: 20 | F5: 25 | G5: 30 | H5: 35 | I5: 40
A6: Stdev NoShows | B6: 10 | C6: 10 | D6: 10 | E6: 10 | F6: 10 | G6: 10 | H6: 10 | I6: 10
A7: OB NORMINV | B7: =MAX(NORMINV((B2/(B2+B3)),B5,B6),0) -> 0 | C7: =MAX(NORMINV((C2/(C2+C3)),C5,C6),0) -> 4.755994873 | D7: 9.755994873 | E7: 14.75599487 | F7: 19.75599487 | G7: 24.75599487 | H7: 29.75599487 | I7: 34.75599487
A8: BOOKINGS ALLOWED | B8: =B4+B7 -> 200 | C8: =C4+C7 -> 204.7559949 | D8: 209.7559949 | E8: 214.7559949 | F8: 219.7559949 | G8: 224.7559949 | H8: 229.7559949 | I8: 234.7559949
A9: NORMINV | B9: MAX(NORMINV((B2/(B2+B3)),B5,B6),0)
A10: OB Approximate | C10: =-5.24+C5 -> 4.76 | D10: =-5.24+D5 -> 9.76 | E10: 14.76 | F10: 19.76 | G10: 24.76 | H10: 29.76 | I10: 34.76
A11: Exercise 13.3 | B11: C10= | C11: -5.24+C5
A13: SUMMARY OUTPUT
A15: Regression Statistics
A16: Multiple R | B16: 1
A17: R Square | B17: 1
A18: Adjusted R Square | B18: -1.4
A19: Standard Error | B19: 1.242955153e-15
A20: Observations | B20: 1
A22: ANOVA
B23: df | C23: SS | D23: MS
A24: Regression | B24: 7 | C24: 700 | D24: 100
A25: Residual | B25: 5 | C25: 7.724687556e-30 | D25: 1.544937511e-30
A26: Total | B26: 12 | C26: 700
B28: Coefficients | C28: Standard Error | D28: t Stat
A29: Intercept
A30: X Variable 1
A31: X Variable 2
A32: X Variable 3
A33: X Variable 4
A34: X Variable 5
A35: X Variable 6 | B35: -5.244005127 | C35: 1.264956067e-15 | D35: -4145602574430264
A36: X Variable 7 | B36: 1 | C36: 4.697928892e-17 | D36: 2.128597565e+16

Sheet Problem 13.4
A1: Multiple American Perpetual Output Switch Option
A2: Problem 13.4
A3: OUTPUT x Discount Class | B3: x | C3: 50
A4: OUTPUT y Upper Class | B4: y | C4: 100
A5: Convenience yield of x | B5: δx | C5: 0.04
A6: Convenience yield of y | B6: δy | C6: 0.04
A7: Volatility of x | B7: σx | C7: 0.2
A8: Volatility of y | B8: σy | C8: 0.2
A9: Correlation x with y | B9: ρ | C9: 0.5
A10: Risk-free interest rate | B10: r | C10: 0.05
A11: Operating cost for x | B11: cx | C11: 30
A12: Operating cost for y | B12: cy | C12: 30
A15: Switching cost from x to y | B15: S12 | C15: 300
A16: Switching cost from y to x | B16: S21 | C16: 100
A17: PV of revenues x | B17: X | C17: =(C3/C5-C11/C10) -> 650
A18: PV of revenues y | B18: Y | C18: =(C4/C6-C12/C10) -> 1900
A19: Switching boundary x to y | B19: x12 | C19: =C3 -> 50
A20: Switching boundary y to x | B20: x21 | C20: =C3 -> 50
B21: SOLUTION | D21: OPTION | E21: OPERATING
A22: Asset value in operating mode '1' | B22: V1(x,y) | C22: =C3/C5-C11/C10+C24*C3^C28*C4^C29 -> 1791.144301 | D22: =C24*C3^C28*C4^C29 -> 1141.144301 | E22: =C3/C5-C11/C10 -> 650
A23: Asset value in operating mode '2' | B23: V2(x,y) | C23: =C4/C6-C12/C10+C25*C3^C30*C4^C31 -> 2090.835323 | D23: =C25*C3^C30*C4^C31 -> 190.8353233 | E23: =C4/C6-C12/C10 -> 1900
B24: A | C24: 1.833923463
B25: B | C25: 3.054396646
A26: Switching boundary x to y | B26: y12 (x) | C26: 101.7217466
A27: Switching boundary y to x | B27: y21 (x) | C27: 25.05358135
A28: Solution quadrant | B28: β11 | C28: -0.7361920482 | D28: must be negative
A29: Solution quadrant | B29: β12 | C29: 2.022363783 | D29: must be positive
A30: Solution quadrant | B30: β21 | C30: 2.021355594 | D30: must be positive
A31: Solution quadrant | B31: β22 | C31: -0.8192445958 | D31: must be negative
B32: EQUATIONS
A33: Value matching 1 | B33: EQ9 | C33: =(C24*C19^C28*C26^C29+C19/C5-C11/C10-C25*C19^C30*C26^C31-C26/C6+C12/C10+C15) -> 1.270661869e-07
A34: Value matching 2 | B34: EQ10 | C34: =(C24*C20^C28*C27^C29+C20/C5-C11/C10-C25*C20^C30*C27^C31-C27/C6+C12/C10-C16) -> 2.430738277e-08
A35: Smooth pasting 1A | B35: EQ11 | C35: =(C28*C24*C19^(C28-1)*C26^C29+1/C5-C30*C25*C19^(C30-1)*C26^C31) -> 3.142103466e-09
A36: Smooth pasting 1B | B36: EQ12 | C36: =(C29*C24*C19^C28*C26^(C29-1)-C31*C25*C19^C30*C26^(C31-1)-1/C6) -> -2.96344993e-09
A37: Smooth pasting 2A | B37: EQ13 | C37: =(C28*C24*C20^(C28-1)*C27^C29+1/C5-C30*C25*C20^(C30-1)*C27^C31) -> 7.283063042e-13
A38: Smooth pasting 2B | B38: EQ14 | C38: =(C29*C24*C20^C28*C27^(C29-1)-C31*C25*C20^C30*C27^(C31-1)-1/C6) -> 9.118643618e-10
A39: Solution quadrant 1 | B39: EQ6 | C39: =0.5*C7^2*C28*(C28-1)+0.5*C8^2*C29*(C29-1)+C9*C7*C8*C28*C29+C28*(C10-C5)+C29*(C10-C6)-C10 -> -3.132216708e-14
A40: Solution quadrant 2 | B40: EQ8 | C40: =0.5*C7^2*C30*(C30-1)+0.5*C8^2*C31*(C31-1)+C9*C7*C8*C30*C31+C30*(C10-C5)+C31*(C10-C6)-C10 -> -1.013772399e-14
B41: Sum | C41: =SUM(ABS(C33)+ABS(C34)+ABS(C35)+ABS(C36)+ABS(C37)+ABS(C38)+ABS(C39)+ABS(C40)) -> 1.583917572e-07
B42: SOLVER: SET C41=0, CHANGING C24:C31
B43: M x to y | C43: =C6*(C15+C3/C5) -> 62 | D43: C6*(C15+C3/C5)
B44: M y to x | C44: =C6*(-C16+C3/C5) -> 46 | D44: C6*(-C16+C3/C5)
B45: M Spread | C45: =C43-C44 -> 16 | D45: C48-C49
A46: EQ9 | B46: (C24*C19^C28*C26^C29+C19/C5-C11/C10-C25*C19^C30*C26^C31-C26/C6+C12/C10+C15)
A47: EQ10 | B47: (C24*C20^C28*C27^C29+C20/C5-C11/C10-C25*C20^C30*C27^C31-C27/C6+C12/C10-C16)
A48: EQ11 | B48: (C28*C24*C19^(C28-1)*C26^C29+1/C5-C30*C25*C19^(C30-1)*C26^C31)
A49: EQ12 | B49: (C29*C24*C19^C28*C26^(C29-1)-C31*C25*C19^C30*C26^(C31-1)-1/C6)
A50: EQ13 | B50: (C28*C24*C20^(C28-1)*C27^C29+1/C5-C30*C25*C20^(C30-1)*C27^C31)
A51: EQ14 | B51: (C29*C24*C20^C28*C27^(C29-1)-C31*C25*C20^C30*C27^(C31-1)-1/C6)
A52: EQ6 | B52: 0.5*C7^2*C28*(C28-1)+0.5*C8^2*C29*(C29-1)+C9*C7*C8*C28*C29+C28*(C10-C5)+C29*(C10-C6)-C10
A53: EQ8 | B53: 0.5*C7^2*C30*(C30-1)+0.5*C8^2*C31*(C31-1)+C9*C7*C8*C30*C31+C30*(C10-C5)+C31*(C10-C6)-C10
A54: SPREAD | C54: =C26-C27 -> 76.66816527 | D54: C26-C27
A55: V1(x,y) EQ 5 | B55: C3/C5-C11/C10+C24*C3^C28*C4^C29
A56: V2(x,y) EQ 7 | B56: C4/C6-C12/C10+C25*C3^C30*C4^C31

Sheet Problem 13.5
A1: PROBLEM 13.5
A2: Booking Limit | B2: =MAX(MIN(NORMINV(B3,B4,B5),B6),0) -> 63.97102989 | C2: =MAX(MIN(NORMINV(C3,C4,C5),C6),0) -> 49.25 | D2: 36.9958316 | E2: 26.47042863 | F2: 17.22180494 | G2: 8.952914901 | H2: 1.458133647 | I2: 0 | J2: 0 | K2: 0
A3: PROB | B3: =B7 -> 0.5555555556 | C3: =C7 -> 0.5 | D3: 0.4545454545 | E3: 0.4166666667 | F3: 0.3846153846 | G3: 0.3571428571 | H3: 0.3333333333 | I3: 0.3125 | J3: 0.2941176471 | K3: 0.2777777778
A4: MEAN | B4: 50 | C4: =B4-$B$11*(C9-B9) -> 49.25 | D4: =C4-$B$11*(D9-C9) -> 48.5 | E4: 47.75 | F4: 47 | G4: 46.25 | H4: 45.5 | I4: 44.75 | J4: 44 | K4: 43.25
A5: STDEV | B5: 100 | C5: =B5+0.5*$B$11*(C9-B9) -> 100.375 | D5: =C5+0.5*$B$11*(D9-C9) -> 100.75 | E5: 101.125 | F5: 101.5 | G5: 101.875 | H5: 102.25 | I5: 102.625 | J5: 103 | K5: 103.375
A6: C | B6: 100 | C6: 100 | D6: 100 | E6: 100 | F6: 100 | G6: 100 | H6: 100 | I6: 100 | J6: 100 | K6: 100
A7: pd/pf | B7: =B8/B9 -> 0.5555555556 | C7: 0.5 | D7: 0.4545454545 | E7: 0.4166666667 | F7: 0.3846153846 | G7: 0.3571428571 | H7: 0.3333333333 | I7: 0.3125 | J7: 0.2941176471 | K7: 0.2777777778
A8: pd | B8: 500 | C8: =B8 -> 500 | D8: =C8 -> 500 | E8: =D8 -> 500 | F8: 500 | G8: 500 | H8: 500 | I8: 500 | J8: 500 | K8: 500
A9: pf | B9: 900 | C9: =B9+100 -> 1000 | D9: =C9+100 -> 1100 | E9: 1200 | F9: 1300 | G9: 1400 | H9: 1500 | I9: 1600 | J9: 1700 | K9: 1800
A10: TOTAL REVENUE | B10: =B8*B2+B9*B4 -> 76985.51494 | C10: =C8*C2+C9*C4 -> 73875 | D10: 71847.9158 | E10: 70535.21432 | F10: 69710.90247 | G10: 69226.45745 | H10: 68979.06682 | I10: 71600 | J10: 74800 | K10: 77850
A11: Bus Class Beta | B11: 0.0075
A12: MEAN | C12: B4-$B$11*(C9-B9)
A13: STDEV | C13: B5+0.5*$B$11*(C9-B9)
A14: =A2 -> Booking Limit | B14: MAX(MIN(NORMINV(B3,B4,B5),B6),0)

Sheet Problem 13.6
A1: OPTIMAL OVERBOOKING with Stochastic No Shows
A2: PRICE | B2: 500 | C2: =B2 -> 500 | D2: =C2 -> 500 | E2: 500 | F2: 500 | G2: 500 | H2: 500 | I2: 500
A3: DENIED Compensation | B3: 500 | C3: =B3+100 -> 600 | D3: =C3+100 -> 700 | E3: 800 | F3: 900 | G3: 1000 | H3: 1100 | I3: 1200
A4: CAPACITY | B4: 100 | C4: =B4 -> 100 | D4: 100 | E4: 100 | F4: 100 | G4: 100 | H4: 100 | I4: 100
A5: Expected NoShows | B5: 50 | C5: 50 | D5: 50 | E5: 50 | F5: 50 | G5: 50 | H5: 50 | I5: 50
A6: Stdev NoShows | B6: 100 | C6: 100 | D6: 100 | E6: 100 | F6: 100 | G6: 100 | H6: 100 | I6: 100
A7: NORMINV | B7: =MAX(NORMINV((B2/(B2+B3)),B5,B6),0) -> 50 | C7: =MAX(NORMINV((C2/(C2+C3)),C5,C6),0) -> 38.58147057 | D7: 28.95716058 | E7: 20.66187679 | F7: 13.38936432 | G7: 6.92727007 | H7: 1.122358889 | I7: 0
A8: BOOKINGS ALLOWED | B8: =B4+B7 -> 150 | C8: =C4+C7 -> 138.5814706 | D8: 128.9571606 | E8: 120.6618768 | F8: 113.3893643 | G8: 106.9272701 | H8: 101.1223589 | I8: 100
A9: NORMINV | B9: MAX(NORMINV((B2/(B2+B3)),B5,B6),0) | H9: Problem 13.6

Sheet Exercise 14.1
A1: Exercise 14.1
A2: INPUT | B2: Stochastic R
A3: P | B3: 10 | C3: Per MWhr
A4: Q | B4: 10 | C4: MWhrs/per annum
A5: R | B5: =B3*B4 -> 100 | C5: B3*B4
A6: K | B6: 4000 | C6: Per Capacity of 10 MWhrs/per annum
A7: s | B7: 0.1 | C7: Given
A8: r | B8: 0.07 | C8: Given
A9: q | B9: 0.04 | C9: Given
A10: t | B10: 1 | C10: Subsidy
A11: r-q | B11: =B8-B9 -> 0.03 | C11: B8-B9
A12: l | B12: 0 | C12: Probability
A13: OUTPUT
A14: ROV1 | B14: =IF(B5<B18,B17*(B5^B16),B15) -> 2777.777778 | C14: IF(B5<B18,B17*(B5^B16),B15)
A15: V-K | B15: =((1+B10)*B5/B11)-B6 -> 2666.666667 | C15: ((1+B10)*B5/B11)-B6
A16: b1 | B16: =(1/B7^2)*(-(B11-0.5*(B7^2))+SQRT((B11-0.5*(B7^2))^2+(2*B8)*(B7^2))) -> 2
A17: B1 | B17: =((1+B10)*(B18^(1-B16)))/(B16*B11) -> 0.2777777778 | C17: ((1+B10)*(B18^(1-B16)))/(B16*B11)
A18: R* | B18: =B6*B11*(B16/(B16-1))/(1+B10) -> 120 | C18: B6*B11*(B16/(B16-1))/(1+B10)
A19: b1 | B19: (1/B7^2)*(-(B11-0.5*(B7^2))+SQRT((B11-0.5*(B7^2))^2+(2*B8)*(B7^2)))

Sheet Problem 14.4
A1: Problem 14.4
A2: INPUT | B2: Stochastic R
A3: P | B3: 22.25 | C3: Per MWhr
A4: Q | B4: 10 | C4: MWhrs/per annum
A5: R | B5: =B3*B4 -> 222.5 | C5: B3*B4
A6: K | B6: 4000 | C6: Per Capacity of 10 MWhrs/per annum
A7: s | B7: 0.2 | C7: Given
A8: r | B8: 0.08 | C8: Given
A9: q | B9: 0.04 | C9: Given
A10: t | B10: 0.1 | C10: Subsidy
A11: r-q | B11: =B8-B9 -> 0.04 | C11: B8-B9
A12: l | B12: 0 | C12: Probability
A13: OUTPUT
A14: ROV1 | B14: =IF(B5<B18,B17*(B5^B16),B15) -> 2801.221827 | C14: IF(B5<B18,B17*(B5^B16),B15)
A15: V-K | B15: =((1+B10)*B5/B11)-B6 -> 2118.75 | C15: ((1+B10)*B5/B11)-B6
A16: b1 | B16: =(1/B7^2)*(-(B11-0.5*(B7^2))+SQRT((B11-0.5*(B7^2))^2+(2*B8)*(B7^2))) -> 1.561552813
A17: B1 | B17: =((1+B10)*(B18^(1-B16)))/(B16*B11) -> 0.6051565157 | C17: ((1+B10)*(B18^(1-B16)))/(B16*B11)
A18: R* | B18: =B6*B11*(B16/(B16-1))/(1+B10) -> 404.4765682 | C18: B6*B11*(B16/(B16-1))/(1+B10)
A19: b1 | B19: (1/B7^2)*(-(B11-0.5*(B7^2))+SQRT((B11-0.5*(B7^2))^2+(2*B8)*(B7^2)))

Sheet ClassExercise ONE
A1: Perpetual American Option
A2: Class Exercise ONE
A3: Office | B3: 30
A4: COST | B4: 44
A5: s | B5: 0.2
A6: r | B6: 0.04
A7: d | B7: 0.04
A8: ROV | B8: =IF(B3<B12,(B12-B4)*(B3/B12)^B14,B10) -> 5.113636364 | C8: IF(B3<B12,(B12-B4)*(B3/B12)^B14,B10)
A9: F(V) | B9: =IF(B3<B12,B13*(B3^B14),B10) -> 5.113636364 | C9: IF(B3<B12,B13*(B3^B14),B10)
A10: V-K | B10: =B3-B4 -> -14 | C10: B3-B4
A11: F'(V) | B11: =IF(B3<B12,B13*B14*(B3^(B14-1)),1) -> 0.3409090909 | C11: IF(B3<B12,B13*B14*(B3^(B14-1)),1)
A12: V* | B12: =(B14/(B14-1))*B4 -> 88 | C12: (B14/(B14-1))*B4
A13: A | B13: =(B12-B4)/(B12^B14) -> 0.005681818182 | C13: (B12-B4)/(B12^B14)
A14: b1 | B14: =0.5-(B6-B7)/(B5^2)+SQRT(((B6-B7)/(B5^2)-0.5)^2 + 2*B6/(B5^2)) -> 2
A15: b1= | B15: 0.5-(B6-B7)/(B5^2)+SQRT(((B6-B7)/(B5^2)-0.5)^2 + 2*B6/(B5^2))
A16: ODE | B16: =0.5*(B5^2)*(B3^2)*B17+(B6-B7)*B3*B11-B6*B9 -> 0
A17: F''(V) | B17: =IF(B3<B12,B13*B14*(B14-1)*(B3^(B14-2)),0) -> 0.01136363636
A18: F'(V*) | B18: =B13*B14*(B12^(B14-1)) -> 1
A19: F(V*) | B19: =IF(B3<B12,B13*(B12^B14),B10) -> 44
A20: V*-K | B20: =B12-B4 -> 44
A21: SMETER | B21: 20000
A22: ROV | B22: =IF(B3<B12,B21*(B12-B4)*(B3/B12)^B14,B10) -> 102272.7273 | C22: IF(B3<B12,(B12-B4)*(B3/B12)^B14,B10)
A23: V* | B23: =(B14/(B14-1))*B4*B21 -> 1760000 | C23: (B14/(B14-1))*B4
